Service Area,Service Division,Expense Type,Expense Code,Detailed Expense Type,Payment Date,Transaction Number,Amount Exc VAT,Supplier Name
"Regeneration, Economy and Growth",Culture Sport and Tourism,Supplies and Services,384302,Miscellaneous Expenses,01/12/2020,3810117-396,"1,000.00",REDACTED - PAYMENT TO INDIVIDUAL
Resources BK0010,Legal & Democratic Services,Supplies and Services,338042,Services,01/12/2020,3810192-267066,"1,650.00",PUMP COURT CHAMBERS LTD.
Children and Young Peoples Services,Head of Early Help Inclusion & Vulnerable Children.,Supplies and Services,324117,Provisions E324,01/12/2020,3810002-23296,664.57,CREATIVE MANAGEMENT SERVICES LTD.
Neighbourhoods and Climate Change,Environmental Services,Supplies and Services,328041,Clothing uniforms and laundry E328,01/12/2020,3810151-INVDUR003I4128,599.70,NE TRUCK SPARES LTD (NETS).
Neighbourhoods and Climate Change,Environmental Services,Supplies and Services,328041,Clothing uniforms and laundry E328,01/12/2020,3810259-45924,762.11,THE OUTDOORS COMPANY UK LIMITED.
Resources BK0010,Digital and Customer Services,Supplies and Services,342053,Computers and Communications,01/12/2020,3809946-INV00746159,"66,550.01",AUTOTASK CORPORATION.
Resources BK0010,Finance & Transactional Services,Supplies and Services,342053,Computers and Communications,01/12/2020,3810099-5082169,"45,899.87",INSIGHT DIRECT (UK) LTD.
"Regeneration, Economy and Growth",Culture Sport and Tourism,Construction work A908,908105,Construction work,01/12/2020,3810243-00376236,"25,863.59",STAGE ELECTRICS PARTNERSHIP LTD.
Children and Young Peoples Services,Head of Education and Skills,Construction work A908,908105,Construction work,01/12/2020,3810066-SI-3444,"2,280.00",GEOL CONSULTANTS LTD.
Neighbourhoods and Climate Change,Technical Services CM0300,Construction work A908,908105,Construction work,01/12/2020,3810006-7067954,"4,990.00",CURRIE & BROWN UK LTD.
"Regeneration, Economy and Growth",Transport and Contracted Services,Construction work A908,908105,Construction work,01/12/2020,3810201-INV-2655,550.00,REDWOOD CABLE PROJECTS LTD.
Neighbourhoods and Climate Change,Environmental Services,Supplies and Services,338027,Services,01/12/2020,3810237-0000852693,"2,297.10",SOCOTEC UK LTD.
Neighbourhoods and Climate Change,Environmental Services,Supplies and Services,338027,Services,01/12/2020,3810237-0000852324,"3,200.00",SOCOTEC UK LTD.
"Regeneration, Economy and Growth",Corporate Property and Land,Fees,901002,Consultants fees 901002,01/12/2020,3810047-131148/11,"9,275.00",FAIRHURST (CONSULTING ENGINEERS).
"Regeneration, Economy and Growth",Corporate Property and Land,Fees,901002,Consultants fees 901002,01/12/2020,3810213-TEC559119,"5,119.00",RPS CONSULTING SERVICES LTD.
Children and Young Peoples Services,Head of Education and Skills,Fees,901002,Consultants fees 901002,01/12/2020,3810213-TEC559125,"17,052.00",RPS CONSULTING SERVICES LTD.
Neighbourhoods and Climate Change,Technical Services CM0300,Third Party Payments,460254,Contract Payments,01/12/2020,3810069-INV-000412,"46,601.70",GINGER LEHMANN LTD.
Neighbourhoods and Climate Change,Environmental Services,Third Party Payments,430113,Rendered by Private Contractors,01/12/2020,3810229-170816,"4,454.55",SHOWSEC INTERNATIONAL LTD.
Neighbourhoods and Climate Change,Environmental Services,Transport,215005,Running Costs of Vehicles,01/12/2020,3810166-666400,"8,855.77",OIL NRG LTD.
Neighbourhoods and Climate Change,Environmental Services,Transport,215005,Running Costs of Vehicles,01/12/2020,3810166-667617,"12,384.09",OIL NRG LTD.
"Regeneration, Economy and Growth",Corporate Property and Land,Supplies and Services,304221,Equipment and Materials,01/12/2020,3810115-0303/00228642,"1,254.53",JT DOVE LTD.
"Regeneration, Economy and Growth",Corporate Property and Land,Supplies and Services,304221,Equipment and Materials,01/12/2020,3810294-UOTR4707064,806.44,WESTERN UNION BUSINESS SOLUTIONS.
Neighbourhoods and Climate Change,Technical Services CM0300,Supplies and Services,304221,Equipment and Materials,01/12/2020,3810042-167784,"1,800.00",ESH CONSTRUCTION LTD FORMERLY LUMSDEN & CARROLL CONSTRUCTION LTD.
Neighbourhoods and Climate Change,Technical Services CM0300,Supplies and Services,304221,Equipment and Materials,01/12/2020,3810114-2066,"11,549.00",JR SCOTT & SON.
Neighbourhoods and Climate Change,Technical Services CM0300,Supplies and Services,304221,Equipment and Materials,01/12/2020,3810115-0303/00234968,"1,204.78",JT DOVE LTD.
Neighbourhoods and Climate Change,Technical Services CM0300,Supplies and Services,304221,Equipment and Materials,01/12/2020,3810200-SI2030580,"3,395.90",REDIWELD RUBBER & PLASTICS LTD.
Neighbourhoods and Climate Change,Technical Services CM0300,Supplies and Services,304221,Equipment and Materials,01/12/2020,3810277-216930,895.96,TYNEDALE ROADSTONE LTD.
"Regeneration, Economy and Growth",Culture Sport and Tourism,Supplies and Services,338047,Services,01/12/2020,3809938-0037,"3,000.00",ANITA CORBIN T/A FIRST WOMEN UK LTD.
Dedicated Schools Grant BG0015,DSG High Needs Block,Central Support and Other Recharges,689988,Unclassified E690,01/12/2020,3809974-OOAT2&3,"26,609.00",CARMEL COLLEGE.*
Dedicated Schools Grant BG0015,DSG High Needs Block,Central Support and Other Recharges,689988,Unclassified E690,01/12/2020,3810020-OOAT2&3,"14,668.00",DURHAM & NEWCASTLE DIOCESAN LEARNING TRUST T/A HEIGHINGTON CE PRIMARY SCHOOL.
Dedicated Schools Grant BG0015,DSG High Needs Block,Central Support and Other Recharges,689988,Unclassified E690,01/12/2020,3810061-OOAT2&3,"8,601.00",GATESHEAD COUNCIL.
Dedicated Schools Grant BG0015,DSG High Needs Block,Central Support and Other Recharges,689988,Unclassified E690,01/12/2020,3810062-S2163 -S0001-SGENL-75056,"6,171.00",GATESHEAD COUNCIL.
Dedicated Schools Grant BG0015,DSG High Needs Block,Central Support and Other Recharges,689988,Unclassified E690,01/12/2020,3810089-OOAT2&3,"6,738.00",HIGH SPEN PRIMARY SCHOOL.
Dedicated Schools Grant BG0015,DSG High Needs Block,Central Support and Other Recharges,689988,Unclassified E690,01/12/2020,3810130-OOAT2&3,"1,813.00",LORD LAWSON OF BEAMISH ACADEMY.
Dedicated Schools Grant BG0015,DSG High Needs Block,Central Support and Other Recharges,689988,Unclassified E690,01/12/2020,3810165-OOAT2&3,"7,825.00",NUNTHORPE ACADEMY LTD.
Dedicated Schools Grant BG0015,DSG High Needs Block,Central Support and Other Recharges,689988,Unclassified E690,01/12/2020,3810177-OOAT2&3,"5,198.00",PELE TRUST T/A HEDDON ST ANDREWS C OF E PRIMARY SCHOOL.
Dedicated Schools Grant BG0015,DSG High Needs Block,Central Support and Other Recharges,689988,Unclassified E690,01/12/2020,3810185-OOAT2&3,"5,272.00",POLAM HALL SCHOOL LTD.
Dedicated Schools Grant BG0015,DSG High Needs Block,Central Support and Other Recharges,689988,Unclassified E690,01/12/2020,3810218-OOAT2&3,"3,054.00",SAMUEL KINGS SCHOOL.
Dedicated Schools Grant BG0015,DSG High Needs Block,Central Support and Other Recharges,689986,Unclassified E690,01/12/2020,3810295-OOAT2&3,"6,939.00",WHICKHAM SCHOOL & SPORTS COLLEGE.
"Regeneration, Economy and Growth",Culture Sport and Tourism,Supplies and Services,304259,Equipment and Materials,01/12/2020,3810240-28098,"3,100.00",SPORT & PLAY LTD.
Dedicated Schools Grant BG0015,DSG High Needs Block,Supplies and Services,304259,Equipment and Materials,01/12/2020,3810180-2592823846,"7,716.60",PHONAK UK LTD.
Neighbourhoods and Climate Change,Environmental Services,Supplies and Services,304259,Equipment and Materials,01/12/2020,3810300-1225,708.00,WOODCRAFT (UK) LTD.
Neighbourhoods and Climate Change,Environmental Services,Transport,215022,Running Costs of Vehicles,01/12/2020,3810166-666401,655.20,OIL NRG LTD.
Non-Service Specific,Insurances,Expenditure 8INSEX,810012,Insurance Expenditure,01/12/2020,3810225-6119531,"2,135.00",SEDGWICK INTERNATIONAL UK.
Children and Young Peoples Services,Head of Education and Skills,Supplies and Services,384956,Miscellaneous Expenses,01/12/2020,3809981-28794,"7,505.00",CHARANGA LTD.
Resources BK0010,Digital and Customer Services,Supplies and Services,304303,Equipment and Materials,01/12/2020,3810098-SI-023592,"11,393.40",INFORMATION & DATA NETWORK SUPPLIES LTD (IDN).
"Regeneration, Economy and Growth",Corporate Property and Land,Supplies and Services,384199,Miscellaneous Expenses,01/12/2020,3810213-TEC559121,975.00,RPS CONSULTING SERVICES LTD.
"Regeneration, Economy and Growth",Corporate Property and Land,Supplies and Services,384199,Miscellaneous Expenses,01/12/2020,3810213-TEC559241,"2,016.75",RPS CONSULTING SERVICES LTD.
Neighbourhoods and Climate Change,Environmental Services,Supplies and Services,384199,Miscellaneous Expenses,01/12/2020,3810016-INV-0254,"3,100.00",DIGVENTURES LTD.
Children and Young Peoples Services,Head of Education and Skills,Supplies and Services,384199,Miscellaneous Expenses,01/12/2020,3809948-2/DURHAM/21JULY-20,900.00,AVANCE.
Children and Young Peoples Services,Head of Education and Skills,Supplies and Services,384199,Miscellaneous Expenses,01/12/2020,3810066-SI-3443,"1,950.00",GEOL CONSULTANTS LTD.
Dedicated Schools Grant BG0015,DSG High Needs Block,Central Support and Other Recharges,689989,Unclassified E690,01/12/2020,3810159-OOAT2&3,"7,926.00",NORTHERN LIGHTS LEARNING TRUST.
Dedicated Schools Grant BG0015,DSG High Needs Block,Central Support and Other Recharges,689989,Unclassified E690,01/12/2020,3810218-OOAT2&3/4,"4,739.00",SAMUEL KINGS SCHOOL.
"Regeneration, Economy and Growth",Corporate Property and Land,Third Party Payments,430100,Rendered by Private Contractors,01/12/2020,3809978-7553,"1,987.52",CATHEDRAL LOCK & SAFE SERVICES LTD.
"Regeneration, Economy and Growth",Corporate Property and Land,Third Party Payments,430100,Rendered by Private Contractors,01/12/2020,3810172-2468,"11,018.70",PARAMOUNT CEILINGS & PARTITIONS.
"Regeneration, Economy and Growth",Corporate Property and Land,Third Party Payments,430100,Rendered by Private Contractors,01/12/2020,3810184-20241,"13,696.23",PLAYFORDS LTD.
"Regeneration, Economy and Growth",Corporate Property and Land,Third Party Payments,430100,Rendered by Private Contractors,01/12/2020,3810241-7311,"8,809.27",ST ASTIER LTD.
"Regeneration, Economy and Growth",Corporate Property and Land,Third Party Payments,430100,Rendered by Private Contractors,01/12/2020,3810276-DCC/GT/159,940.40,TYNE VALLEY FLOORING & CARPETS.
Neighbourhoods and Climate Change,Technical Services CM0300,Third Party Payments,430100,Rendered by Private Contractors,01/12/2020,3809950-CSUKOU/INV/98019,"8,719.59",BALFOUR BEATTY LIVING PLACES LTD.*
Neighbourhoods and Climate Change,Technical Services CM0300,Third Party Payments,430100,Rendered by Private Contractors,01/12/2020,3810160-DI20350546,"1,500.47",NORTHERN POWERGRID (NORTHEAST) LTD.
Neighbourhoods and Climate Change,Technical Services CM0300,Third Party Payments,430100,Rendered by Private Contractors,01/12/2020,3810205-0433,"238,846.64",RETRO BRIDGE LTD.
Dedicated Schools Grant BG0015,DSG High Needs Block,Third Party Payments,440080,Other third party payments E440,01/12/2020,3810029-OOAT2&3/4,"5,543.00",EDEN ACADEMY T/A HEXHAM PRIORY SCHOOL.
Adult and Health Services,Public Health CC0450,Supplies and Services,340001,Postages E340,01/12/2020,3810212-9061913673,"19,947.32",ROYAL MAIL GROUP PLC.
Resources BK0010,Finance & Transactional Services,Supplies and Services,338066,Services,01/12/2020,3809986-C/BN206597,"4,378.50",CIVICA UK LTD.
Children and Young Peoples Services,Head of Education and Skills,Transfer Payments,510034,School Children,01/12/2020,3809930-LACPP2021AUTUMN,"1,200.00",ACRE RIGG ACADEMY.
Children and Young Peoples Services,Head of Education and Skills,Transfer Payments,510034,School Children,01/12/2020,3809932-LACPP2021AUTUMN,"1,200.00",ADVANCE LEARNING PARTNERSHIP.
Children and Young Peoples Services,Head of Education and Skills,Transfer Payments,510034,School Children,01/12/2020,3809933-LACPP2021AUTUMN,"1,800.00",ADVANCE LEARNING PARTNERSHIP.
Children and Young Peoples Services,Head of Education and Skills,Transfer Payments,510034,School Children,01/12/2020,3809958-LACPP2021AUTUMN,600.00,BISHOP CHADWICK CATHOLIC EDUCATION TRUST (NSCET).
Children and Young Peoples Services,Head of Education and Skills,Transfer Payments,510034,School Children,01/12/2020,3809959-LACPP2021AUTUMN,"4,800.00",BISHOP HOGARTH CATHOLIC EDUCATION TRUST T/A  ST JOHN`S SCHOOL & SIXTH FORM COLLEGE.
Children and Young Peoples Services,Head of Education and Skills,Transfer Payments,510034,School Children,01/12/2020,3809960-LACPP2021AUTUMN,600.00,BISHOP HOGARTH CATHOLIC EDUCATION TRUST.
Children and Young Peoples Services,Head of Education and Skills,Transfer Payments,510034,School Children,01/12/2020,3809961-LACPP1920SPRING,"1,000.00",BISHOP IAN RAMSEY C OF E PRIMARY SCHOOL.
Children and Young Peoples Services,Head of Education and Skills,Transfer Payments,510034,School Children,01/12/2020,3809961-LACPP2021AUTUMN,"1,200.00",BISHOP IAN RAMSEY C OF E PRIMARY SCHOOL.
Children and Young Peoples Services,Head of Education and Skills,Transfer Payments,510034,School Children,01/12/2020,3809961-LACPP2021SUMMER,600.00,BISHOP IAN RAMSEY C OF E PRIMARY SCHOOL.
Children and Young Peoples Services,Head of Education and Skills,Transfer Payments,510034,School Children,01/12/2020,3810025-LACPP2021AUTUMN,"2,400.00",BISHOP WILKINSON CE TRUST T/A ST LEONARD`S CATHOLIC SCHOOL.
Children and Young Peoples Services,Head of Education and Skills,Transfer Payments,510034,School Children,01/12/2020,3809991-LACPP2021AUTUMN,"4,200.00",CLEVES CROSS LEARNING TRUST T/A ROSA STREET PRIMARY SCHOOL.
Children and Young Peoples Services,Head of Education and Skills,Transfer Payments,510034,School Children,01/12/2020,3809992-LACPP2021AUTUMN,"1,800.00",CLEVES CROSS LEARNING TRUST.
Children and Young Peoples Services,Head of Education and Skills,Transfer Payments,510034,School Children,01/12/2020,3810013-LACPP2021AUTUMN,"1,200.00",DENE ACADEMY.
Children and Young Peoples Services,Head of Education and Skills,Transfer Payments,510034,School Children,01/12/2020,3810021-LACPP2021AUTUMN,600.00,DURHAM & NEWCASTLE DIOCESAN LEARNING TRUST T/A STANHOPE BARRINGTON C OF E PRIMARY SCHOOL.
Children and Young Peoples Services,Head of Education and Skills,Transfer Payments,510034,School Children,01/12/2020,3810030-LACPP2021AUTUMN,"3,000.00",EDEN LEARNING TRUST T/A FERRYHILL BUSINESS & ENTERPRISE COLLEGE.
Children and Young Peoples Services,Head of Education and Skills,Transfer Payments,510034,School Children,01/12/2020,3810031-LACPP2021AUTUMN,"4,800.00",EDEN LEARNING TRUST T/A SEAHAM HIGH SCHOOL.
Children and Young Peoples Services,Head of Education and Skills,Transfer Payments,510034,School Children,01/12/2020,3810032-LACPP2021AUTUMN,"3,000.00",EDEN LEARNING TRUST T/A TANFIELD SCHOOL.
Children and Young Peoples Services,Head of Education and Skills,Transfer Payments,510034,School Children,01/12/2020,3810033-LACPP2021AUTUMN,"3,600.00",EDEN LEARNING TRUST T/A WOODHAM ACADEMY.
Children and Young Peoples Services,Head of Education and Skills,Transfer Payments,510034,School Children,01/12/2020,3810046-LACPP2021AUTUMN,"7,600.00",EXCEL ACADEMY PARTNERSHIP T/A FRAMWELLGATE SCHOOL DURHAM.
Children and Young Peoples Services,Head of Education and Skills,Transfer Payments,510034,School Children,01/12/2020,3810082-LACPP2021AUTUMN,"1,800.00",HARTSIDE PRIMARY ACADEMY.
Children and Young Peoples Services,Head of Education and Skills,Transfer Payments,510034,School Children,01/12/2020,3810093-LACPP2021AUTUMN,"4,200.00",HOPE WOOD ACADEMY.
Children and Young Peoples Services,Head of Education and Skills,Transfer Payments,510034,School Children,01/12/2020,3810120-LACPP2021AUTUMN,"3,600.00",KING JAMES I ACADEMY.
Children and Young Peoples Services,Head of Education and Skills,Transfer Payments,510034,School Children,01/12/2020,3810152-LACPP2021AUTUMN,"4,200.00",NEW COLLEGE ACADEMIES TRUST - CONSETT ACADEMY.
Children and Young Peoples Services,Head of Education and Skills,Transfer Payments,510034,School Children,01/12/2020,3810156-LACPP2021AUTUMN,600.00,NORTH DURHAM ACADEMY.
Children and Young Peoples Services,Head of Education and Skills,Transfer Payments,510034,School Children,01/12/2020,3810157-LACPP2021AUTUMN-BROWNEY,"1,800.00",NORTH EAST LEARNING TRUST (NELT).
Children and Young Peoples Services,Head of Education and Skills,Transfer Payments,510034,School Children,01/12/2020,3810157-LACPP2021AUTUMN-EASINGTON,"3,600.00",NORTH EAST LEARNING TRUST (NELT).
Children and Young Peoples Services,Head of Education and Skills,Transfer Payments,510034,School Children,01/12/2020,3810157-LACPP2021AUTUMN-HERMITAGE,"4,200.00",NORTH EAST LEARNING TRUST (NELT).
Children and Young Peoples Services,Head of Education and Skills,Transfer Payments,510034,School Children,01/12/2020,3810157-LACPP2021AUTUMN-SACRISTON,"1,200.00",NORTH EAST LEARNING TRUST (NELT).
Children and Young Peoples Services,Head of Education and Skills,Transfer Payments,510034,School Children,01/12/2020,3810157-LACPP2021AUTUMN-SHOTTON,"7,800.00",NORTH EAST LEARNING TRUST (NELT).
Children and Young Peoples Services,Head of Education and Skills,Transfer Payments,510034,School Children,01/12/2020,3810157-LACPP2021AUTUMN-TEESDALE,"3,000.00",NORTH EAST LEARNING TRUST (NELT).
Children and Young Peoples Services,Head of Education and Skills,Transfer Payments,510034,School Children,01/12/2020,3810169-LACPP2021AUTUMN,600.00,OUSTON PRIMARY SCHOOL (PART OF JIGSAW LEARNING TRUST).
Children and Young Peoples Services,Head of Education and Skills,Transfer Payments,510034,School Children,01/12/2020,3810175-LACPP2021AUTUMN,"1,800.00",PARK VIEW ACADEMY.
Children and Young Peoples Services,Head of Education and Skills,Transfer Payments,510034,School Children,01/12/2020,3810207-LACPP2021AUTUMN,"2,400.00",RIBBON ACADEMY TRUST.
Children and Young Peoples Services,Head of Education and Skills,Transfer Payments,510034,School Children,01/12/2020,3810242-LACPP2021AUTUMN,"5,400.00",ST BEDES CATHOLIC ACADEMY (LANCHESTER).
Children and Young Peoples Services,Head of Education and Skills,Transfer Payments,510034,School Children,01/12/2020,3810244-LACPP2021AUTUMN,"2,400.00",STAINDROP ACADEMY.
Children and Young Peoples Services,Head of Education and Skills,Transfer Payments,510034,School Children,01/12/2020,3810245-LACPP2021AUTUMN,"2,400.00",STANLEY LEARNING PARTNERSHIP.
Children and Young Peoples Services,Head of Education and Skills,Transfer Payments,510034,School Children,01/12/2020,3810247-LACPP2021AUTUMN,"2,400.00",STEPHENSON WAY ACADEMY & NURSERY SCHOOL.
Children and Young Peoples Services,Head of Education and Skills,Transfer Payments,510034,School Children,01/12/2020,3810272-LACPP2021AUTUMN,"1,200.00",TUDHOE COLLIERY ACADEMY.
Children and Young Peoples Services,Head of Education and Skills,Transfer Payments,510034,School Children,01/12/2020,3810273-LACPP2021AUTUMN,"1,200.00",TUDHOE LEARNING TRUST T/A SOUTH HETTON PRIMARY SCHOOL.
Children and Young Peoples Services,Head of Education and Skills,Transfer Payments,510034,School Children,01/12/2020,3810285-LACPP2021AUTUMN,"1,200.00",VICTORIA LANE ACADEMY.
Children and Young Peoples Services,Head of Education and Skills,Transfer Payments,510034,School Children,01/12/2020,3810296-LACPP2021AUTUMN,"2,400.00",WHITWORTH PARK SCHOOL.*
Neighbourhoods and Climate Change,Environmental Services,Transport,230005,Contract Hire,01/12/2020,3810071-INV00015028,"4,290.00",GO PLANT FLEET SERVICES LTD.*
Neighbourhoods and Climate Change,Environmental Services,Transport,230005,Contract Hire,01/12/2020,3810072-0001218618,954.00,GO PLANT LTD T/A GPL HIRE.
Neighbourhoods and Climate Change,Environmental Services,Transport,230005,Contract Hire,01/12/2020,3810146-423722,722.40,MINSTER SELF DRIVE.
Neighbourhoods and Climate Change,Environmental Services,Transport,230005,Contract Hire,01/12/2020,3810268-22181,975.00,TRASH UK LTD.
Neighbourhoods and Climate Change,Environmental Services,Transport,230005,Contract Hire,01/12/2020,3810268-22204,975.00,TRASH UK LTD.
Dedicated Schools Grant BG0015,DSG High Needs Block,Central Support and Other Recharges,689987,Unclassified E690,01/12/2020,3809977-OOAT2&3,"19,969.00",CATCOTE ACADEMY.
Dedicated Schools Grant BG0015,DSG High Needs Block,Central Support and Other Recharges,689987,Unclassified E690,01/12/2020,3810029-OOAT2&3,"7,055.00",EDEN ACADEMY T/A HEXHAM PRIORY SCHOOL.
Dedicated Schools Grant BG0015,DSG High Needs Block,Central Support and Other Recharges,689987,Unclassified E690,01/12/2020,3810038-OOAT2&3,"99,658.00",EDUCATION VILLAGE ACADEMY TRUST.*
Dedicated Schools Grant BG0015,DSG High Needs Block,Central Support and Other Recharges,689987,Unclassified E690,01/12/2020,3810063-OOAT2&3,"27,933.00",GATESHEAD COUNCIL.
Dedicated Schools Grant BG0015,DSG High Needs Block,Central Support and Other Recharges,689987,Unclassified E690,01/12/2020,3810136-OOAT2&3,"8,063.00",MARCHBANK FREE SCHOOL.
Dedicated Schools Grant BG0015,DSG High Needs Block,Central Support and Other Recharges,689987,Unclassified E690,01/12/2020,3810255-OOAT2&3,"13,990.00",THE CEDARS ACADEMY TRUST.
Dedicated Schools Grant BG0015,DSG High Needs Block,Central Support and Other Recharges,689987,Unclassified E690,01/12/2020,3810269-OOAT2&3,"29,380.00",TRINITY ACADEMY NEW BRIDGE.*
Dedicated Schools Grant BG0015,DSG High Needs Block,Central Support and Other Recharges,689987,Unclassified E690,01/12/2020,3810270-OOAT2&3,"32,409.00",TRINITY ACADEMY NEWCASTLE.
Dedicated Schools Grant BG0015,DSG High Needs Block,Central Support and Other Recharges,689987,Unclassified E690,01/12/2020,3810299-OOAT2&3,"8,136.00",WISE ACADEMIES LTD.
Neighbourhoods and Climate Change,Environmental Services,Stock A926,926004,Stock,01/12/2020,3810064-IN235477,"1,205.40",GB LUBRICANTS LTD.
Neighbourhoods and Climate Change,Environmental Services,Stock A926,926004,Stock,01/12/2020,3810064-IN235331,"1,869.94",GB LUBRICANTS LTD.
Neighbourhoods and Climate Change,Environmental Services,Stock A926,926004,Stock,01/12/2020,3810075-266924,830.72,GREENLAY T/A THOMAS SHERRIFF & CO LTD.
Resources BK0010,Digital and Customer Services,Stock A926,926900,Stock in hand-Inventory system,01/12/2020,3810305-KX89151,907.47,XMA LTD.
Neighbourhoods and Climate Change,Technical Services CM0300,Stock A926,926900,Stock in hand-Inventory system,01/12/2020,3810081-SI-6391,539.00,HARELAW SAWMILL LTD.
Neighbourhoods and Climate Change,Technical Services CM0300,Stock A926,926900,Stock in hand-Inventory system,01/12/2020,3810115-0120/00234966,852.00,JT DOVE LTD.
Neighbourhoods and Climate Change,Technical Services CM0300,Stock A926,926900,Stock in hand-Inventory system,01/12/2020,3810174-XL262867,"1,575.00",PARK ELECTRICAL DISTRIBUTORS LTD.
Neighbourhoods and Climate Change,Technical Services CM0300,Stock A926,926900,Stock in hand-Inventory system,01/12/2020,3810219-20211000002026,532.60,SCARAB SWEEPERS LTD.
Neighbourhoods and Climate Change,Technical Services CM0300,Stock A926,926900,Stock in hand-Inventory system,01/12/2020,3810261-NSIN00039704,"1,376.80",THOMAS OWEN & SONS (NEWCASTLE) LTD.
Neighbourhoods and Climate Change,Technical Services CM0300,Stock A926,926900,Stock in hand-Inventory system,01/12/2020,3810261-NSIN00047005,652.80,THOMAS OWEN & SONS (NEWCASTLE) LTD.
Neighbourhoods and Climate Change,Technical Services CM0300,Stock A926,926900,Stock in hand-Inventory system,01/12/2020,3810261-NSIN00047010,561.48,THOMAS OWEN & SONS (NEWCASTLE) LTD.
Neighbourhoods and Climate Change,Technical Services CM0300,Stock A926,926900,Stock in hand-Inventory system,01/12/2020,3810261-NSIN00047012,571.65,THOMAS OWEN & SONS (NEWCASTLE) LTD.
Neighbourhoods and Climate Change,Technical Services CM0300,Stock A926,926900,Stock in hand-Inventory system,01/12/2020,3810265-104067,"1,843.24",TOTAL RENTAL SOLUTIONS.
"Regeneration, Economy and Growth",Development and Housing,Supplies and Services,372009,Subscriptions E372,01/12/2020,3810085-50188749,871.50,HAYMARKET MEDIA GROUP LTD.
Resources BK0010,Digital and Customer Services,Supplies and Services,304639,Equipment and Materials,01/12/2020,3810195-1454064DE,838.40,QUALTEX UK LTD.
Dedicated Schools Grant BG0015,DSG High Needs Block,Central Support and Other Recharges,689996,Unclassified E690,01/12/2020,3809977-OOAT2&3/4,"1,232.00",CATCOTE ACADEMY.
"Regeneration, Economy and Growth",Corporate Property and Land,Premises,145052,Cleaning and Domestic Supplies,01/12/2020,3809985-CC128470,946.00,CITY CLEAN NORTHERN LTD.
"Regeneration, Economy and Growth",Corporate Property and Land,Premises,145052,Cleaning and Domestic Supplies,01/12/2020,3809985-CC128531,"2,395.00",CITY CLEAN NORTHERN LTD.
Neighbourhoods and Climate Change,Environmental Services,Transport,215023,Running Costs of Vehicles,02/12/2020,3810352-50SI5108627,520.26,BRENNTAG UK LTD.
"Regeneration, Economy and Growth",Business Durham CL0850,Supplies and Services,336005,Advertising E336,02/12/2020,3810342-515,"4,760.00",BETTER BRAND AGENCY LTD.
"Regeneration, Economy and Growth",Business Durham CL0850,Supplies and Services,336005,Advertising E336,02/12/2020,3810625-1081,"3,780.00",SHARP AHEAD LTD.
"Regeneration, Economy and Growth",Business Durham CL0850,Supplies and Services,336005,Advertising E336,02/12/2020,3810682-24922,"2,000.00",WARD TIMBER LTD.
Chief Executive's Office,Communications Management,Supplies and Services,336005,Advertising E336,02/12/2020,3810546-34789851,500.00,NEWSQUEST (YORKSHIRE & NORTH EAST) LTD.
Chief Executive's Office,Communications Management,Supplies and Services,336005,Advertising E336,02/12/2020,3810546-34789900,"1,000.00",NEWSQUEST (YORKSHIRE & NORTH EAST) LTD.
Chief Executive's Office,Communications Management,Supplies and Services,336005,Advertising E336,02/12/2020,3810546-34789993,"1,000.00",NEWSQUEST (YORKSHIRE & NORTH EAST) LTD.
Chief Executive's Office,Communications Management,Supplies and Services,336005,Advertising E336,02/12/2020,3810546-34835403,750.00,NEWSQUEST (YORKSHIRE & NORTH EAST) LTD.
Chief Executive's Office,Communications Management,Supplies and Services,336005,Advertising E336,02/12/2020,3810546-34851387,550.00,NEWSQUEST (YORKSHIRE & NORTH EAST) LTD.
Chief Executive's Office,Communications Management,Supplies and Services,336005,Advertising E336,02/12/2020,3810546-34988285,"1,000.00",NEWSQUEST (YORKSHIRE & NORTH EAST) LTD.
Chief Executive's Office,Communications Management,Supplies and Services,336005,Advertising E336,02/12/2020,3810546-34989534,"1,500.00",NEWSQUEST (YORKSHIRE & NORTH EAST) LTD.
Chief Executive's Office,Communications Management,Supplies and Services,336005,Advertising E336,02/12/2020,3810546-34990270,544.83,NEWSQUEST (YORKSHIRE & NORTH EAST) LTD.
"Regeneration, Economy and Growth",Development and Housing,Supplies and Services,336005,Advertising E336,02/12/2020,3810546-35176626,565.11,NEWSQUEST (YORKSHIRE & NORTH EAST) LTD.
Children and Young Peoples Services,Head of Early Help Inclusion & Vulnerable Children.,Premises,108251,Service Repairs and Maintenance,02/12/2020,3810321-58393,"1,000.00",ALARM RADIO MONITORING LTD.
Children and Young Peoples Services,Head of Education and Skills,Transfer Payments,510035,School Children,02/12/2020,3810621-CAS-10-2020-088REPAYMENT,"1,500.00",SEDGEFIELD COMMUNITY COLLEGE.
Resources BK0010,Legal & Democratic Services,Supplies and Services,338042,Services,02/12/2020,3810576-INV/SHR25,510.00,PARKLANE PLOWDEN CHAMBERS (BARRISTERS).
Neighbourhoods and Climate Change,Technical Services CM0300,Fees,901004,Capital - Detailed Design,02/12/2020,3810546-35161314,511.78,NEWSQUEST (YORKSHIRE & NORTH EAST) LTD.
"Regeneration, Economy and Growth",Culture Sport and Tourism,Supplies and Services,328041,Clothing uniforms and laundry E328,02/12/2020,3810663-NSIN00046860,"1,318.47",THOMAS OWEN & SONS (NEWCASTLE) LTD.
Resources BK0010,Digital and Customer Services,Supplies and Services,342033,Computers and Communications,02/12/2020,3810695-KX87738,"1,505.00",XMA LTD.
Resources BK0010,Digital and Customer Services,Supplies and Services,342033,Computers and Communications,02/12/2020,3810695-KX89302,855.00,XMA LTD.
Resources BK0010,Corporate Finance & Commercial Services,Supplies and Services,342053,Computers and Communications,02/12/2020,3810567-1786250,"10,936.50",ORACLE CORPORATION UK LTD.
Resources BK0010,Digital and Customer Services,Supplies and Services,342053,Computers and Communications,02/12/2020,3810679-VSL10752,"48,000.00",VERISMIC SOFTWARE LTD.
Neighbourhoods and Climate Change,Technical Services CM0300,Construction work A908,908105,Construction work,02/12/2020,3810318-28442496,"52,905.42",AECOM LTD.
Adult and Health Services,Adults Excluded,Supplies and Services,338027,Services,02/12/2020,3810676-VB0013,"1,500.00",REDACTED - PAYMENT TO INDIVIDUAL
Children and Young Peoples Services,Head of Education and Skills,Transport,230034,Contract Hire,02/12/2020,3810331-NOV2020-2,"1,176.00",ARMSTRONG`S TAXIS.
Children and Young Peoples Services,Head of Education and Skills,Transport,230034,Contract Hire,02/12/2020,3810488-50NOV20,"1,512.00",JOHN CRAKE & SONS MINI BUSES LTD.
Children and Young Peoples Services,Head of Education and Skills,Transport,230035,Contract Hire,02/12/2020,3810517-199,"2,031.08",M BUTCHER T/A M & M`S TAXIS.
Children and Young Peoples Services,Head of Education and Skills,Transport,230007,Contract Hire,02/12/2020,3810345-063,"2,740.00",BL CARS.
Children and Young Peoples Services,Head of Education and Skills,Transport,230007,Contract Hire,02/12/2020,3810365-051,714.00,CHANNER`S CABS.
Children and Young Peoples Services,Head of Education and Skills,Transport,230007,Contract Hire,02/12/2020,3810454-74939,"8,964.06",GO GATESHEAD LTD.
Children and Young Peoples Services,Head of Education and Skills,Transport,230007,Contract Hire,02/12/2020,3810456-03NOV20,"2,720.00",GRAHAM WILLIAMS T/A BUS 2 MINIBUS HIRE.
Children and Young Peoples Services,Head of Education and Skills,Transport,230007,Contract Hire,02/12/2020,3810477-6018,789.39,J YOUNG T/A VIP TAXIS.
Children and Young Peoples Services,Head of Education and Skills,Transport,230007,Contract Hire,02/12/2020,3810543-1/NOVEMBER2020,"1,916.25",NC TAXI`S.
Children and Young Peoples Services,Head of Education and Skills,Transport,230007,Contract Hire,02/12/2020,3810554-6625,"2,829.54",NORTH EAST COACHWAYS LTD.
Children and Young Peoples Services,Head of Education and Skills,Transport,230007,Contract Hire,02/12/2020,3810554-6622,"2,436.00",NORTH EAST COACHWAYS LTD.
Children and Young Peoples Services,Head of Education and Skills,Transport,230007,Contract Hire,02/12/2020,3810554-6623,"2,751.00",NORTH EAST COACHWAYS LTD.
Children and Young Peoples Services,Head of Education and Skills,Transport,230007,Contract Hire,02/12/2020,3810554-6627,"2,856.00",NORTH EAST COACHWAYS LTD.
Children and Young Peoples Services,Head of Education and Skills,Transport,230007,Contract Hire,02/12/2020,3810554-6628,"3,848.25",NORTH EAST COACHWAYS LTD.
Children and Young Peoples Services,Head of Education and Skills,Transport,230007,Contract Hire,02/12/2020,3810554-6620,"3,802.20",NORTH EAST COACHWAYS LTD.
Children and Young Peoples Services,Head of Education and Skills,Transport,230007,Contract Hire,02/12/2020,3810554-6626,"2,751.00",NORTH EAST COACHWAYS LTD.
Children and Young Peoples Services,Head of Education and Skills,Transport,230007,Contract Hire,02/12/2020,3810606-1468,"5,063.96",ROBERTS TOURS.
Children and Young Peoples Services,Head of Education and Skills,Transport,230007,Contract Hire,02/12/2020,3810637-05297,"2,833.90",STANLEY TRAVEL (NORTH EAST) LTD.
Children and Young Peoples Services,Head of Education and Skills,Transport,230007,Contract Hire,02/12/2020,3810642-6558,"2,110.00",STEPHEN MAUDE LTD T/A MAUDES COACHES.
Children and Young Peoples Services,Head of Education and Skills,Transport,230003,Contract Hire,02/12/2020,3810554-6624,"3,906.00",NORTH EAST COACHWAYS LTD.
Dedicated Schools Grant BG0015,DSG High Needs Block,Transport,230009,Contract Hire,02/12/2020,3810405-78,"1,051.00",DAVID WILKINSON (TAXIS).
Dedicated Schools Grant BG0015,DSG High Needs Block,Transport,230009,Contract Hire,02/12/2020,3810637-05307,"1,233.00",STANLEY TRAVEL (NORTH EAST) LTD.
Children and Young Peoples Services,Head of Education and Skills,Transport,230009,Contract Hire,02/12/2020,3810405-77,"1,916.00",DAVID WILKINSON (TAXIS).
Children and Young Peoples Services,Head of Education and Skills,Transport,230009,Contract Hire,02/12/2020,3810444-4-NOV20,"1,512.00",G ANGHEL T/A A TAXI.
Children and Young Peoples Services,Head of Education and Skills,Transport,230009,Contract Hire,02/12/2020,3810538-114,"1,302.00",MR NEIL LEONARD T/A LENNY`S TAXIS.
Children and Young Peoples Services,Head of Education and Skills,Transport,230006,Contract Hire,02/12/2020,3810312-NOVERMBER01,"2,705.00",A & P TAXIS.
Children and Young Peoples Services,Head of Education and Skills,Transport,230006,Contract Hire,02/12/2020,3810312-OCTOBER02-F856,"2,085.00",A & P TAXIS.
Children and Young Peoples Services,Head of Education and Skills,Transport,230006,Contract Hire,02/12/2020,3810320-256,"1,717.00",ALANS TAXIS BARNARD CASTLE.
Children and Young Peoples Services,Head of Education and Skills,Transport,230006,Contract Hire,02/12/2020,3810341-16,"1,805.38",BELMONT TAXIS.
Children and Young Peoples Services,Head of Education and Skills,Transport,230006,Contract Hire,02/12/2020,3810347-32750,"1,115.30",BLUELINE TAXIS.
Children and Young Peoples Services,Head of Education and Skills,Transport,230006,Contract Hire,02/12/2020,3810366-03-NOVEMBER,"1,004.50",CHAPMAN TRAVEL.
Children and Young Peoples Services,Head of Education and Skills,Transport,230006,Contract Hire,02/12/2020,3810366-15/NOVEMBER,"1,757.00",CHAPMAN TRAVEL.
Children and Young Peoples Services,Head of Education and Skills,Transport,230006,Contract Hire,02/12/2020,3810393-24,"1,881.81",CRAIG MASSEY`S TAXIS.
Children and Young Peoples Services,Head of Education and Skills,Transport,230006,Contract Hire,02/12/2020,3810393-25,"1,545.00",CRAIG MASSEY`S TAXIS.
Children and Young Peoples Services,Head of Education and Skills,Transport,230006,Contract Hire,02/12/2020,3810395-110383,536.07,CROFT BUSINESS SERVICES (UK) LTD T/A CROFT TAXIS.
Children and Young Peoples Services,Head of Education and Skills,Transport,230006,Contract Hire,02/12/2020,3810468-44,920.00,HORNDALE TAXIS LTD.
Children and Young Peoples Services,Head of Education and Skills,Transport,230006,Contract Hire,02/12/2020,3810470-460,"2,465.00",IAN CLYDESDALE T/A BURNOPFIELD TAXIS.
Children and Young Peoples Services,Head of Education and Skills,Transport,230006,Contract Hire,02/12/2020,3810477-6016,985.26,J YOUNG T/A VIP TAXIS.
Children and Young Peoples Services,Head of Education and Skills,Transport,230006,Contract Hire,02/12/2020,3810477-6020,564.00,J YOUNG T/A VIP TAXIS.
Children and Young Peoples Services,Head of Education and Skills,Transport,230006,Contract Hire,02/12/2020,3810477-6023,"1,227.40",J YOUNG T/A VIP TAXIS.
Children and Young Peoples Services,Head of Education and Skills,Transport,230006,Contract Hire,02/12/2020,3810477-6024,"1,099.00",J YOUNG T/A VIP TAXIS.
Children and Young Peoples Services,Head of Education and Skills,Transport,230006,Contract Hire,02/12/2020,3810491-216,867.10,JOHN ROBSON T/A ACE TAXIS.
Children and Young Peoples Services,Head of Education and Skills,Transport,230006,Contract Hire,02/12/2020,3810507-1859,884.00,LD TAXIS.
Children and Young Peoples Services,Head of Education and Skills,Transport,230006,Contract Hire,02/12/2020,3810535-139,"1,036.00",MR JOHN ALLINSON T/A AALPHA TAXIS.
Children and Young Peoples Services,Head of Education and Skills,Transport,230006,Contract Hire,02/12/2020,3810538-117,"1,252.00",MR NEIL LEONARD T/A LENNY`S TAXIS.
Children and Young Peoples Services,Head of Education and Skills,Transport,230006,Contract Hire,02/12/2020,3810582-3-NOVEMBER,"1,832.00",PETER`S TAXIS.
Children and Young Peoples Services,Head of Education and Skills,Transport,230006,Contract Hire,02/12/2020,3810584-38130,"2,075.00",PHOENIX TAXIS T/A PRATT`S TAXIS.
Children and Young Peoples Services,Head of Education and Skills,Transport,230006,Contract Hire,02/12/2020,3810584-38134,"1,190.00",PHOENIX TAXIS T/A PRATT`S TAXIS.
Children and Young Peoples Services,Head of Education and Skills,Transport,230006,Contract Hire,02/12/2020,3810598-176152,986.00,RAPID MINIBUSES.
Children and Young Peoples Services,Head of Education and Skills,Transport,230006,Contract Hire,02/12/2020,3810600-003-NOVEMBER,"1,905.00",RAYMOND CHURNSIDE T/A S & L TAXI.
Children and Young Peoples Services,Head of Education and Skills,Transport,230006,Contract Hire,02/12/2020,3810634-ADS000208,"1,348.00",SPENNYMOOR TAXIS.
Children and Young Peoples Services,Head of Education and Skills,Transport,230006,Contract Hire,02/12/2020,3810634-ADS200149,"1,124.00",SPENNYMOOR TAXIS.
Children and Young Peoples Services,Head of Education and Skills,Transport,230006,Contract Hire,02/12/2020,3810640-7SEP20,"1,386.00",STEELYS TAXIS.
Children and Young Peoples Services,Head of Education and Skills,Transport,230006,Contract Hire,02/12/2020,3810640-8OCT20,"1,204.00",STEELYS TAXIS.
Children and Young Peoples Services,Head of Education and Skills,Transport,230006,Contract Hire,02/12/2020,3810643-2102,"2,286.00",STEPHEN REED T/A STEVE`S TAXIS.
Children and Young Peoples Services,Head of Education and Skills,Transport,230010,Contract Hire,02/12/2020,3810450-30,"1,694.22",GERARD MCLOUGHLIN T/A GMAC TAXIS.
Children and Young Peoples Services,Head of Education and Skills,Transport,230010,Contract Hire,02/12/2020,3810506-B035-OCT,"3,540.00",LARS CARS LTD T/A STREETCARS.
Children and Young Peoples Services,Head of Education and Skills,Transport,230010,Contract Hire,02/12/2020,3810516-252,"1,551.06",LUMLEY TAXIS.
Children and Young Peoples Services,Head of Education and Skills,Transport,230010,Contract Hire,02/12/2020,3810637-05296,"1,541.56",STANLEY TRAVEL (NORTH EAST) LTD.
Children and Young Peoples Services,Head of Education and Skills,Transport,230012,Contract Hire,02/12/2020,3810347-31301,"1,885.18",BLUELINE TAXIS.
Children and Young Peoples Services,Head of Education and Skills,Transport,230012,Contract Hire,02/12/2020,3810634-JP000202,"1,100.00",SPENNYMOOR TAXIS.
Children and Young Peoples Services,Head of Education and Skills,Transport,230016,Contract Hire,02/12/2020,3810477-6019,"1,458.00",J YOUNG T/A VIP TAXIS.
Children and Young Peoples Services,Head of Education and Skills,Transport,230016,Contract Hire,02/12/2020,3810482-66/N089,550.00,JAYS TAXIS/JOHN GARLAND (TAXIS).
Children and Young Peoples Services,Head of Education and Skills,Transport,230016,Contract Hire,02/12/2020,3810517-200,840.00,M BUTCHER T/A M & M`S TAXIS.
Children and Young Peoples Services,Head of Education and Skills,Transport,230008,Contract Hire,02/12/2020,3810327-0096,"1,449.00",ANDREW SIMPSON T/A ANDY`S CABS.
Children and Young Peoples Services,Head of Education and Skills,Transport,230008,Contract Hire,02/12/2020,3810331-NOV2020-1,"1,534.68",ARMSTRONG`S TAXIS.
Children and Young Peoples Services,Head of Education and Skills,Transport,230008,Contract Hire,02/12/2020,3810333-DCC10OCT20,"3,174.00",ATLAS TAXIS BISHOP AUCKLAND.
Children and Young Peoples Services,Head of Education and Skills,Transport,230008,Contract Hire,02/12/2020,3810346-E013-NOV20,"1,999.20",BLACKHALL TAXIS.
Children and Young Peoples Services,Head of Education and Skills,Transport,230008,Contract Hire,02/12/2020,3810376-INV-049,"1,330.00",CLARE LYNSEY STEWART T/A K&C TAXIS.
Children and Young Peoples Services,Head of Education and Skills,Transport,230008,Contract Hire,02/12/2020,3810386-1698,"1,992.00",CONNORS MINI BUSES.*
Children and Young Peoples Services,Head of Education and Skills,Transport,230008,Contract Hire,02/12/2020,3810393-23,"1,588.50",CRAIG MASSEY`S TAXIS.
Children and Young Peoples Services,Head of Education and Skills,Transport,230008,Contract Hire,02/12/2020,3810395-110380,"5,015.64",CROFT BUSINESS SERVICES (UK) LTD T/A CROFT TAXIS.
Children and Young Peoples Services,Head of Education and Skills,Transport,230008,Contract Hire,02/12/2020,3810402-3600,"2,625.19",DAVES MINIBUSES.
Children and Young Peoples Services,Head of Education and Skills,Transport,230008,Contract Hire,02/12/2020,3810402-3601,"1,967.50",DAVES MINIBUSES.
Children and Young Peoples Services,Head of Education and Skills,Transport,230008,Contract Hire,02/12/2020,3810402-3591OCT20,"1,584.06",DAVES MINIBUSES.
Children and Young Peoples Services,Head of Education and Skills,Transport,230008,Contract Hire,02/12/2020,3810402-3598,"2,445.20",DAVES MINIBUSES.
Children and Young Peoples Services,Head of Education and Skills,Transport,230008,Contract Hire,02/12/2020,3810402-3599,"1,863.60",DAVES MINIBUSES.
Children and Young Peoples Services,Head of Education and Skills,Transport,230008,Contract Hire,02/12/2020,3810402-3602,"2,108.00",DAVES MINIBUSES.
Children and Young Peoples Services,Head of Education and Skills,Transport,230008,Contract Hire,02/12/2020,3810443-101917,"1,313.42",G & P JOHNSON LTD T/A NIGHTINGALE COACHES.
Children and Young Peoples Services,Head of Education and Skills,Transport,230008,Contract Hire,02/12/2020,3810453-011/NOV,"2,259.60",GMC TAXIS NORTH EAST.
Children and Young Peoples Services,Head of Education and Skills,Transport,230008,Contract Hire,02/12/2020,3810470-467,"1,887.00",IAN CLYDESDALE T/A BURNOPFIELD TAXIS.
Children and Young Peoples Services,Head of Education and Skills,Transport,230008,Contract Hire,02/12/2020,3810470-466,"2,992.00",IAN CLYDESDALE T/A BURNOPFIELD TAXIS.
Children and Young Peoples Services,Head of Education and Skills,Transport,230008,Contract Hire,02/12/2020,3810470-461,"3,604.00",IAN CLYDESDALE T/A BURNOPFIELD TAXIS.
Children and Young Peoples Services,Head of Education and Skills,Transport,230008,Contract Hire,02/12/2020,3810481-0780,"1,623.50",JACKSON`S TAXI.
Children and Young Peoples Services,Head of Education and Skills,Transport,230008,Contract Hire,02/12/2020,3810487-31-10-2020B,"2,264.85",JL EBDON. T/A DIAL-A-CAB.
Children and Young Peoples Services,Head of Education and Skills,Transport,230008,Contract Hire,02/12/2020,3810507-1856,"2,175.60",LD TAXIS.
Children and Young Peoples Services,Head of Education and Skills,Transport,230008,Contract Hire,02/12/2020,3810507-1858,"2,040.00",LD TAXIS.
Children and Young Peoples Services,Head of Education and Skills,Transport,230008,Contract Hire,02/12/2020,3810507-1860,984.00,LD TAXIS.
Children and Young Peoples Services,Head of Education and Skills,Transport,230008,Contract Hire,02/12/2020,3810517-201,"1,384.50",M BUTCHER T/A M & M`S TAXIS.
Children and Young Peoples Services,Head of Education and Skills,Transport,230008,Contract Hire,02/12/2020,3810517-202,"1,302.00",M BUTCHER T/A M & M`S TAXIS.
Children and Young Peoples Services,Head of Education and Skills,Transport,230008,Contract Hire,02/12/2020,3810518-46,"2,562.00",M&C`S CABS LTD.
Children and Young Peoples Services,Head of Education and Skills,Transport,230008,Contract Hire,02/12/2020,3810519-65,"1,336.70",MALCOLM CARR T/A CARLY CABS.
Children and Young Peoples Services,Head of Education and Skills,Transport,230008,Contract Hire,02/12/2020,3810520-INV09/202021,"2,668.56",MARK & JOHN CHISHOLM T/A (CHEVRON).
Children and Young Peoples Services,Head of Education and Skills,Transport,230008,Contract Hire,02/12/2020,3810520-INV10/202021,"3,068.40",MARK & JOHN CHISHOLM T/A (CHEVRON).
Children and Young Peoples Services,Head of Education and Skills,Transport,230008,Contract Hire,02/12/2020,3810520-INV10/202006,"2,292.28",MARK & JOHN CHISHOLM T/A (CHEVRON).
Children and Young Peoples Services,Head of Education and Skills,Transport,230008,Contract Hire,02/12/2020,3810520-INV10/202007,"2,119.90",MARK & JOHN CHISHOLM T/A (CHEVRON).
Children and Young Peoples Services,Head of Education and Skills,Transport,230008,Contract Hire,02/12/2020,3810520-INV10/202008,"1,819.00",MARK & JOHN CHISHOLM T/A (CHEVRON).
Children and Young Peoples Services,Head of Education and Skills,Transport,230008,Contract Hire,02/12/2020,3810520-INVO09/202006,"2,975.95",MARK & JOHN CHISHOLM T/A (CHEVRON).
Children and Young Peoples Services,Head of Education and Skills,Transport,230008,Contract Hire,02/12/2020,3810521-0049,"2,331.00",MARK WATSON T/A MARK`S TAXIS.
Children and Young Peoples Services,Head of Education and Skills,Transport,230008,Contract Hire,02/12/2020,3810521-0050,"1,512.00",MARK WATSON T/A MARK`S TAXIS.
Children and Young Peoples Services,Head of Education and Skills,Transport,230008,Contract Hire,02/12/2020,3810527-NOV20,"3,762.00",MICHAEL ANDERSON T/A TAXI DURHAM.
Children and Young Peoples Services,Head of Education and Skills,Transport,230008,Contract Hire,02/12/2020,3810528-INV196,"1,512.00",MICHAEL COBB T/A HAIL TAXIS.
Children and Young Peoples Services,Head of Education and Skills,Transport,230008,Contract Hire,02/12/2020,3810531-A007-SEPT,"4,026.00",MOLLY`S TAXIS LTD.
Children and Young Peoples Services,Head of Education and Skills,Transport,230008,Contract Hire,02/12/2020,3810536-53,"2,806.00",MR JOHN KNIGHTON T/A JK TAXIS.
Children and Young Peoples Services,Head of Education and Skills,Transport,230008,Contract Hire,02/12/2020,3810538-119,"1,914.50",MR NEIL LEONARD T/A LENNY`S TAXIS.
Children and Young Peoples Services,Head of Education and Skills,Transport,230008,Contract Hire,02/12/2020,3810538-115,"1,808.20",MR NEIL LEONARD T/A LENNY`S TAXIS.
Children and Young Peoples Services,Head of Education and Skills,Transport,230008,Contract Hire,02/12/2020,3810538-120,"3,048.20",MR NEIL LEONARD T/A LENNY`S TAXIS.
Children and Young Peoples Services,Head of Education and Skills,Transport,230008,Contract Hire,02/12/2020,3810538-118,"2,037.00",MR NEIL LEONARD T/A LENNY`S TAXIS.
Children and Young Peoples Services,Head of Education and Skills,Transport,230008,Contract Hire,02/12/2020,3810581-3/20/21,"1,290.00",PETER TAYLOR T/A PT TAXI.
Children and Young Peoples Services,Head of Education and Skills,Transport,230008,Contract Hire,02/12/2020,3810587-1353,"2,888.20",PODA TAXIS LTD.
Children and Young Peoples Services,Head of Education and Skills,Transport,230008,Contract Hire,02/12/2020,3810587-1352,"2,142.00",PODA TAXIS LTD.
Children and Young Peoples Services,Head of Education and Skills,Transport,230008,Contract Hire,02/12/2020,3810598-17604,"1,922.34",RAPID MINIBUSES.
Children and Young Peoples Services,Head of Education and Skills,Transport,230008,Contract Hire,02/12/2020,3810598-176042,"1,556.18",RAPID MINIBUSES.
Children and Young Peoples Services,Head of Education and Skills,Transport,230008,Contract Hire,02/12/2020,3810598-17606,"1,722.00",RAPID MINIBUSES.
Children and Young Peoples Services,Head of Education and Skills,Transport,230008,Contract Hire,02/12/2020,3810598-176062,"1,394.00",RAPID MINIBUSES.
Children and Young Peoples Services,Head of Education and Skills,Transport,230008,Contract Hire,02/12/2020,3810607-1833,"2,142.00",RON`S TAXIS (FISHBURN).
Children and Young Peoples Services,Head of Education and Skills,Transport,230008,Contract Hire,02/12/2020,3810607-1834,"3,231.90",RON`S TAXIS (FISHBURN).
Children and Young Peoples Services,Head of Education and Skills,Transport,230008,Contract Hire,02/12/2020,3810616-187,"2,074.00",SAM MONTAGUE T/A 8 SEATER TRAVEL.
Children and Young Peoples Services,Head of Education and Skills,Transport,230008,Contract Hire,02/12/2020,3810626-6021,"1,848.00",SHOTTON PRIVATE HIRE.
Children and Young Peoples Services,Head of Education and Skills,Transport,230008,Contract Hire,02/12/2020,3810634-AL000207,"2,433.30",SPENNYMOOR TAXIS.
Children and Young Peoples Services,Head of Education and Skills,Transport,230008,Contract Hire,02/12/2020,3810634-LTDD000204,"2,440.00",SPENNYMOOR TAXIS.
Children and Young Peoples Services,Head of Education and Skills,Transport,230008,Contract Hire,02/12/2020,3810634-000203,"2,583.00",SPENNYMOOR TAXIS.
Children and Young Peoples Services,Head of Education and Skills,Transport,230008,Contract Hire,02/12/2020,3810634-NUB000206,"2,037.00",SPENNYMOOR TAXIS.
Children and Young Peoples Services,Head of Education and Skills,Transport,230008,Contract Hire,02/12/2020,3810634-AAN000205,"2,016.00",SPENNYMOOR TAXIS.
Children and Young Peoples Services,Head of Education and Skills,Transport,230008,Contract Hire,02/12/2020,3810637-05312,"1,522.50",STANLEY TRAVEL (NORTH EAST) LTD.
Children and Young Peoples Services,Head of Education and Skills,Transport,230008,Contract Hire,02/12/2020,3810653-DCC/2020/55,"1,438.22",TAYLOR`S TAXIS.
Children and Young Peoples Services,Head of Education and Skills,Transport,230008,Contract Hire,02/12/2020,3810653-DCC/2020/57,"2,580.00",TAYLOR`S TAXIS.
Children and Young Peoples Services,Head of Education and Skills,Transport,230008,Contract Hire,02/12/2020,3810653-DCC/2020/58,"2,552.10",TAYLOR`S TAXIS.
Children and Young Peoples Services,Head of Education and Skills,Transport,230008,Contract Hire,02/12/2020,3810653-DCC/2020/51,"3,117.00",TAYLOR`S TAXIS.
Children and Young Peoples Services,Head of Education and Skills,Transport,230008,Contract Hire,02/12/2020,3810653-DCC/2020/56,"3,764.00",TAYLOR`S TAXIS.
Children and Young Peoples Services,Head of Education and Skills,Transport,230008,Contract Hire,02/12/2020,3810687-WESTLEA301120,"1,115.18",WESTLEA TAXIS.
"Regeneration, Economy and Growth",Transport and Contracted Services,Third Party Payments,430109,Rendered by Private Contractors,02/12/2020,3810605-256644,"1,080.00",RITHERDON & CO LTD.
Neighbourhoods and Climate Change,Technical Services CM0300,Third Party Payments,460006,Contract Payments,02/12/2020,3810476-INV-20452,"2,100.00",INTEGRATED SKILLS LTD.
Neighbourhoods and Climate Change,Environmental Services,Third Party Payments,430113,Rendered by Private Contractors,02/12/2020,3810627-171260,"4,491.62",SHOWSEC INTERNATIONAL LTD.
Neighbourhoods and Climate Change,Environmental Services,Third Party Payments,430113,Rendered by Private Contractors,02/12/2020,3810627-171263,"4,564.63",SHOWSEC INTERNATIONAL LTD.
Neighbourhoods and Climate Change,Environmental Services,Third Party Payments,430113,Rendered by Private Contractors,02/12/2020,3810627-171266,"1,503.02",SHOWSEC INTERNATIONAL LTD.
Resources BK0010,Legal & Democratic Services,Supplies and Services,338102,Services,02/12/2020,3810325-007865,"4,745.00",ANALYTICAL SERVICES INTERNATIONAL LTD.
"Regeneration, Economy and Growth",Corporate Property and Land,Supplies and Services,304221,Equipment and Materials,02/12/2020,3810424-059-272774,710.61,EDMUNDSON ELECTRICAL LTD.
"Regeneration, Economy and Growth",Corporate Property and Land,Supplies and Services,304221,Equipment and Materials,02/12/2020,3810574-XL262866,"10,000.00",PARK ELECTRICAL DISTRIBUTORS LTD.
"Regeneration, Economy and Growth",Corporate Property and Land,Supplies and Services,304221,Equipment and Materials,02/12/2020,3810667-33764,"2,760.00",TOTAL PUMP SOLUTIONS LTD.
Neighbourhoods and Climate Change,Environmental Services,Supplies and Services,304221,Equipment and Materials,02/12/2020,3810319-CD971055195,"1,195.44",AGROVISTA UK LTD FORMERLY SHERRIFF AMENITY.
Neighbourhoods and Climate Change,Environmental Services,Supplies and Services,304221,Equipment and Materials,02/12/2020,3810367-267721,752.32,CHAS LONG & SON (AGGREGATES) LTD.
Neighbourhoods and Climate Change,Technical Services CM0300,Supplies and Services,304221,Equipment and Materials,02/12/2020,3810314-010764,"5,080.87",A HILL & SONS LTD.
Neighbourhoods and Climate Change,Technical Services CM0300,Supplies and Services,304221,Equipment and Materials,02/12/2020,3810438-134884,"2,824.80",FABRIKAT (NOTTINGHAM) LTD.
Neighbourhoods and Climate Change,Technical Services CM0300,Supplies and Services,304221,Equipment and Materials,02/12/2020,3810494-0113/00234964,502.80,JT DOVE LTD.
Neighbourhoods and Climate Change,Technical Services CM0300,Supplies and Services,304221,Equipment and Materials,02/12/2020,3810651-9042705281,743.38,TARMAC TRADING LTD.
Neighbourhoods and Climate Change,Technical Services CM0300,Supplies and Services,304221,Equipment and Materials,02/12/2020,3810651-9042713317,779.88,TARMAC TRADING LTD.
Neighbourhoods and Climate Change,Technical Services CM0300,Supplies and Services,304221,Equipment and Materials,02/12/2020,3810651-9042713319,901.95,TARMAC TRADING LTD.
Neighbourhoods and Climate Change,Technical Services CM0300,Supplies and Services,304221,Equipment and Materials,02/12/2020,3810672-216832,816.22,TYNEDALE ROADSTONE LTD.
Dedicated Schools Grant BG0015,DSG High Needs Block,Central Support and Other Recharges,689988,Unclassified E690,02/12/2020,315350-OOAT2&3,"6,406.00",MILL HILL PRIMARY SCHOOL.
"Regeneration, Economy and Growth",Culture Sport and Tourism,Supplies and Services,304259,Equipment and Materials,02/12/2020,3810627-171274,"6,464.64",SHOWSEC INTERNATIONAL LTD.
Dedicated Schools Grant BG0015,DSG High Needs Block,Supplies and Services,304259,Equipment and Materials,02/12/2020,3810328-257830,505.49,ANN ARBOR PUBLISHERS.
Dedicated Schools Grant BG0015,DSG High Needs Block,Supplies and Services,304259,Equipment and Materials,02/12/2020,3810451-SINV00291882,825.60,GL ASSESSMENT LTD.
Neighbourhoods and Climate Change,Environmental Services,Supplies and Services,304259,Equipment and Materials,02/12/2020,3810350-3060270199,726.40,BOC LTD.
Neighbourhoods and Climate Change,Environmental Services,Supplies and Services,304259,Equipment and Materials,02/12/2020,3810544-INVHE55740,599.70,NE TRUCK SPARES LTD (NETS).
Children and Young Peoples Services,Head of Early Help Inclusion & Vulnerable Children.,Supplies and Services,304259,Equipment and Materials,02/12/2020,3810633-108644,955.00,SPACEKRAFT LTD.
Neighbourhoods and Climate Change,Environmental Services,Supplies and Services,304252,Equipment and Materials,02/12/2020,3810556-21064,929.61,NORTHBURN TECHNICAL SERVICES LTD.
"Regeneration, Economy and Growth",Business Durham CL0850,Premises,120021,Energy Costs,02/12/2020,3810391-15698011,515.01,CORONA ENERGY RETAIL 2 LTD.
"Regeneration, Economy and Growth",Business Durham CL0850,Premises,120021,Energy Costs,02/12/2020,3810391-15697632,"1,226.97",CORONA ENERGY RETAIL 2 LTD.
Resources - C A C,Non Distributed Costs,Supplies and Services,338059,Services,02/12/2020,3810526-INV-0986,660.00,MEDICALS PLUS LTD.
Resources BK0010,Legal & Democratic Services,Supplies and Services,384927,Miscellaneous Expenses,02/12/2020,3810579-RES-12-2020-013,557.62,PAUL STEPHEN SAUNDERS.
Adult and Health Services,Commissioning inc Supporting People,Third Party Payments,479111,Purchase of Care,02/12/2020,3810644-MSSI2337,"8,522.50",STROKE ASSOCIATION.
Resources BK0010,Legal & Democratic Services,Supplies and Services,384999,Miscellaneous Expenses,02/12/2020,3810418-DMA/JM/00002,"1,432.11",DURHAM MINERS` ASSOCIATION.
Resources BK0010,Legal & Democratic Services,Supplies and Services,384999,Miscellaneous Expenses,02/12/2020,3810629-SI-9081,"2,023.56",SILVA LEGAL SERVICES.
"Regeneration, Economy and Growth",Corporate Property and Land,Supplies and Services,384199,Miscellaneous Expenses,02/12/2020,3810472-91239738,"25,005.43",IHS (GLOBAL) LTD.
"Regeneration, Economy and Growth",Culture Sport and Tourism,Supplies and Services,384199,Miscellaneous Expenses,02/12/2020,3810557-2020/23,875.00,NORTHERN CHILDRENS BOOK FESTIVAL (NCBF).
Neighbourhoods and Climate Change,Environmental Services,Supplies and Services,384199,Miscellaneous Expenses,02/12/2020,3810411-INV-0262,"10,000.00",DIGVENTURES LTD.
Neighbourhoods and Climate Change,Environmental Services,Supplies and Services,384199,Miscellaneous Expenses,02/12/2020,3810496-1295,"19,690.00",JW BAINBRIDGE CONTRACTORS LTD.
Resources BK0010,Legal & Democratic Services,Supplies and Services,384199,Miscellaneous Expenses,02/12/2020,3810560-23498,762.50,NORTHGENE LTD.
"Regeneration, Economy and Growth",Transport and Contracted Services,Third Party Payments,430106,Rendered by Private Contractors,02/12/2020,3810618-3071,"49,631.40",SCARLET BAND BUS & COACH LTD.
Neighbourhoods and Climate Change,Community Protection,Third Party Payments,430100,Rendered by Private Contractors,02/12/2020,3810523-2020/81,"1,424.15",MAURICE DALEY PARTNERSHIP.
"Regeneration, Economy and Growth",Corporate Property and Land,Third Party Payments,430100,Rendered by Private Contractors,02/12/2020,3810474-9806,"7,048.15",INGLEFORD SCAFFOLDING LTD.
"Regeneration, Economy and Growth",Corporate Property and Land,Third Party Payments,430100,Rendered by Private Contractors,02/12/2020,3810502-L008421/04,"2,134.45",KINGFISHER UPVC WINDOWS & DOORS LTD T/A KINGFISHER COMMERCIAL.
"Regeneration, Economy and Growth",Corporate Property and Land,Third Party Payments,430100,Rendered by Private Contractors,02/12/2020,3810529-30559/92187180,"1,192.00",MITIE PROPERTY SERVICES (UK) LTD.
"Regeneration, Economy and Growth",Corporate Property and Land,Third Party Payments,430100,Rendered by Private Contractors,02/12/2020,3810565-10594-02,"1,137.22",OPUS BUILDING SERVICES LTD.
"Regeneration, Economy and Growth",Corporate Property and Land,Third Party Payments,430100,Rendered by Private Contractors,02/12/2020,3810565-10594-05,"1,158.68",OPUS BUILDING SERVICES LTD.
"Regeneration, Economy and Growth",Corporate Property and Land,Third Party Payments,430100,Rendered by Private Contractors,02/12/2020,3810565-10594-06,"1,155.27",OPUS BUILDING SERVICES LTD.
"Regeneration, Economy and Growth",Corporate Property and Land,Third Party Payments,430100,Rendered by Private Contractors,02/12/2020,3810565-10594-08,"1,181.77",OPUS BUILDING SERVICES LTD.
"Regeneration, Economy and Growth",Corporate Property and Land,Third Party Payments,430100,Rendered by Private Contractors,02/12/2020,3810565-10594-10,"1,147.12",OPUS BUILDING SERVICES LTD.
"Regeneration, Economy and Growth",Corporate Property and Land,Third Party Payments,430100,Rendered by Private Contractors,02/12/2020,3810690-52187,586.03,WILLOWCRETE MANUFACTURING COMPANY LTD (MFG).
"Regeneration, Economy and Growth",Corporate Property and Land,Third Party Payments,430100,Rendered by Private Contractors,02/12/2020,3810690-52188,752.10,WILLOWCRETE MANUFACTURING COMPANY LTD (MFG).
Neighbourhoods and Climate Change,Environmental Services,Third Party Payments,430100,Rendered by Private Contractors,02/12/2020,3810572-SIP096241,560.00,OWEN SPRINGS LTD.
Neighbourhoods and Climate Change,Environmental Services,Third Party Payments,430100,Rendered by Private Contractors,02/12/2020,3810658-SIP-38307,506.82,TH WHITE LTD.
Neighbourhoods and Climate Change,Technical Services CM0300,Third Party Payments,430100,Rendered by Private Contractors,02/12/2020,3810383-I20D0469,"20,882.37",COLAS LTD.
Neighbourhoods and Climate Change,Technical Services CM0300,Third Party Payments,430100,Rendered by Private Contractors,02/12/2020,3810466-3163,"4,485.00",HIGHWAY CONSTRUCTION SERVICES LTD.
Neighbourhoods and Climate Change,Technical Services CM0300,Third Party Payments,430100,Rendered by Private Contractors,02/12/2020,3810466-3164,"2,860.00",HIGHWAY CONSTRUCTION SERVICES LTD.
Neighbourhoods and Climate Change,Technical Services CM0300,Third Party Payments,430100,Rendered by Private Contractors,02/12/2020,3810622-22407,"47,145.94",SEYMOUR (CIVIL ENGINEERING CONTRACTORS) LTD.
"Regeneration, Economy and Growth",Transport and Contracted Services,Third Party Payments,430100,Rendered by Private Contractors,02/12/2020,3810639-16386,"6,372.96",STEADFAST SECURITY SOLUTIONS LTD.
"Regeneration, Economy and Growth",Transport and Contracted Services,Third Party Payments,430100,Rendered by Private Contractors,02/12/2020,3810639-16389,"1,448.40",STEADFAST SECURITY SOLUTIONS LTD.
"Regeneration, Economy and Growth",Transport and Contracted Services,Third Party Payments,430100,Rendered by Private Contractors,02/12/2020,3810639-16461,"1,301.52",STEADFAST SECURITY SOLUTIONS LTD.
Neighbourhoods and Climate Change,Technical Services CM0300,Supplies and Services,338066,Services,02/12/2020,3810645-32219,"2,400.00",SURVEY OPERATIONS LTD.
Neighbourhoods and Climate Change,Technical Services CM0300,Supplies and Services,338066,Services,02/12/2020,3810645-32221,"2,400.00",SURVEY OPERATIONS LTD.
Adult and Health Services,Public Health CC0450,Third Party Payments,460802,Contract Payments,02/12/2020,3810408-HEALTHCHECKS/018,"18,220.00",DERWENTSIDE HEALTHCARE LTD.
Adult and Health Services,Public Health CC0450,Third Party Payments,460803,Contract Payments,02/12/2020,3810381-3910018345,"118,256.00",CO DURHAM & DARLINGTON NHS FOUNDATION TRUST.
Adult and Health Services,Public Health CC0450,Third Party Payments,460803,Contract Payments,02/12/2020,3810525-INV-0383,"9,970.00",MCDONOUGH MARKETING COMMUNICATIONS LTD T/A MMC.
Children and Young Peoples Services,Head of Education and Skills,Transfer Payments,510034,School Children,02/12/2020,315484-LACPP2021AUTUMN,"6,000.00",SEDGEFIELD COMMUNITY COLLEGE.
Children and Young Peoples Services,Head of Education and Skills,Transfer Payments,510034,School Children,02/12/2020,315484-LACPP2021SUMMER,"3,600.00",SEDGEFIELD COMMUNITY COLLEGE.
"Regeneration, Economy and Growth",Culture Sport and Tourism,Supplies and Services,384167,Miscellaneous Expenses,02/12/2020,3810595-9195,"4,350.00",QUEST & NBS.
"Regeneration, Economy and Growth",Culture Sport and Tourism,Supplies and Services,384167,Miscellaneous Expenses,02/12/2020,3810595-9196,"2,900.00",QUEST & NBS.
"Regeneration, Economy and Growth",Culture Sport and Tourism,Supplies and Services,384167,Miscellaneous Expenses,02/12/2020,3810595-9193,"4,350.00",QUEST & NBS.
Adult and Health Services,Central/Other,Transport,230005,Contract Hire,02/12/2020,3810464-13-DM208,710.00,HARDIP SINGH MAHIL T/A AMBER CARS.
Adult and Health Services,Central/Other,Transport,230005,Contract Hire,02/12/2020,3810506-DW141-OCT,"1,743.00",LARS CARS LTD T/A STREETCARS.
Adult and Health Services,Head of Adults,Transport,230005,Contract Hire,02/12/2020,3810346-EAS193-NOV20,"1,187.00",BLACKHALL TAXIS.
Adult and Health Services,Head of Adults,Transport,230005,Contract Hire,02/12/2020,3810484-1914,"2,413.50",JDS PRIVATE HIRE DURHAM.
Adult and Health Services,Head of Adults,Transport,230005,Contract Hire,02/12/2020,3810507-1857,"1,561.98",LD TAXIS.
Adult and Health Services,Head of Adults,Transport,230005,Contract Hire,02/12/2020,3810598-17604OCT20,"1,235.00",RAPID MINIBUSES.
Adult and Health Services,Head of Adults,Transport,230005,Contract Hire,02/12/2020,3810598-17604SEP20,"1,520.00",RAPID MINIBUSES.
Adult and Health Services,Head of Adults,Transport,230005,Contract Hire,02/12/2020,3810607-1832,"1,388.88",RON`S TAXIS (FISHBURN).
Adult and Health Services,Head of Adults,Transport,230005,Contract Hire,02/12/2020,3810611-DM211/NOV,"2,040.00",S DUNCAN PRIVATE HIRE.
Children and Young Peoples Services,Head of Childrens Social Care,Transport,230005,Contract Hire,02/12/2020,3810378-CLUB2048F,550.00,CLUBMAN CABS.
Children and Young Peoples Services,Head of Childrens Social Care,Transport,230005,Contract Hire,02/12/2020,3810378-CLUB2048M,500.00,CLUBMAN CABS.
Children and Young Peoples Services,Head of Childrens Social Care,Transport,230005,Contract Hire,02/12/2020,3810378-CLUB2048B,592.00,CLUBMAN CABS.
Children and Young Peoples Services,Head of Childrens Social Care,Transport,230005,Contract Hire,02/12/2020,3810514-4846,"2,680.00",LOCAL TRANSPORT LTD.
Children and Young Peoples Services,Head of Childrens Social Care,Transport,230005,Contract Hire,02/12/2020,3810514-4852,"3,100.00",LOCAL TRANSPORT LTD.
"Regeneration, Economy and Growth",Corporate Property and Land,Premises,150015,Apportioned Exps of Operational Blds,02/12/2020,3810446-411103260,748.00,GAP GROUP LTD.
Neighbourhoods and Climate Change,Technical Services CM0300,Premises,150015,Apportioned Exps of Operational Blds,02/12/2020,3810445-411011570,748.00,GAP GROUP LTD.
Neighbourhoods and Climate Change,Technical Services CM0300,Premises,150015,Apportioned Exps of Operational Blds,02/12/2020,3810446-411011553,925.00,GAP GROUP LTD.
Neighbourhoods and Climate Change,Technical Services CM0300,Premises,150015,Apportioned Exps of Operational Blds,02/12/2020,3810446-411011569,748.00,GAP GROUP LTD.
Neighbourhoods and Climate Change,Technical Services CM0300,Premises,150015,Apportioned Exps of Operational Blds,02/12/2020,3810446-411103261,862.84,GAP GROUP LTD.
Neighbourhoods and Climate Change,Technical Services CM0300,Premises,150015,Apportioned Exps of Operational Blds,02/12/2020,3810446-411103272,748.00,GAP GROUP LTD.
Neighbourhoods and Climate Change,Technical Services CM0300,Premises,150015,Apportioned Exps of Operational Blds,02/12/2020,3810446-411103273,748.00,GAP GROUP LTD.
Neighbourhoods and Climate Change,Technical Services CM0300,Premises,150015,Apportioned Exps of Operational Blds,02/12/2020,3810446-411103275,"1,100.00",GAP GROUP LTD.
Neighbourhoods and Climate Change,Technical Services CM0300,Premises,150015,Apportioned Exps of Operational Blds,02/12/2020,3810530-7001796444,577.01,MOBILE MINI UK LTD.
Neighbourhoods and Climate Change,Technical Services CM0300,Premises,150015,Apportioned Exps of Operational Blds,02/12/2020,3810530-7001807061,770.13,MOBILE MINI UK LTD.
Neighbourhoods and Climate Change,Technical Services CM0300,Premises,150015,Apportioned Exps of Operational Blds,02/12/2020,3810530-7001807062,770.13,MOBILE MINI UK LTD.
Neighbourhoods and Climate Change,Technical Services CM0300,Premises,150015,Apportioned Exps of Operational Blds,02/12/2020,3810530-7001807067,780.76,MOBILE MINI UK LTD.
Neighbourhoods and Climate Change,Technical Services CM0300,Premises,150015,Apportioned Exps of Operational Blds,02/12/2020,3810685-1059882,"1,289.38",WERNICK HIRE LTD.
Neighbourhoods and Climate Change,Technical Services CM0300,Premises,150015,Apportioned Exps of Operational Blds,02/12/2020,3810685-1059889,667.48,WERNICK HIRE LTD.
Neighbourhoods and Climate Change,Environmental Services,Stock A926,926004,Stock,02/12/2020,3810440-IN200260,611.00,FM STEELSTOCK LTD.
Resources BK0010,Digital and Customer Services,Stock A926,926900,Stock in hand-Inventory system,02/12/2020,3810406-7402666356,"1,002.00",DELL COMPUTER CORPORATION LTD.
Resources BK0010,Digital and Customer Services,Stock A926,926900,Stock in hand-Inventory system,02/12/2020,3810406-7402666357,501.00,DELL COMPUTER CORPORATION LTD.
Neighbourhoods and Climate Change,Technical Services CM0300,Stock A926,926900,Stock in hand-Inventory system,02/12/2020,3810379-769208,"1,347.00",CMT EQUIPMENT LTD.
Neighbourhoods and Climate Change,Technical Services CM0300,Stock A926,926900,Stock in hand-Inventory system,02/12/2020,3810460-06/099519,600.00,GREENHAM TRADING LTD.
Neighbourhoods and Climate Change,Technical Services CM0300,Stock A926,926900,Stock in hand-Inventory system,02/12/2020,3810574-XL262973,"2,922.75",PARK ELECTRICAL DISTRIBUTORS LTD.
Neighbourhoods and Climate Change,Technical Services CM0300,Stock A926,926900,Stock in hand-Inventory system,02/12/2020,3810574-XL262974,"2,805.84",PARK ELECTRICAL DISTRIBUTORS LTD.
Neighbourhoods and Climate Change,Technical Services CM0300,Stock A926,926900,Stock in hand-Inventory system,02/12/2020,3810574-XL262976,"1,286.40",PARK ELECTRICAL DISTRIBUTORS LTD.
Neighbourhoods and Climate Change,Technical Services CM0300,Stock A926,926900,Stock in hand-Inventory system,02/12/2020,3810631-194179,"2,805.84",SNAPFAST.
Neighbourhoods and Climate Change,Environmental Services,Transport,210057,Repair and Maintenance of Vehicles,02/12/2020,3810340-35192355,643.94,BELL TRUCK SALES LTD T/A BELL TRUCK & VAN.
Neighbourhoods and Climate Change,Environmental Services,Transport,210057,Repair and Maintenance of Vehicles,02/12/2020,3810368-408112,553.96,CHATFIELDS T/A EVANS HALSHAW.
Neighbourhoods and Climate Change,Environmental Services,Transport,210057,Repair and Maintenance of Vehicles,02/12/2020,3810369-717787,530.52,CHATFIELDS T/A EVANS HALSHAW.
Neighbourhoods and Climate Change,Environmental Services,Transport,210057,Repair and Maintenance of Vehicles,02/12/2020,3810407-DE11363381,"1,532.17",DENNIS EAGLE LTD.
Neighbourhoods and Climate Change,Environmental Services,Transport,210057,Repair and Maintenance of Vehicles,02/12/2020,3810407-DE11361489,563.29,DENNIS EAGLE LTD.
Neighbourhoods and Climate Change,Environmental Services,Transport,210057,Repair and Maintenance of Vehicles,02/12/2020,3810555-1898515,"1,126.07",NORTH EAST TRUCK & VAN LTD.
Neighbourhoods and Climate Change,Environmental Services,Transport,210057,Repair and Maintenance of Vehicles,02/12/2020,3810555-21860145,"1,793.90",NORTH EAST TRUCK & VAN LTD.
Neighbourhoods and Climate Change,Environmental Services,Transport,210057,Repair and Maintenance of Vehicles,02/12/2020,3810604-749600,512.92,RICKERBY LTD.
"Regeneration, Economy and Growth",Development and Housing,Supplies and Services,338094,Services,02/12/2020,3810547-3606,"1,050.00",NEWTON AYCLIFFE YOUTH & COMMUNITY CENTRE.
Children and Young Peoples Services,Childrens Services Operational Support,Supplies and Services,338089,Services,02/12/2020,3810431-INV-0220,"2,020.00",EMILY SWEETMAN LTD.
Children and Young Peoples Services,Childrens Services Operational Support,Supplies and Services,338089,Services,02/12/2020,3810431-INV-0221,"1,980.00",EMILY SWEETMAN LTD.
Neighbourhoods and Climate Change,Environmental Services,Supplies and Services,384606,Miscellaneous Expenses,02/12/2020,3810397-RED-12-2020-001,"4,738.50",CUMBRIA ACTION FOR SUSTAINABILITY.
Neighbourhoods and Climate Change,Environmental Services,Supplies and Services,384606,Miscellaneous Expenses,02/12/2020,3810398-RED-12-2020-002,876.00,CUMBRIA COUNTY COUNCIL..
Neighbourhoods and Climate Change,Environmental Services,Supplies and Services,384606,Miscellaneous Expenses,02/12/2020,3810423-RED-12-2020-003,"4,391.70",EDEN RIVERS TRUST.
Neighbourhoods and Climate Change,Environmental Services,Supplies and Services,384606,Miscellaneous Expenses,02/12/2020,3810609-RED-12-2020-005,"6,621.51",ROYAL SOCIETY FOR THE PROTECTION OF BIRDS (RSPB).*
Neighbourhoods and Climate Change,Environmental Services,Supplies and Services,384606,Miscellaneous Expenses,02/12/2020,3810659-RED-12-2020-004,519.07,THE FARMER NETWORK LTD.
"Regeneration, Economy and Growth",Corporate Property and Land,Premises,135005,Water Services,02/12/2020,3810683-888888964051009073BALANCE,"2,474.91",WAVE (AWBN).
Children and Young Peoples Services,Head of Education and Skills,Third Party Payments,410037,Rendered by Other Local Authorities,03/12/2020,3811004-51565678,"1,003.95",PROTOCOL EDUCATION LTD.*
Children and Young Peoples Services,Head of Education and Skills,Third Party Payments,410037,Rendered by Other Local Authorities,03/12/2020,3811004-51570705,"1,003.95",PROTOCOL EDUCATION LTD.*
Children and Young Peoples Services,Head of Childrens Social Care,Employees,080025,Agency Staff,03/12/2020,3810865-2443936,"124,950.27",GEOMETRIC RESULTS INTERNATIONAL.
Neighbourhoods and Climate Change,Environmental Services,Transport,215012,Running Costs of Vehicles,03/12/2020,3810791-195442,906.50,CHEVIN FLEET SOLUTIONS LTD.
"Regeneration, Economy and Growth",Culture Sport and Tourism,Supplies and Services,312013,Newspapers books and periodicals E312,03/12/2020,3810753-57327,559.96,BOLINDA DIGITAL LTD.
Adult and Health Services,Head of Adults,Third Party Payments,479150,Purchase of Care,03/12/2020,3810928-INFECTIONCONTROLFUND2/1,"18,675.72",KINGSWAY CARE HOME LTD.
"Regeneration, Economy and Growth",Culture Sport and Tourism,Supplies and Services,342215,Computers and Communications,03/12/2020,3810777-10703,"1,400.00",BRAMBLE HUB LTD.
Resources BK0010,Digital and Customer Services,Vehicles Equipment Furniture and Fittings,912701,Computer equipment,03/12/2020,3811061-135037,"3,712.50",SWITCHSHOP LTD.
Resources BK0010,Digital and Customer Services,Supplies and Services,342033,Computers and Communications,03/12/2020,3811116-KX92410,"3,225.00",XMA LTD.
Resources BK0010,Digital and Customer Services,Supplies and Services,342051,Computers and Communications,03/12/2020,3811037-INV02764416,"2,697.01",SOFTCAT LTD.
Dedicated Schools Grant BG0015,DSG High Needs Block,Supplies and Services,352001,Conference Expenses,03/12/2020,3810963-SLINV/00004050,880.00,NEW COLLEGE DURHAM.
Children and Young Peoples Services,Head of Early Help Inclusion & Vulnerable Children.,Supplies and Services,352001,Conference Expenses,03/12/2020,3810982-1019,"4,950.00",OUR NORTHERN STARS LTD.
Neighbourhoods and Climate Change,Environmental Services,Construction work A908,908105,Construction work,03/12/2020,3810903-U110043381,"1,642.00",INTEGRATED UTILITY SERVICES LTD.*
Children and Young Peoples Services,Head of Education and Skills,Construction work A908,908105,Construction work,03/12/2020,3810978-A203786,"1,331.20",OPENREACH LLU.
Children and Young Peoples Services,Head of Education and Skills,Construction work A908,908105,Construction work,03/12/2020,3811024-5933,"25,200.00",SAFE STRIP UK LTD.
"Regeneration, Economy and Growth",Transport and Contracted Services,Construction work A908,908105,Construction work,03/12/2020,3810962-1271226,"39,087.88",NETWORK RAIL.
Children and Young Peoples Services,Head of Education and Skills,Transport,230007,Contract Hire,03/12/2020,3810991-39,"1,197.00",PETER NAYLOR.
Children and Young Peoples Services,Head of Education and Skills,Transport,230007,Contract Hire,03/12/2020,3810991-38,"1,620.00",PETER NAYLOR.
Children and Young Peoples Services,Head of Education and Skills,Transport,230007,Contract Hire,03/12/2020,3810991-40,"1,152.00",PETER NAYLOR.
Children and Young Peoples Services,Head of Education and Skills,Transport,230006,Contract Hire,03/12/2020,3810954-E102,"1,052.60",MR DOMINICK JONES T/A DJ PRIVATE HIRE.
Children and Young Peoples Services,Head of Education and Skills,Transport,230010,Contract Hire,03/12/2020,3811077-BL027/NOV,"1,581.72",THOMAS GLEN.
Children and Young Peoples Services,Head of Education and Skills,Transport,230010,Contract Hire,03/12/2020,3811077-BL07OCT,"1,268.83",THOMAS GLEN.
Children and Young Peoples Services,Head of Education and Skills,Transport,230008,Contract Hire,03/12/2020,3810728-007,"3,885.00",AUCKLAND TRAVEL.
Children and Young Peoples Services,Head of Education and Skills,Transport,230008,Contract Hire,03/12/2020,3810728-008,"2,646.00",AUCKLAND TRAVEL.
Children and Young Peoples Services,Head of Education and Skills,Transport,230008,Contract Hire,03/12/2020,3810728-009,"2,814.00",AUCKLAND TRAVEL.
Children and Young Peoples Services,Head of Education and Skills,Transport,230008,Contract Hire,03/12/2020,3810954-E052/NOV,"1,420.00",MR DOMINICK JONES T/A DJ PRIVATE HIRE.
Children and Young Peoples Services,Head of Education and Skills,Transport,230008,Contract Hire,03/12/2020,3810954-M054/NOV,"1,660.00",MR DOMINICK JONES T/A DJ PRIVATE HIRE.
Children and Young Peoples Services,Head of Education and Skills,Transport,230008,Contract Hire,03/12/2020,3810954-N073/NOV,695.50,MR DOMINICK JONES T/A DJ PRIVATE HIRE.
Children and Young Peoples Services,Head of Education and Skills,Transport,230008,Contract Hire,03/12/2020,3810954-E046/NOV,932.50,MR DOMINICK JONES T/A DJ PRIVATE HIRE.
Neighbourhoods and Climate Change,Environmental Services,Third Party Payments,430113,Rendered by Private Contractors,03/12/2020,3811032-171314,"4,492.62",SHOWSEC INTERNATIONAL LTD.
Neighbourhoods and Climate Change,Environmental Services,Third Party Payments,430113,Rendered by Private Contractors,03/12/2020,3811032-171317,"4,614.35",SHOWSEC INTERNATIONAL LTD.
Neighbourhoods and Climate Change,Environmental Services,Third Party Payments,430113,Rendered by Private Contractors,03/12/2020,3811032-171320,"1,531.02",SHOWSEC INTERNATIONAL LTD.
Neighbourhoods and Climate Change,Environmental Services,Third Party Payments,460305,Contract Payments,03/12/2020,3810796-CN30051460.,829.38,CITRON HYGIENE UK LTD.
Neighbourhoods and Climate Change,Technical Services CM0300,Third Party Payments,430127,Rendered by Private Contractors,03/12/2020,3810896-2820,760.00,IAN C LIDDLE T/A IC LIDDLE SERVICES.
Neighbourhoods and Climate Change,Technical Services CM0300,Third Party Payments,430127,Rendered by Private Contractors,03/12/2020,3810896-2821,732.50,IAN C LIDDLE T/A IC LIDDLE SERVICES.
Neighbourhoods and Climate Change,Technical Services CM0300,Third Party Payments,430128,Rendered by Private Contractors,03/12/2020,3810727-21/10/2020,500.00,AST LEE & SON.
Neighbourhoods and Climate Change,Technical Services CM0300,Third Party Payments,430128,Rendered by Private Contractors,03/12/2020,3810897-C420,"1,525.00",IAN WILSON.
"Regeneration, Economy and Growth",Transport and Contracted Services,Supplies and Services,384899,Miscellaneous Expenses,03/12/2020,3811030-RED-12-2020-025,570.75,SHERBURN VILLAGE PARISH COUNCIL.
Neighbourhoods and Climate Change,Partnerships & Community Engagement Div.,Cap Exp on Grants & Other Financial Assistance (REFCUS),918004,Contributions to other bodies 918004,03/12/2020,3811068-VOUCHER20NB-TEES009,"10,731.00",TEESDALE GUN CLUB LTD.
"Regeneration, Economy and Growth",Corporate Property and Land,Supplies and Services,304221,Equipment and Materials,03/12/2020,3810979-10594-07,"1,190.77",OPUS BUILDING SERVICES LTD.
"Regeneration, Economy and Growth",Corporate Property and Land,Supplies and Services,304221,Equipment and Materials,03/12/2020,3811063-492705,610.65,T CROSSLING & CO LTD.
"Regeneration, Economy and Growth",Corporate Property and Land,Supplies and Services,304221,Equipment and Materials,03/12/2020,3811110-982806E,"1,406.50",WINDCREST LIFTBITS LTD.
Neighbourhoods and Climate Change,Technical Services CM0300,Supplies and Services,304221,Equipment and Materials,03/12/2020,3810749-BMPR/369/BJW,910.00,BISHOP MIDDLEHAM PLANT & RECYCLING LTD.
Neighbourhoods and Climate Change,Technical Services CM0300,Supplies and Services,304221,Equipment and Materials,03/12/2020,3811086-215979,"1,075.15",TYNEDALE ROADSTONE LTD.
Neighbourhoods and Climate Change,Technical Services CM0300,Supplies and Services,304221,Equipment and Materials,03/12/2020,3811086-215985,"1,071.19",TYNEDALE ROADSTONE LTD.
Neighbourhoods and Climate Change,Technical Services CM0300,Supplies and Services,304221,Equipment and Materials,03/12/2020,3811086-216449,671.77,TYNEDALE ROADSTONE LTD.
Neighbourhoods and Climate Change,Technical Services CM0300,Supplies and Services,304221,Equipment and Materials,03/12/2020,3811086-216451,544.16,TYNEDALE ROADSTONE LTD.
Neighbourhoods and Climate Change,Technical Services CM0300,Supplies and Services,304221,Equipment and Materials,03/12/2020,3811086-216586,615.79,TYNEDALE ROADSTONE LTD.
Neighbourhoods and Climate Change,Technical Services CM0300,Supplies and Services,304221,Equipment and Materials,03/12/2020,3811086-216587,705.88,TYNEDALE ROADSTONE LTD.
Neighbourhoods and Climate Change,Technical Services CM0300,Supplies and Services,304221,Equipment and Materials,03/12/2020,3811086-216677,"1,087.03",TYNEDALE ROADSTONE LTD.
Neighbourhoods and Climate Change,Technical Services CM0300,Supplies and Services,304221,Equipment and Materials,03/12/2020,3811086-216682,516.79,TYNEDALE ROADSTONE LTD.
Neighbourhoods and Climate Change,Technical Services CM0300,Supplies and Services,304221,Equipment and Materials,03/12/2020,3811086-216683,604.90,TYNEDALE ROADSTONE LTD.
Neighbourhoods and Climate Change,Technical Services CM0300,Supplies and Services,304221,Equipment and Materials,03/12/2020,3811086-216689,610.84,TYNEDALE ROADSTONE LTD.
Neighbourhoods and Climate Change,Technical Services CM0300,Supplies and Services,304221,Equipment and Materials,03/12/2020,3811086-216815,"1,044.46",TYNEDALE ROADSTONE LTD.
Neighbourhoods and Climate Change,Technical Services CM0300,Supplies and Services,304221,Equipment and Materials,03/12/2020,3811086-216822,596.98,TYNEDALE ROADSTONE LTD.
Neighbourhoods and Climate Change,Technical Services CM0300,Supplies and Services,304221,Equipment and Materials,03/12/2020,3811086-216831,"1,060.30",TYNEDALE ROADSTONE LTD.
Neighbourhoods and Climate Change,Technical Services CM0300,Supplies and Services,304221,Equipment and Materials,03/12/2020,3811086-216919,604.90,TYNEDALE ROADSTONE LTD.
Neighbourhoods and Climate Change,Technical Services CM0300,Supplies and Services,304221,Equipment and Materials,03/12/2020,3811086-216921,"1,005.85",TYNEDALE ROADSTONE LTD.
Neighbourhoods and Climate Change,Technical Services CM0300,Supplies and Services,304221,Equipment and Materials,03/12/2020,3811086-216922,"1,086.04",TYNEDALE ROADSTONE LTD.
Neighbourhoods and Climate Change,Technical Services CM0300,Supplies and Services,304221,Equipment and Materials,03/12/2020,3811086-216925,862.07,TYNEDALE ROADSTONE LTD.
Neighbourhoods and Climate Change,Technical Services CM0300,Supplies and Services,304221,Equipment and Materials,03/12/2020,3811086-216929,886.29,TYNEDALE ROADSTONE LTD.
Neighbourhoods and Climate Change,Technical Services CM0300,Supplies and Services,304221,Equipment and Materials,03/12/2020,3811086-216931,996.94,TYNEDALE ROADSTONE LTD.
Neighbourhoods and Climate Change,Technical Services CM0300,Supplies and Services,304221,Equipment and Materials,03/12/2020,3811086-216936,"1,088.02",TYNEDALE ROADSTONE LTD.
Neighbourhoods and Climate Change,Technical Services CM0300,Supplies and Services,304221,Equipment and Materials,03/12/2020,3811086-216982,610.84,TYNEDALE ROADSTONE LTD.
Adult and Health Services,Head of Adults,Supplies and Services,304259,Equipment and Materials,03/12/2020,3811082-HIRE1/12-31/12/20,"1,000.00",TUDHOE COMMUNITY CENTRE.
Neighbourhoods and Climate Change,Partnerships & Community Engagement Div.,Supplies and Services,338032,Services,03/12/2020,3811089-561,"4,787.50",URBAN FORESIGHT LTD.
"Regeneration, Economy and Growth",Development and Housing,Cap Exp on Grants & Other Financial Assistance (REFCUS),918501,Exp assets not owned by authority,03/12/2020,3811003-SI-RA619,500.00,PRINCE BISHOP COMMUNITY BROADCASTING LTD.
Children and Young Peoples Services,Head of Childrens Social Care,Supplies and Services,338044,Services,03/12/2020,3810714-1080,"5,958.30",ANDREW BECKWITH INDEPENDENT LTD.
Children and Young Peoples Services,Head of Early Help Inclusion & Vulnerable Children.,Premises,140001,Fixtures and Fittings,03/12/2020,3810818-158603,"4,474.05",DART VALLEY SYSTEMS LTD.
"Regeneration, Economy and Growth",Business Durham CL0850,Premises,120021,Energy Costs,03/12/2020,3810807-15697574,636.54,CORONA ENERGY RETAIL 2 LTD.
"Regeneration, Economy and Growth",Business Durham CL0850,Premises,120021,Energy Costs,03/12/2020,3810806-15697575,833.87,CORONA ENERGY RETAIL 2 LTD.
Neighbourhoods and Climate Change,Environmental Services,Supplies and Services,304358,Equipment and Materials,03/12/2020,3810717-0000034461,876.80,AQUAJET DRAIN CLEANING LTD.
Neighbourhoods and Climate Change,Technical Services CM0300,Supplies and Services,304358,Equipment and Materials,03/12/2020,3810717-0000034782,"9,176.00",AQUAJET DRAIN CLEANING LTD.
Neighbourhoods and Climate Change,Technical Services CM0300,Supplies and Services,304358,Equipment and Materials,03/12/2020,3810717-0000034783,"9,176.00",AQUAJET DRAIN CLEANING LTD.
Neighbourhoods and Climate Change,Technical Services CM0300,Supplies and Services,304358,Equipment and Materials,03/12/2020,3810789-1793,"3,218.46",CG SIMPSON & SON.
Neighbourhoods and Climate Change,Technical Services CM0300,Supplies and Services,304358,Equipment and Materials,03/12/2020,3810867-77383,612.63,GEORGE VARDY HAULAGE.
Neighbourhoods and Climate Change,Technical Services CM0300,Supplies and Services,304358,Equipment and Materials,03/12/2020,3810867-77384,612.63,GEORGE VARDY HAULAGE.
Neighbourhoods and Climate Change,Technical Services CM0300,Supplies and Services,304358,Equipment and Materials,03/12/2020,3810867-77388,633.76,GEORGE VARDY HAULAGE.
Neighbourhoods and Climate Change,Technical Services CM0300,Supplies and Services,304358,Equipment and Materials,03/12/2020,3810867-77390,633.76,GEORGE VARDY HAULAGE.
Neighbourhoods and Climate Change,Technical Services CM0300,Supplies and Services,304358,Equipment and Materials,03/12/2020,3810915-727,"1,007.50",JOHN DOBSON PLANT HIRE LTD.
Neighbourhoods and Climate Change,Technical Services CM0300,Supplies and Services,304358,Equipment and Materials,03/12/2020,3810917-31087,830.00,JOHN R BUTTERFIELD LTD.
Neighbourhoods and Climate Change,Technical Services CM0300,Supplies and Services,304358,Equipment and Materials,03/12/2020,3810917-309499,"1,021.50",JOHN R BUTTERFIELD LTD.
Neighbourhoods and Climate Change,Technical Services CM0300,Supplies and Services,304358,Equipment and Materials,03/12/2020,3810917-309500,"1,033.75",JOHN R BUTTERFIELD LTD.
Neighbourhoods and Climate Change,Technical Services CM0300,Supplies and Services,304358,Equipment and Materials,03/12/2020,3810917-309503,"1,033.75",JOHN R BUTTERFIELD LTD.
Neighbourhoods and Climate Change,Technical Services CM0300,Supplies and Services,304358,Equipment and Materials,03/12/2020,3810917-309504,"1,009.25",JOHN R BUTTERFIELD LTD.
Neighbourhoods and Climate Change,Technical Services CM0300,Supplies and Services,304358,Equipment and Materials,03/12/2020,3810917-31013,"1,031.50",JOHN R BUTTERFIELD LTD.
Neighbourhoods and Climate Change,Technical Services CM0300,Supplies and Services,304358,Equipment and Materials,03/12/2020,3810917-31020,"1,219.75",JOHN R BUTTERFIELD LTD.
Neighbourhoods and Climate Change,Technical Services CM0300,Supplies and Services,304358,Equipment and Materials,03/12/2020,3810917-31040,710.00,JOHN R BUTTERFIELD LTD.
Neighbourhoods and Climate Change,Technical Services CM0300,Supplies and Services,304358,Equipment and Materials,03/12/2020,3810917-31055,622.00,JOHN R BUTTERFIELD LTD.
Neighbourhoods and Climate Change,Technical Services CM0300,Supplies and Services,304358,Equipment and Materials,03/12/2020,3810917-31056,644.75,JOHN R BUTTERFIELD LTD.
Neighbourhoods and Climate Change,Technical Services CM0300,Supplies and Services,304358,Equipment and Materials,03/12/2020,3810917-31078,628.00,JOHN R BUTTERFIELD LTD.
Neighbourhoods and Climate Change,Technical Services CM0300,Supplies and Services,304358,Equipment and Materials,03/12/2020,3810917-31081,"1,731.50",JOHN R BUTTERFIELD LTD.
Neighbourhoods and Climate Change,Technical Services CM0300,Supplies and Services,304358,Equipment and Materials,03/12/2020,3810917-31083,"1,017.50",JOHN R BUTTERFIELD LTD.
Neighbourhoods and Climate Change,Technical Services CM0300,Supplies and Services,304358,Equipment and Materials,03/12/2020,3810917-31084,"1,031.25",JOHN R BUTTERFIELD LTD.
Neighbourhoods and Climate Change,Technical Services CM0300,Supplies and Services,304358,Equipment and Materials,03/12/2020,3810917-31085,"1,136.00",JOHN R BUTTERFIELD LTD.
Neighbourhoods and Climate Change,Technical Services CM0300,Supplies and Services,304358,Equipment and Materials,03/12/2020,3810917-31090,975.00,JOHN R BUTTERFIELD LTD.
Neighbourhoods and Climate Change,Technical Services CM0300,Supplies and Services,304358,Equipment and Materials,03/12/2020,3810925-3479,851.00,KEVIN SNOWDON GROUNDWORKS LTD.
Neighbourhoods and Climate Change,Technical Services CM0300,Supplies and Services,304358,Equipment and Materials,03/12/2020,3810961-NC/127/BW,"2,475.00",NEDCO CONTRACTS (NE) LTD.
Neighbourhoods and Climate Change,Technical Services CM0300,Supplies and Services,304358,Equipment and Materials,03/12/2020,3810961-NC/128/BW,"2,035.00",NEDCO CONTRACTS (NE) LTD.
Neighbourhoods and Climate Change,Technical Services CM0300,Supplies and Services,304358,Equipment and Materials,03/12/2020,3811023-0035,"1,064.00",S & R LANDSCAPES.
Neighbourhoods and Climate Change,Technical Services CM0300,Supplies and Services,304358,Equipment and Materials,03/12/2020,3811023-33,"1,593.75",S & R LANDSCAPES.
Neighbourhoods and Climate Change,Technical Services CM0300,Supplies and Services,304358,Equipment and Materials,03/12/2020,3811119-8375,635.63,YOULL CONSTRUCTION LTD.
Neighbourhoods and Climate Change,Technical Services CM0300,Supplies and Services,304358,Equipment and Materials,03/12/2020,3811119-8377,635.63,YOULL CONSTRUCTION LTD.
Children and Young Peoples Services,Head of Education and Skills,Supplies and Services,338045,Services,03/12/2020,3811108-HJT/A6443/F-30/11/2020,"2,960.20",WILLIAM J MARSHALL & PARTNERS.
Neighbourhoods and Climate Change,Technical Services CM0300,Supplies and Services,304357,Equipment and Materials,03/12/2020,3810862-DCC011120,"18,619.86",GAP GROUP LTD.
Neighbourhoods and Climate Change,Technical Services CM0300,Supplies and Services,304357,Equipment and Materials,03/12/2020,3810862-DCC081120,"18,742.53",GAP GROUP LTD.
Neighbourhoods and Climate Change,Partnerships & Community Engagement Div.,Supplies and Services,384086,Miscellaneous Expenses,03/12/2020,3810729-VOUCHER20NB-BASH010,"5,000.00",AUCKLAND YOUTH & COMMUNITY CENTRE LTD.
Neighbourhoods and Climate Change,Partnerships & Community Engagement Div.,Supplies and Services,384086,Miscellaneous Expenses,03/12/2020,3810784-VOUCHER20NB-EDRC014,"1,000.00",CASSOP COMMUNITY CENTRE.
Neighbourhoods and Climate Change,Partnerships & Community Engagement Div.,Supplies and Services,384086,Miscellaneous Expenses,03/12/2020,3810819-VOUCHER20NB-EDUR046,"3,700.00",DAWDON YOUTH & COMMUNITY CENTRE.
Resources BK0010,Digital and Customer Services,Supplies and Services,304303,Equipment and Materials,03/12/2020,3811116-KX90896,848.00,XMA LTD.
"Regeneration, Economy and Growth",Culture Sport and Tourism,Supplies and Services,384199,Miscellaneous Expenses,03/12/2020,3810976-00014493,691.26,NSL LTD.
Children and Young Peoples Services,Head of Education and Skills,Supplies and Services,384199,Miscellaneous Expenses,03/12/2020,3810890-DW0120/1,546.00,HOPE STREET GARAGE.
Children and Young Peoples Services,Head of Childrens Social Care,Third Party Payments,425020,Rendered by Voluntary Organisations,03/12/2020,3811050-8287,"3,735.63",ST OSWALD`S HOSPICE LTD.
"Regeneration, Economy and Growth",Corporate Property and Land,Third Party Payments,430100,Rendered by Private Contractors,03/12/2020,3810713-SI18303,775.00,AMBIC LTD.
"Regeneration, Economy and Growth",Corporate Property and Land,Third Party Payments,430100,Rendered by Private Contractors,03/12/2020,3810787-509,"5,204.58",CEILINGS DIRECT LTD.
"Regeneration, Economy and Growth",Corporate Property and Land,Third Party Payments,430100,Rendered by Private Contractors,03/12/2020,3810787-500,"4,664.00",CEILINGS DIRECT LTD.
"Regeneration, Economy and Growth",Corporate Property and Land,Third Party Payments,430100,Rendered by Private Contractors,03/12/2020,3810809-85139,"36,293.00",CPS MANUFACTURING CO LLP.
"Regeneration, Economy and Growth",Corporate Property and Land,Third Party Payments,430100,Rendered by Private Contractors,03/12/2020,185-3646DR,"2,260.00",INGLEFORD SCAFFOLDING LTD.
"Regeneration, Economy and Growth",Corporate Property and Land,Third Party Payments,430100,Rendered by Private Contractors,03/12/2020,3810979-10594-01,"1,198.47",OPUS BUILDING SERVICES LTD.
"Regeneration, Economy and Growth",Corporate Property and Land,Third Party Payments,430100,Rendered by Private Contractors,03/12/2020,3810979-10594-03,"1,131.82",OPUS BUILDING SERVICES LTD.
"Regeneration, Economy and Growth",Corporate Property and Land,Third Party Payments,430100,Rendered by Private Contractors,03/12/2020,3810979-10594-04,"1,154.32",OPUS BUILDING SERVICES LTD.
"Regeneration, Economy and Growth",Corporate Property and Land,Third Party Payments,430100,Rendered by Private Contractors,03/12/2020,3810979-10594-09,"1,144.73",OPUS BUILDING SERVICES LTD.
"Regeneration, Economy and Growth",Corporate Property and Land,Third Party Payments,430100,Rendered by Private Contractors,03/12/2020,3811009-37023,"1,080.00",R PARKER WALL & FLOOR TILING CONTRACTOR.
"Regeneration, Economy and Growth",Corporate Property and Land,Third Party Payments,430100,Rendered by Private Contractors,03/12/2020,3811085-DCC/GT/160,940.40,TYNE VALLEY FLOORING & CARPETS.
Neighbourhoods and Climate Change,Environmental Services,Third Party Payments,430100,Rendered by Private Contractors,03/12/2020,3810699-3032,"1,282.50",A & J GUTHRIE.
Neighbourhoods and Climate Change,Technical Services CM0300,Third Party Payments,430100,Rendered by Private Contractors,03/12/2020,3811007-12944,"1,856.00",QUANTUM POWER CONNECTIONS LTD.
Neighbourhoods and Climate Change,Technical Services CM0300,Third Party Payments,430100,Rendered by Private Contractors,03/12/2020,3811013-2858/201134,"121,391.05",RAINTON CONSTRUCTION LTD.
Neighbourhoods and Climate Change,Technical Services CM0300,Third Party Payments,430100,Rendered by Private Contractors,03/12/2020,3811013-2858/201135,"103,437.40",RAINTON CONSTRUCTION LTD.
Neighbourhoods and Climate Change,Technical Services CM0300,Third Party Payments,430100,Rendered by Private Contractors,03/12/2020,3811013-2858/201136,"89,176.69",RAINTON CONSTRUCTION LTD.
Neighbourhoods and Climate Change,Technical Services CM0300,Third Party Payments,430100,Rendered by Private Contractors,03/12/2020,3811054-16299,"1,176.00",STEADFAST SECURITY SOLUTIONS LTD.
"Regeneration, Economy and Growth",Transport and Contracted Services,Third Party Payments,430100,Rendered by Private Contractors,03/12/2020,3811054-16391,"1,508.75",STEADFAST SECURITY SOLUTIONS LTD.
"Regeneration, Economy and Growth",Transport and Contracted Services,Third Party Payments,430100,Rendered by Private Contractors,03/12/2020,3811054-16459,"1,346.40",STEADFAST SECURITY SOLUTIONS LTD.
Resources BK0010,Finance & Transactional Services,Supplies and Services,340001,Postages E340,03/12/2020,3811019-9061955256,"9,258.20",ROYAL MAIL GROUP PLC.
Resources BK0010,Legal & Democratic Services,Supplies and Services,340001,Postages E340,03/12/2020,3811019-9061877311,"1,115.55",ROYAL MAIL GROUP PLC.
"Regeneration, Economy and Growth",Business Durham CL0850,Supplies and Services,338066,Services,03/12/2020,3810951-INV-0380,660.00,MCDONOUGH MARKETING COMMUNICATIONS LTD T/A MMC.
Resources BK0010,Finance & Transactional Services,Supplies and Services,338066,Services,03/12/2020,3810799-C/BN205329,"7,769.90",CIVICA UK LTD.
Adult and Health Services,Public Health CC0450,Third Party Payments,460803,Contract Payments,03/12/2020,3810703-INV-0886,"124,855.00",ABL HEALTH LTD.
Adult and Health Services,Public Health CC0450,Third Party Payments,460803,Contract Payments,03/12/2020,3810722-DTPB/00000248FLU,668.96,ASDA PHARMACY.*
Adult and Health Services,Public Health CC0450,Third Party Payments,460803,Contract Payments,03/12/2020,3810724-DVMM/00000172FLU,815.54,ASDA PHARMACY.*
Adult and Health Services,Public Health CC0450,Third Party Payments,460803,Contract Payments,03/12/2020,3810725-FPKW/00000245FLU,620.54,ASDA PHARMACY.*
Adult and Health Services,Public Health CC0450,Third Party Payments,460803,Contract Payments,03/12/2020,3810738-DYPD/00000264FLU,600.60,BESTWAY NATIONAL CHEMIST LTD T/A WELL.
Adult and Health Services,Public Health CC0450,Third Party Payments,460803,Contract Payments,03/12/2020,3810740-DTZQ/00000260FLU,500.50,BESTWAY NATIONAL CHEMIST LTD T/A WELL.
Adult and Health Services,Public Health CC0450,Third Party Payments,460803,Contract Payments,03/12/2020,3810778-DWZN/00000016FLU,840.12,BRANDON PHARMACY.
Adult and Health Services,Public Health CC0450,Third Party Payments,460803,Contract Payments,03/12/2020,3810821-FNFX/00000108FLU,668.96,DAY LEWIS PLC.
Adult and Health Services,Public Health CC0450,Third Party Payments,460803,Contract Payments,03/12/2020,3810844-DVTB/00000172FLU,"1,521.52",EMPHARM (NE) LTD T/A MILLER`S PHARMACY.
Adult and Health Services,Public Health CC0450,Third Party Payments,460803,Contract Payments,03/12/2020,3810868-FBFN/00000239FLU,"1,801.56",GILL & SCHOFIELD PHARMACEUTICAL CHEMISTS LTD.
Adult and Health Services,Public Health CC0450,Third Party Payments,460803,Contract Payments,03/12/2020,3810871-DYCH/00000112FLU,"3,482.64",GORGEMEAD LTD T/A COHENS CHEMIST.
Adult and Health Services,Public Health CC0450,Third Party Payments,460803,Contract Payments,03/12/2020,3810905-DQPW/00000255FLU,"5,766.04",INTRAHEALTH LTD.*
Adult and Health Services,Public Health CC0450,Third Party Payments,460803,Contract Payments,03/12/2020,3810906-DYBQ/00000208FLU,829.08,INTRAHEALTH LTD.*
Adult and Health Services,Public Health CC0450,Third Party Payments,460803,Contract Payments,03/12/2020,3810921-FCTK/00000245FLU,540.54,J`S HEALTHCARE LTD T/A HIGGINBOTTOM PHARMACY.
Adult and Health Services,Public Health CC0450,Third Party Payments,460803,Contract Payments,03/12/2020,3810932-FDJX/00000210FLU,"1,901.54",LEAKS PHARMACY.
Adult and Health Services,Public Health CC0450,Third Party Payments,460803,Contract Payments,03/12/2020,3810937-FNCX/00000190FLU,867.84,LLOYDS PHARMACY.
Adult and Health Services,Public Health CC0450,Third Party Payments,460803,Contract Payments,03/12/2020,3810945-FDWJ/00000157FLU,"3,186.02",LYDON PHARMACY GROUP LTD.
Adult and Health Services,Public Health CC0450,Third Party Payments,460803,Contract Payments,03/12/2020,3810946-FFQC/00000194FLU,"5,230.70",M & M PHARMACIES LTD.
Adult and Health Services,Public Health CC0450,Third Party Payments,460803,Contract Payments,03/12/2020,3810948-LGFQ/00000296FLU,"1,535.48",M & M PHARMACIES LTD.
Adult and Health Services,Public Health CC0450,Third Party Payments,460803,Contract Payments,03/12/2020,3810966-FNTN/00000243FLU,"1,027.14",NORCHEM HEALTHCARE LTD.
Adult and Health Services,Public Health CC0450,Third Party Payments,460803,Contract Payments,03/12/2020,3810968-FCAF/00000208FLU,"1,132.68",NORCHEM HEALTHCARE LTD.
Adult and Health Services,Public Health CC0450,Third Party Payments,460803,Contract Payments,03/12/2020,3810994-FTDK/00000246FLU,765.14,PHILLIPS CHEMISTS LTD.
Adult and Health Services,Public Health CC0450,Third Party Payments,460803,Contract Payments,03/12/2020,3810995-FMFT/00000226FLU,"1,080.84",PHILLIPS CHEMISTS LTD.
Adult and Health Services,Public Health CC0450,Third Party Payments,460803,Contract Payments,03/12/2020,3811005-6472462,"63,439.23",PUBLIC HEALTH ENGLAND (PHE).
Adult and Health Services,Public Health CC0450,Third Party Payments,460803,Contract Payments,03/12/2020,3811018-DXGC/00000220FLU,860.86,ROBERT & ROBERTS LTD T/A BEWICK PHARMACY.*
Adult and Health Services,Public Health CC0450,Third Party Payments,460803,Contract Payments,03/12/2020,3811059-DTMZ/00000247FLU,596.64,SUPERDRUG PHARMACY.
Adult and Health Services,Public Health CC0450,Third Party Payments,460803,Contract Payments,03/12/2020,3811104-FRAK/00000251FLU,"2,662.18",WG CLEMITSONS LTD.*
Adult and Health Services,Public Health CC0450,Third Party Payments,460803,Contract Payments,03/12/2020,3811105-FKVH/00000230FLU,525.02,WG CLEMITSONS LTD.*
Adult and Health Services,Public Health CC0450,Third Party Payments,460803,Contract Payments,03/12/2020,3811106-DYHP/00000270FLU,"1,361.00",WHITWORTH CHEMISTS LTD.
Adult and Health Services,Public Health CC0450,Third Party Payments,460803,Contract Payments,03/12/2020,3811107-DWFD/00000212FLU,620.62,WHITWORTH CHEMISTS LTD.
Children and Young Peoples Services,Head of Education and Skills,Transfer Payments,510034,School Children,03/12/2020,3810706-LACPP-AUTUMN2021,600.00,ACKLAM WHIN PRIMARY SCHOOL.
Children and Young Peoples Services,Head of Education and Skills,Transfer Payments,510034,School Children,03/12/2020,3810709-LACPP-AUTUMN2021,"1,200.00",AIM HIGH ACADEMY TRUST T/A DUBMIRE ACADEMY.
Children and Young Peoples Services,Head of Education and Skills,Transfer Payments,510034,School Children,03/12/2020,3810710-LACPP-AUTUMN2021,600.00,ALBANY VILLAGE PRIMARY SCHOOL.
Children and Young Peoples Services,Head of Education and Skills,Transfer Payments,510034,School Children,03/12/2020,3810736-LACPP-AUTUMN2021,"1,200.00",BENFIELD SCHOOL.
Children and Young Peoples Services,Head of Education and Skills,Transfer Payments,510034,School Children,03/12/2020,3810744-LACPP-AUTUMN2021,600.00,BIDDICK ACADEMY.
Children and Young Peoples Services,Head of Education and Skills,Transfer Payments,510034,School Children,03/12/2020,3810747-LACPP-AUTUMN2021,"1,200.00",BISHOP AUCKLAND COLLEGE.
Children and Young Peoples Services,Head of Education and Skills,Transfer Payments,510034,School Children,03/12/2020,3810748-LACPP-AUTUMN2021,600.00,BISHOP HOGARTH CATHOLIC EDUCATION TRUST.
Children and Young Peoples Services,Head of Education and Skills,Transfer Payments,510034,School Children,03/12/2020,3810783-LACPP-AUTUMN2021,"2,400.00",CARMEL COLLEGE.*
Children and Young Peoples Services,Head of Education and Skills,Transfer Payments,510034,School Children,03/12/2020,3810785-LACPP-AUTUMN2021,600.00,CATCOTE ACADEMY.
Children and Young Peoples Services,Head of Education and Skills,Transfer Payments,510034,School Children,03/12/2020,3810817-LACPP-AUTUMN2021,600.00,DALES ACADEMIES TRUST T/A THORNABY C OF E PRIMARY SCHOOL.
Children and Young Peoples Services,Head of Education and Skills,Transfer Payments,510034,School Children,03/12/2020,3810838-LACPP-AUTUMN2021,"1,200.00",ELDON GROVE ACADEMY.
Children and Young Peoples Services,Head of Education and Skills,Transfer Payments,510034,School Children,03/12/2020,3810842-LACPP-AUTUMN2021,600.00,EMMANUEL SCHOOLS FOUNDATION T/A CHRISTS COLLEGE.
Children and Young Peoples Services,Head of Education and Skills,Transfer Payments,510034,School Children,03/12/2020,3810843-LACPP-AUTUMN2021,600.00,EMMANUEL SCHOOLS FOUNDATION T/A THE KING`S ACADEMY.
Children and Young Peoples Services,Head of Education and Skills,Transfer Payments,510034,School Children,03/12/2020,3810848-LACPP-AUTUMN2021,600.00,FAIRFIELD PRIMARY SCHOOL.
Children and Young Peoples Services,Head of Education and Skills,Transfer Payments,510034,School Children,03/12/2020,3810884-LACPP-AUTUMN2021,600.00,HEBBURN LAKES PRIMARY SCHOOL.
Children and Young Peoples Services,Head of Education and Skills,Transfer Payments,510034,School Children,03/12/2020,3810885-LACPP-AUTUMN2021,600.00,HETTON PRIMARY SCHOOL.
Children and Young Peoples Services,Head of Education and Skills,Transfer Payments,510034,School Children,03/12/2020,3810886-LACPP-AUTUMN2021,600.00,HIGH SPEN PRIMARY SCHOOL.
Children and Young Peoples Services,Head of Education and Skills,Transfer Payments,510034,School Children,03/12/2020,3810887-LACPP-AUTUMN2021,600.00,HIGH TUNSTALL COLLEGE OF SCIENCE.
Children and Young Peoples Services,Head of Education and Skills,Transfer Payments,510034,School Children,03/12/2020,3810888-LACPP-AUTUMN2021,600.00,HIGHLAND COUNCIL T/A CHARLESTON ACADEMY.
Children and Young Peoples Services,Head of Education and Skills,Transfer Payments,510034,School Children,03/12/2020,3810893-LACPP-AUTUMN2021,600.00,HUMMERSKNOTT ACADEMY.
Children and Young Peoples Services,Head of Education and Skills,Transfer Payments,510034,School Children,03/12/2020,3810894-LACPP-AUTUMN2021,"1,200.00",HUNNINGLEY PRIMARY SCHOOL.
Children and Young Peoples Services,Head of Education and Skills,Transfer Payments,510034,School Children,03/12/2020,3810895-LACPP-AUTUMN2021,"3,000.00",HURWORTH ACADEMY.
Children and Young Peoples Services,Head of Education and Skills,Transfer Payments,510034,School Children,03/12/2020,3810900-LACPP-AUTUMN2021,600.00,INGLEBY MANOR FREE SCHOOL & SIXTH FORM.
Children and Young Peoples Services,Head of Education and Skills,Transfer Payments,510034,School Children,03/12/2020,3810924-LACPP-AUTUMN2021,600.00,KEPIER ACADEMY T/A LEARNING MATTERS LTD.
Children and Young Peoples Services,Head of Education and Skills,Transfer Payments,510034,School Children,03/12/2020,3810933-LACPP-AUTUMN2021,600.00,LEGRA ACADEMY TRUST T/A DARLINGHURST ACADEMY.
Children and Young Peoples Services,Head of Education and Skills,Transfer Payments,510034,School Children,03/12/2020,3810971-LACPP-AUTUMN2021,"1,200.00",NORTHERN EDUCATION TRUST T/A  DYKE HOUSE SPORTS & TECHNOLOGY COLLEGE.
Children and Young Peoples Services,Head of Education and Skills,Transfer Payments,510034,School Children,03/12/2020,3810974-LACPP-AUTUMN2021,600.00,NOTTINGHAM ACADEMY.
Children and Young Peoples Services,Head of Education and Skills,Transfer Payments,510034,School Children,03/12/2020,3810977-LACPP-AUTUMN2021,600.00,NUNTHORPE ACADEMY LTD.
Children and Young Peoples Services,Head of Education and Skills,Transfer Payments,510034,School Children,03/12/2020,3810998-LACPP-AUTUMN2021,"1,200.00",PIPWORTH COMMUNITY PRIMARY SCHOOL.
Children and Young Peoples Services,Head of Education and Skills,Transfer Payments,510034,School Children,03/12/2020,3811006-LACPP-AUTUMN2021,600.00,QUALITY TIME CARE LTD T/A HIGHCROFT SCHOOL.
Children and Young Peoples Services,Head of Education and Skills,Transfer Payments,510034,School Children,03/12/2020,3811008-LACPP-AUTUMN2021,600.00,QUEEN ELIZABETH HIGH SCHOOL.
Children and Young Peoples Services,Head of Education and Skills,Transfer Payments,510034,School Children,03/12/2020,3811026-LACPP-AUTUMN2021,600.00,SANDFORD ST MARTIN`S CE VA PRIMARY SCHOOL.
Children and Young Peoples Services,Head of Education and Skills,Transfer Payments,510034,School Children,03/12/2020,3811039-LACPP-AUTUMN2021,600.00,SOUTH TYNESIDE COUNCIL.
Children and Young Peoples Services,Head of Education and Skills,Transfer Payments,510034,School Children,03/12/2020,3811040-LACPP-AUTUMN2021,"1,200.00",SOUTHMOOR ACADEMY.
Children and Young Peoples Services,Head of Education and Skills,Transfer Payments,510034,School Children,03/12/2020,3811044-LACPP-AUTUMN2021,600.00,ST AIDAN`S CATHOLIC ACADEMY.
Children and Young Peoples Services,Head of Education and Skills,Transfer Payments,510034,School Children,03/12/2020,3811045-LACPP-AUTUMN2021,"1,200.00",ST ANTHONY`S GIRLS SCHOOL.
Children and Young Peoples Services,Head of Education and Skills,Transfer Payments,510034,School Children,03/12/2020,3811046-LACPP-AUTUMN2021,600.00,ST HILDS CHURCH OF ENGLAND SCHOOL.
Children and Young Peoples Services,Head of Education and Skills,Transfer Payments,510034,School Children,03/12/2020,3811049-LACPP-AUTUMN2021,600.00,ST JOSEPH`S RC MIDDLE SCHOOL (HEXHAM).
Children and Young Peoples Services,Head of Education and Skills,Transfer Payments,510034,School Children,03/12/2020,3811051-LACPP-AUTUMN2021,"1,800.00",ST ROBERTS NEWMINSTER RC SCHOOL & 6TH FORM COLLEGE.
Children and Young Peoples Services,Head of Education and Skills,Transfer Payments,510034,School Children,03/12/2020,3811057-LACPP-AUTUMN2021-OAKDENE,"1,200.00",STOCKTON ON TEES BOROUGH COUNCIL.
Children and Young Peoples Services,Head of Education and Skills,Transfer Payments,510034,School Children,03/12/2020,3811057-LACPP-AUTUMN2021-STMARYS,"1,200.00",STOCKTON ON TEES BOROUGH COUNCIL.
Children and Young Peoples Services,Head of Education and Skills,Transfer Payments,510034,School Children,03/12/2020,3811071-LACPP-AUTUMN2021,600.00,THE DOVE ACADEMY TRUST - ST MARY`S COCKERTON CE PRIMARY SCHOOL.
Children and Young Peoples Services,Head of Education and Skills,Transfer Payments,510034,School Children,03/12/2020,3811090-LACPP-AUTUMN2021,"1,800.00",VENERABLE BEDE CHURCH OF ENGLAND ACADEMY.
Children and Young Peoples Services,Head of Education and Skills,Transfer Payments,510034,School Children,03/12/2020,3811095-LACPP-AUTUMN2021,600.00,VISION ACADEMY LEARNING TRUST T/A WHINSTONE PRIMARY SCHOOL.
Children and Young Peoples Services,Head of Education and Skills,Transfer Payments,510034,School Children,03/12/2020,3811102-LACPP-AUTUMN2021,600.00,WESTGATE HILL PRIMARY ACADEMY.
Children and Young Peoples Services,Head of Education and Skills,Transfer Payments,510034,School Children,03/12/2020,3811111-LACPP-AUTUMN2021,600.00,WITHERSLACK GROUP LTD.
Children and Young Peoples Services,Head of Education and Skills,Transfer Payments,510034,School Children,03/12/2020,3811115-LACPP-AUTUMN2021,600.00,WYVERN ACADEMY.
"Regeneration, Economy and Growth",Corporate Property and Land,Supplies and Services,338078,Services,03/12/2020,3811025-12930,"1,050.00",SAFEGUARD SECURITY (NE) LTD.
Children and Young Peoples Services,Head of Childrens Social Care,Transport,230005,Contract Hire,03/12/2020,3810708-ADV4848,"2,810.00",ADVANCED TRAVEL.
Resources BK0010,Digital and Customer Services,Stock A926,926900,Stock in hand-Inventory system,03/12/2020,3810823-7402666355,"1,503.00",DELL COMPUTER CORPORATION LTD.
Resources BK0010,Digital and Customer Services,Stock A926,926900,Stock in hand-Inventory system,03/12/2020,3810823-7402666358,"1,002.00",DELL COMPUTER CORPORATION LTD.
Resources BK0010,Digital and Customer Services,Stock A926,926900,Stock in hand-Inventory system,03/12/2020,3810823-7402666362,"2,575.00",DELL COMPUTER CORPORATION LTD.
Neighbourhoods and Climate Change,Technical Services CM0300,Stock A926,926900,Stock in hand-Inventory system,03/12/2020,3810801-750365,"1,342.60",CMT EQUIPMENT LTD.
Neighbourhoods and Climate Change,Technical Services CM0300,Stock A926,926900,Stock in hand-Inventory system,03/12/2020,3810801-752304,540.00,CMT EQUIPMENT LTD.
Neighbourhoods and Climate Change,Technical Services CM0300,Stock A926,926900,Stock in hand-Inventory system,03/12/2020,3810986-XL261619,838.92,PARK ELECTRICAL DISTRIBUTORS LTD.
Children and Young Peoples Services,Childrens Services Operational Support,Supplies and Services,338089,Services,03/12/2020,3810814-7/2020,"5,040.00",CSWP LTD.
Adult and Health Services,Head of Adults,Supplies and Services,338089,Services,03/12/2020,3811100-1605,570.00,WELL HANDLED LTD.
Dedicated Schools Grant BG0015,DSG High Needs Block,Third Party Payments,410037,Rendered by Other Local Authorities,04/12/2020,3811304-105175,"1,433.33",NISAI VIRTUAL ACADEMY LTD.
Resources BK0010,Legal & Democratic Services,Supplies and Services,338042,Services,04/12/2020,3811201-355402/INVCF307,550.00,DERE STREET BARRISTERS.
Children and Young Peoples Services,Head of Childrens Social Care,Third Party Payments,440046,Other third party payments E440,04/12/2020,3811334-231106,511.27,PRIMARY CARE RECRUITMENT LTD.
Neighbourhoods and Climate Change,Technical Services CM0300,Fees,901004,Capital - Detailed Design,04/12/2020,3811333-168126,"3,172.00",PREMIER TRAFFIC MANAGEMENT LTD.
Children and Young Peoples Services,Head of Early Help Inclusion & Vulnerable Children.,Supplies and Services,324500,Provisions E324,04/12/2020,3811188-23433,"14,129.89",CREATIVE MANAGEMENT SERVICES LTD.
Neighbourhoods and Climate Change,Technical Services CM0300,Supplies and Services,342215,Computers and Communications,04/12/2020,3811357-INV101705,"5,760.00",SKYGUARD LTD.
"Regeneration, Economy and Growth",Culture Sport and Tourism,Premises,106080,Centrally Controlled Rep and Maint,04/12/2020,3811154-41919,"4,325.00",BIOCHEMICA GROUP LTD.
Resources BK0010,Digital and Customer Services,Supplies and Services,342033,Computers and Communications,04/12/2020,3811415-KX92798,"7,095.00",XMA LTD.
Resources BK0010,Digital and Customer Services,Supplies and Services,342033,Computers and Communications,04/12/2020,3811415-KX92983,627.00,XMA LTD.
Children and Young Peoples Services,Head of Childrens Social Care,Supplies and Services,342053,Computers and Communications,04/12/2020,3811163-687729,598.30,BYTES SOFTWARE SERVICES LTD.
Resources BK0010,Digital and Customer Services,Construction work A908,908105,Construction work,04/12/2020,3811288-12515070,"1,860.00",MAINTEL EUROPE LTD.
"Regeneration, Economy and Growth",Corporate Property and Land,Supplies and Services,338027,Services,04/12/2020,3811388-234,"2,875.00",TOMORROW ADVISORY LTD.
"Regeneration, Economy and Growth",Business Durham CL0850,Third Party Payments,460305,Contract Payments,04/12/2020,3811397-RED-12-2020-027,"8,253.93",UMI COMMERCIAL LTD.
Neighbourhoods and Climate Change,Technical Services CM0300,Third Party Payments,430128,Rendered by Private Contractors,04/12/2020,3811147-SI7132,"1,120.00",AWSM FARMS.
"Regeneration, Economy and Growth",Development and Housing,Supplies and Services,384899,Miscellaneous Expenses,04/12/2020,3811365-ND010/3,"4,259.60",STANLEY EVENTS LTD.
"Regeneration, Economy and Growth",Transport and Contracted Services,Supplies and Services,384899,Miscellaneous Expenses,04/12/2020,3811410-RED-12-2020-029,900.00,WHORLTON & WESTWICK PARISH COUNCIL.
Neighbourhoods and Climate Change,Environmental Services,Transport,215005,Running Costs of Vehicles,04/12/2020,3811314-668683,"3,970.62",OIL NRG LTD.
Neighbourhoods and Climate Change,Environmental Services,Transport,215005,Running Costs of Vehicles,04/12/2020,3811314-669304,"16,175.70",OIL NRG LTD.
Neighbourhoods and Climate Change,Environmental Services,Transport,215005,Running Costs of Vehicles,04/12/2020,3811314-670496,"9,003.60",OIL NRG LTD.
"Regeneration, Economy and Growth",Corporate Property and Land,Supplies and Services,304221,Equipment and Materials,04/12/2020,3811273-0113/00212818,"1,630.14",JT DOVE LTD.
"Regeneration, Economy and Growth",Corporate Property and Land,Supplies and Services,304221,Equipment and Materials,04/12/2020,3811402-6890361822,"10,073.10",VIESSMANN LTD.
Neighbourhoods and Climate Change,Environmental Services,Supplies and Services,304221,Equipment and Materials,04/12/2020,3811196-185869,"1,001.00",DAVID OGILVIE ENGINEERING LTD.
Neighbourhoods and Climate Change,Environmental Services,Supplies and Services,304221,Equipment and Materials,04/12/2020,3811414-0000026422,"7,014.80",WYBONE LTD.
Neighbourhoods and Climate Change,Technical Services CM0300,Supplies and Services,304221,Equipment and Materials,04/12/2020,3811378-9042705280,675.11,TARMAC TRADING LTD.
Neighbourhoods and Climate Change,Technical Services CM0300,Supplies and Services,304221,Equipment and Materials,04/12/2020,3811378-9042718433,562.92,TARMAC TRADING LTD.
Neighbourhoods and Climate Change,Technical Services CM0300,Supplies and Services,304221,Equipment and Materials,04/12/2020,3811395-216581,895.98,TYNEDALE ROADSTONE LTD.
Neighbourhoods and Climate Change,Technical Services CM0300,Supplies and Services,304221,Equipment and Materials,04/12/2020,3811395-216583,588.86,TYNEDALE ROADSTONE LTD.
Neighbourhoods and Climate Change,Technical Services CM0300,Supplies and Services,304221,Equipment and Materials,04/12/2020,3811395-216585,779.93,TYNEDALE ROADSTONE LTD.
Neighbourhoods and Climate Change,Technical Services CM0300,Supplies and Services,304221,Equipment and Materials,04/12/2020,3811395-216680,854.18,TYNEDALE ROADSTONE LTD.
Neighbourhoods and Climate Change,Technical Services CM0300,Supplies and Services,304221,Equipment and Materials,04/12/2020,3811395-216681,928.68,TYNEDALE ROADSTONE LTD.
Neighbourhoods and Climate Change,Technical Services CM0300,Supplies and Services,304221,Equipment and Materials,04/12/2020,3811395-216688,936.31,TYNEDALE ROADSTONE LTD.
Neighbourhoods and Climate Change,Technical Services CM0300,Supplies and Services,304221,Equipment and Materials,04/12/2020,3811395-216690,"1,067.11",TYNEDALE ROADSTONE LTD.
Neighbourhoods and Climate Change,Technical Services CM0300,Supplies and Services,304221,Equipment and Materials,04/12/2020,3811395-216814,"1,013.70",TYNEDALE ROADSTONE LTD.
Neighbourhoods and Climate Change,Technical Services CM0300,Supplies and Services,304221,Equipment and Materials,04/12/2020,3811395-216823,606.68,TYNEDALE ROADSTONE LTD.
Neighbourhoods and Climate Change,Technical Services CM0300,Supplies and Services,304221,Equipment and Materials,04/12/2020,3811395-216829,585.89,TYNEDALE ROADSTONE LTD.
Neighbourhoods and Climate Change,Technical Services CM0300,Supplies and Services,304221,Equipment and Materials,04/12/2020,3811395-216830,941.76,TYNEDALE ROADSTONE LTD.
Neighbourhoods and Climate Change,Technical Services CM0300,Supplies and Services,304221,Equipment and Materials,04/12/2020,3811395-216920,"1,021.33",TYNEDALE ROADSTONE LTD.
Neighbourhoods and Climate Change,Technical Services CM0300,Supplies and Services,304221,Equipment and Materials,04/12/2020,3811395-216935,802.70,TYNEDALE ROADSTONE LTD.
"Regeneration, Economy and Growth",Culture Sport and Tourism,Supplies and Services,338047,Services,04/12/2020,3811139-0039,"2,052.00",ANITA CORBIN T/A FIRST WOMEN UK LTD.
Children and Young Peoples Services,Head of Early Help Inclusion & Vulnerable Children.,Supplies and Services,304259,Equipment and Materials,04/12/2020,3811391-INUK11443,698.50,TRIPLE P UK LTD.
"Regeneration, Economy and Growth",Culture Sport and Tourism,Supplies and Services,304252,Equipment and Materials,04/12/2020,3811301-DRS/DCC/NOV-DEC/SERVICING,"1,072.50",MR PT STOCKDALE T/A DR SPOKES BICYCLE REPAIR & MAINTENANCE.
Neighbourhoods and Climate Change,Environmental Services,Supplies and Services,304252,Equipment and Materials,04/12/2020,3811237-180618,721.25,FR SHARROCK LTD.
Neighbourhoods and Climate Change,Environmental Services,Supplies and Services,304252,Equipment and Materials,04/12/2020,3811237-180619,814.09,FR SHARROCK LTD.
Neighbourhoods and Climate Change,Environmental Services,Supplies and Services,304252,Equipment and Materials,04/12/2020,3811237-180620,"1,507.82",FR SHARROCK LTD.
Neighbourhoods and Climate Change,Environmental Services,Supplies and Services,304252,Equipment and Materials,04/12/2020,3811237-180621,"1,965.52",FR SHARROCK LTD.
Neighbourhoods and Climate Change,Environmental Services,Supplies and Services,304252,Equipment and Materials,04/12/2020,3811243-007105571,"1,090.00",GAP GROUP LTD.
Neighbourhoods and Climate Change,Environmental Services,Supplies and Services,304252,Equipment and Materials,04/12/2020,3811243-007105570,700.00,GAP GROUP LTD.
Neighbourhoods and Climate Change,Technical Services CM0300,Supplies and Services,304252,Equipment and Materials,04/12/2020,3811243-007105573,"1,080.00",GAP GROUP LTD.
"Regeneration, Economy and Growth",Corporate Property and Land,Premises,108099,Service Repairs and Maintenance,04/12/2020,3811369-16356,"1,247.74",STONE TECHNICAL SERVICES LTD.
"Regeneration, Economy and Growth",Corporate Property and Land,Premises,108099,Service Repairs and Maintenance,04/12/2020,3811400-1432,595.00,VENTILATION HYGIENE SPECIALISTS (VHS) LTD.
"Regeneration, Economy and Growth",Corporate Property and Land,Premises,108099,Service Repairs and Maintenance,04/12/2020,3811401-1434,"1,054.00",VENTILATION HYGIENE SPECIALISTS (VHS) LTD.
Children and Young Peoples Services,Head of Early Help Inclusion & Vulnerable Children.,Premises,108099,Service Repairs and Maintenance,04/12/2020,3811401-1416,845.00,VENTILATION HYGIENE SPECIALISTS (VHS) LTD.
Children and Young Peoples Services,Head of Education and Skills,Premises,108099,Service Repairs and Maintenance,04/12/2020,3811302-8487,647.85,NATIONWIDE HEATING & COOLING LTD.
"Regeneration, Economy and Growth",Corporate Property and Land,Supplies and Services,338045,Services,04/12/2020,3811405-NT63821,"1,041.00",WARDELL ARMSTRONG LLP.
Neighbourhoods and Climate Change,Partnerships & Community Engagement Div.,Supplies and Services,384086,Miscellaneous Expenses,04/12/2020,3811135-VOUCHERHOPA08-20,600.00,ALL SAINTS CHURCH (NEWTON HALL).
Neighbourhoods and Climate Change,Partnerships & Community Engagement Div.,Supplies and Services,384086,Miscellaneous Expenses,04/12/2020,3811140-VOUCHERSTEJ02-20,990.00,ANNFIELD PLAIN ASSOCIATED FOOTBALL CLUB (AFC).
Neighbourhoods and Climate Change,Partnerships & Community Engagement Div.,Supplies and Services,384086,Miscellaneous Expenses,04/12/2020,3811159-VOUCHERBELD03-20,998.00,BRANDON CARRSIDE YOUTH & COMMUNITY PROJECT.
Neighbourhoods and Climate Change,Partnerships & Community Engagement Div.,Supplies and Services,384086,Miscellaneous Expenses,04/12/2020,3811189-VOUCHERCORK02-20,880.00,CRIMESTOPPERS TRUST.
Neighbourhoods and Climate Change,Partnerships & Community Engagement Div.,Supplies and Services,384086,Miscellaneous Expenses,04/12/2020,3811216-VOUCHERBELR06-20,595.00,EGGLESTON PARISH COUNCIL.
Neighbourhoods and Climate Change,Partnerships & Community Engagement Div.,Supplies and Services,384086,Miscellaneous Expenses,04/12/2020,3811245-VOUCHERBELA03-20,999.00,GREAT LUMLEY METHODIST CHURCH.
Neighbourhoods and Climate Change,Partnerships & Community Engagement Div.,Supplies and Services,384086,Miscellaneous Expenses,04/12/2020,3811349-VOUCHERLIDH03-20,999.00,SACRISTON COMMUNITY ASSOCIATION.
Neighbourhoods and Climate Change,Partnerships & Community Engagement Div.,Supplies and Services,384086,Miscellaneous Expenses,04/12/2020,3811413-VOUCHERSHUJ03-20,500.00,WITTON LE WEAR COMMUNITY ASSOCIATION.
Resources BK0010,Digital and Customer Services,Supplies and Services,304303,Equipment and Materials,04/12/2020,3811251-INV0181117,572.87,GVAV LTD.
"Regeneration, Economy and Growth",Transport and Contracted Services,Supplies and Services,384199,Miscellaneous Expenses,04/12/2020,3811236-0190/0191,"2,600.00",FOURPOINT MAPPING LTD.
"Regeneration, Economy and Growth",Corporate Property and Land,Third Party Payments,430100,Rendered by Private Contractors,04/12/2020,3811244-INV-0392,512.32,GLENFIELD ENERGY SOLUTIONS LTD.
"Regeneration, Economy and Growth",Corporate Property and Land,Third Party Payments,430100,Rendered by Private Contractors,04/12/2020,3811244-INV-0393,"9,036.00",GLENFIELD ENERGY SOLUTIONS LTD.
"Regeneration, Economy and Growth",Corporate Property and Land,Third Party Payments,430100,Rendered by Private Contractors,04/12/2020,3811261-10014,"1,110.00",INGLEFORD SCAFFOLDING LTD.
Neighbourhoods and Climate Change,Environmental Services,Third Party Payments,430101,Rendered by Private Contractors,04/12/2020,3811293-FKL00058,"2,761.00",MCCONECHYS TYRE SERVICE LTD.
Neighbourhoods and Climate Change,Environmental Services,Third Party Payments,430101,Rendered by Private Contractors,04/12/2020,3811293-FKL00060,906.00,MCCONECHYS TYRE SERVICE LTD.
Neighbourhoods and Climate Change,Environmental Services,Third Party Payments,430101,Rendered by Private Contractors,04/12/2020,3811293-FKL00059,"2,436.00",MCCONECHYS TYRE SERVICE LTD.
Neighbourhoods and Climate Change,Environmental Services,Third Party Payments,430101,Rendered by Private Contractors,04/12/2020,3811293-FKL00051,"1,226.00",MCCONECHYS TYRE SERVICE LTD.
"Regeneration, Economy and Growth",Development and Housing,Supplies and Services,338066,Services,04/12/2020,3811155-SIN019949,"101,501.38",BLOOM PROCUREMENT SERVICES LTD (FORMERLY NEPRO LTD).
Children and Young Peoples Services,Head of Childrens Social Care,Third Party Payments,425023,Rendered by Voluntary Organisations,04/12/2020,3811219-032,"7,015.10",EMBRACE4SUPPORT.
"Regeneration, Economy and Growth",Culture Sport and Tourism,Premises,106082,Centrally Controlled Rep and Maint,04/12/2020,3811129-IN7864,"5,153.53",ACROL AIR CONDITIONING CO LTD.
Resources BK0010,Digital and Customer Services,Stock A926,926900,Stock in hand-Inventory system,04/12/2020,3811197-7402666354,"1,503.00",DELL COMPUTER CORPORATION LTD.
Resources BK0010,Digital and Customer Services,Stock A926,926900,Stock in hand-Inventory system,04/12/2020,3811197-7402666731,"1,030.00",DELL COMPUTER CORPORATION LTD.
Resources BK0010,Digital and Customer Services,Stock A926,926900,Stock in hand-Inventory system,04/12/2020,3811197-7402667238,501.00,DELL COMPUTER CORPORATION LTD.
Resources BK0010,Digital and Customer Services,Stock A926,926900,Stock in hand-Inventory system,04/12/2020,3811415-KX93877,"1,494.95",XMA LTD.
Neighbourhoods and Climate Change,Technical Services CM0300,Stock A926,926900,Stock in hand-Inventory system,04/12/2020,3811148-INV142241,659.50,AZTEC CHEMICALS LTD.
Neighbourhoods and Climate Change,Technical Services CM0300,Stock A926,926900,Stock in hand-Inventory system,04/12/2020,3811238-DRM/317453,"1,228.70",FRED WILLIAMSON & SONS LTD.*
Neighbourhoods and Climate Change,Technical Services CM0300,Stock A926,926900,Stock in hand-Inventory system,04/12/2020,3811263-758252,"2,436.00",INSTARMAC GROUP PLC.
Neighbourhoods and Climate Change,Technical Services CM0300,Stock A926,926900,Stock in hand-Inventory system,04/12/2020,3811274-0115/00236401,"2,556.00",JT DOVE LTD.
"Regeneration, Economy and Growth",Transport and Contracted Services,Supplies and Services,372009,Subscriptions E372,04/12/2020,3811284-3846,"1,157.63",LIFTSHARE.COM LTD.
Adult and Health Services,Head of Adults,Third Party Payments,478151,Purchase of Care,04/12/2020,3811220-KWVOIDS/PERIOD8-2020,736.96,EMBRACING CARE.
Adult and Health Services,Head of Adults,Third Party Payments,478151,Purchase of Care,04/12/2020,3811221-0090,"46,887.40",EMBRACING CARE.
Adult and Health Services,Head of Adults,Third Party Payments,478151,Purchase of Care,04/12/2020,3811221-DURHAMROADP8-2020,"2,314.68",EMBRACING CARE.
Adult and Health Services,Head of Adults,Third Party Payments,478151,Purchase of Care,04/12/2020,3811221-JENNAHOUSEP8-2020,"1,874.68",EMBRACING CARE.
Adult and Health Services,Head of Adults,Third Party Payments,478151,Purchase of Care,04/12/2020,3811221-LDCONTPERIOD82020,"3,634.40",EMBRACING CARE.
Adult and Health Services,Head of Adults,Third Party Payments,478151,Purchase of Care,04/12/2020,3811221-MIDHILLP8-2020,"3,053.52",EMBRACING CARE.
Adult and Health Services,Head of Adults,Third Party Payments,478151,Purchase of Care,04/12/2020,3811221-PARKDRIVEP8-2020,"2,429.40",EMBRACING CARE.
Adult and Health Services,Head of Adults,Third Party Payments,478151,Purchase of Care,04/12/2020,3811221-STAGVOIDPERIOD8-2020,"2,072.92",EMBRACING CARE.
Adult and Health Services,Head of Adults,Third Party Payments,478151,Purchase of Care,04/12/2020,3811221-STGODRICS3P8-2020,"1,785.52",EMBRACING CARE.
Adult and Health Services,Head of Adults,Third Party Payments,478151,Purchase of Care,04/12/2020,3811221-WESTLEAPERIOD8-2020,"2,344.72",EMBRACING CARE.
Adult and Health Services,Head of Adults,Third Party Payments,478151,Purchase of Care,04/12/2020,3811327-1994,"18,852.00",POSITIVE INDIVIDUAL PROACTIVE SUPPORT LTD.
Adult and Health Services,Head of Adults,Third Party Payments,478151,Purchase of Care,04/12/2020,3811330-26001514,"2,142.04",POTENSIAL LTD.
Children and Young Peoples Services,Head of Education and Skills,Transfer Payments,510028,School Children,04/12/2020,3811210-CAS-12-2020-027,"5,000.00",EARLY LEARNERS PRIVATE DAY NURSERY.
Neighbourhoods and Climate Change,Environmental Services,Transport,210057,Repair and Maintenance of Vehicles,04/12/2020,3811168-416361,501.34,CARRS BILLINGTON AGRICULTURE.
Neighbourhoods and Climate Change,Environmental Services,Transport,210057,Repair and Maintenance of Vehicles,04/12/2020,3811199-96398126,584.40,DENNIS EAGLE LTD T/A TERBERG MATEC (UK) LTD.
Neighbourhoods and Climate Change,Environmental Services,Transport,210057,Repair and Maintenance of Vehicles,04/12/2020,3811343-749619,563.79,RICKERBY LTD.
Children and Young Peoples Services,Head of Childrens Social Care,Third Party Payments,440038,Other third party payments E440,07/12/2020,3811479-3915,800.00,CITY OF SUNDERLAND YMCA LTD.
Adult and Health Services,Commissioning inc Supporting People,Supplies and Services,304516,Equipment and Materials,07/12/2020,3811422-52300,808.83,ABILITY SMART LTD.
Neighbourhoods and Climate Change,Environmental Services,Supplies and Services,336005,Advertising E336,07/12/2020,3811703-2020-40,800.00,ROBERT CARR T/A RGR FILM PRODUCTIONS.
Dedicated Schools Grant BG0015,DSG High Needs Block,Third Party Payments,410037,Rendered by Other Local Authorities,07/12/2020,3811566-2,"10,028.40",HIGH SPEN PRIMARY SCHOOL.
Dedicated Schools Grant BG0015,DSG High Needs Block,Third Party Payments,410037,Rendered by Other Local Authorities,07/12/2020,3811651-105174,916.67,NISAI VIRTUAL ACADEMY LTD.
Dedicated Schools Grant BG0015,DSG High Needs Block,Third Party Payments,410037,Rendered by Other Local Authorities,07/12/2020,3811766-0000000174,"9,424.00",VENERABLE BEDE CHURCH OF ENGLAND ACADEMY.
Resources BK0010,Legal & Democratic Services,Supplies and Services,338042,Services,07/12/2020,3811501-357762/INVREB127,650.00,DERE STREET BARRISTERS.
Resources BK0010,Legal & Democratic Services,Supplies and Services,338042,Services,07/12/2020,3811501-360983/INVSEB1X263,550.00,DERE STREET BARRISTERS.
Resources BK0010,Legal & Democratic Services,Supplies and Services,338042,Services,07/12/2020,3811672-31007130/11/20,"2,600.00",PARKLANE PLOWDEN CHAMBERS (BARRISTERS).
Resources BK0010,Legal & Democratic Services,Supplies and Services,338042,Services,07/12/2020,3811759-265884/INVMA103,"3,037.50",TRINITY CHAMBERS.
"Regeneration, Economy and Growth",Culture Sport and Tourism,Supplies and Services,312013,Newspapers books and periodicals E312,07/12/2020,3811438-6377750,512.34,ASKEWS & HOLTS LIBRARY SERVICES LTD.
"Regeneration, Economy and Growth",Culture Sport and Tourism,Supplies and Services,312013,Newspapers books and periodicals E312,07/12/2020,3811650-9016105198,"2,725.00",NIELSEN BOOK SERVICES LTD.
Neighbourhoods and Climate Change,Technical Services CM0300,Construction work A908,908109,Capital - Resurfacing,07/12/2020,3811595-371551,855.00,JPI MEDIA PUBLISHING LTD T/A SHEFFIELD NEWSPAPERS.
Resources BK0010,Digital and Customer Services,Vehicles Equipment Furniture and Fittings,912701,Computer equipment,07/12/2020,3811734-135126,"2,475.00",SWITCHSHOP LTD.
Adult and Health Services,Commissioning inc Supporting People,Supplies and Services,342033,Computers and Communications,07/12/2020,3811578-5082837,"1,345.38",INSIGHT DIRECT (UK) LTD.
Resources BK0010,Digital and Customer Services,Supplies and Services,342033,Computers and Communications,07/12/2020,3811791-KX94189,779.00,XMA LTD.
Children and Young Peoples Services,Head of Education and Skills,Supplies and Services,338027,Services,07/12/2020,3811641-0025,"1,000.00",REDACTED - PAYMENT TO INDIVIDUAL
Children and Young Peoples Services,Head of Education and Skills,Supplies and Services,338027,Services,07/12/2020,3811724-EPINAY-304,712.50,SOUTH TYNESIDE COUNCIL.
Neighbourhoods and Climate Change,Environmental Services,Supplies and Services,304337,Equipment and Materials,07/12/2020,3811524-6878032,"7,868.80",ESE WORLD LTD.
Children and Young Peoples Services,Head of Education and Skills,Transport,230034,Contract Hire,07/12/2020,3811573-471,"1,816.50",IAN CLYDESDALE T/A BURNOPFIELD TAXIS.
Children and Young Peoples Services,Head of Education and Skills,Transport,230034,Contract Hire,07/12/2020,3811589-1919,"1,293.18",JDS PRIVATE HIRE DURHAM.
Children and Young Peoples Services,Head of Education and Skills,Transport,230034,Contract Hire,07/12/2020,3811589-1918,"1,750.00",JDS PRIVATE HIRE DURHAM.
Children and Young Peoples Services,Head of Education and Skills,Transport,230007,Contract Hire,07/12/2020,3811474-47150,"5,502.00",CHRISTOPHER JAMES GRIERSON T/A GRIERSONS COACHES.
Children and Young Peoples Services,Head of Education and Skills,Transport,230007,Contract Hire,07/12/2020,3811475-5269/03,760.00,CHRISTOPHER MADDISON (TAXI).
Children and Young Peoples Services,Head of Education and Skills,Transport,230007,Contract Hire,07/12/2020,3811589-1920,"1,447.37",JDS PRIVATE HIRE DURHAM.
Children and Young Peoples Services,Head of Education and Skills,Transport,230007,Contract Hire,07/12/2020,3811590-3024,"2,471.00",JEFF ANDERSON COACHES LTD.
Children and Young Peoples Services,Head of Education and Skills,Transport,230007,Contract Hire,07/12/2020,3811590-3026,"1,830.36",JEFF ANDERSON COACHES LTD.
Children and Young Peoples Services,Head of Education and Skills,Transport,230007,Contract Hire,07/12/2020,3811601-011020/2,"1,075.93",KEVIN EDMUNDSON.
Children and Young Peoples Services,Head of Education and Skills,Transport,230007,Contract Hire,07/12/2020,3811601-011120,"2,027.97",KEVIN EDMUNDSON.
Children and Young Peoples Services,Head of Education and Skills,Transport,230007,Contract Hire,07/12/2020,3811628-199,840.00,MICHAEL COBB T/A HAIL TAXIS.
Children and Young Peoples Services,Head of Education and Skills,Transport,230007,Contract Hire,07/12/2020,3811629-010,987.00,MICHAEL TAYLOR (TAXIS).
Children and Young Peoples Services,Head of Education and Skills,Transport,230007,Contract Hire,07/12/2020,3811678-38594,966.00,PHOENIX TAXIS T/A PRATT`S TAXIS.
Children and Young Peoples Services,Head of Education and Skills,Transport,230007,Contract Hire,07/12/2020,3811678-38593,905.01,PHOENIX TAXIS T/A PRATT`S TAXIS.
Children and Young Peoples Services,Head of Education and Skills,Transport,230007,Contract Hire,07/12/2020,3811727-05299,921.06,STANLEY TRAVEL (NORTH EAST) LTD.
Children and Young Peoples Services,Head of Education and Skills,Transport,230003,Contract Hire,07/12/2020,3811474-47145,"6,531.00",CHRISTOPHER JAMES GRIERSON T/A GRIERSONS COACHES.
Children and Young Peoples Services,Head of Education and Skills,Transport,230003,Contract Hire,07/12/2020,3811474-47146,"3,486.00",CHRISTOPHER JAMES GRIERSON T/A GRIERSONS COACHES.
Children and Young Peoples Services,Head of Education and Skills,Transport,230003,Contract Hire,07/12/2020,3811474-47151,"3,486.00",CHRISTOPHER JAMES GRIERSON T/A GRIERSONS COACHES.
Children and Young Peoples Services,Head of Education and Skills,Transport,230003,Contract Hire,07/12/2020,3811474-47152,"3,381.00",CHRISTOPHER JAMES GRIERSON T/A GRIERSONS COACHES.
Children and Young Peoples Services,Head of Education and Skills,Transport,230003,Contract Hire,07/12/2020,3811474-47153,"3,591.00",CHRISTOPHER JAMES GRIERSON T/A GRIERSONS COACHES.
Children and Young Peoples Services,Head of Education and Skills,Transport,230003,Contract Hire,07/12/2020,3811474-47154,"2,835.00",CHRISTOPHER JAMES GRIERSON T/A GRIERSONS COACHES.
Dedicated Schools Grant BG0015,DSG High Needs Block,Transport,230009,Contract Hire,07/12/2020,3811589-1937,822.46,JDS PRIVATE HIRE DURHAM.
Children and Young Peoples Services,Head of Education and Skills,Transport,230009,Contract Hire,07/12/2020,3811439-30/11/20,"2,151.40",AVALON TAXIS.
Children and Young Peoples Services,Head of Education and Skills,Transport,230009,Contract Hire,07/12/2020,3811545-8,756.00,GARY BRUNTON`S TAXI.
Children and Young Peoples Services,Head of Education and Skills,Transport,230009,Contract Hire,07/12/2020,3811589-1921,851.80,JDS PRIVATE HIRE DURHAM.
Children and Young Peoples Services,Head of Education and Skills,Transport,230009,Contract Hire,07/12/2020,3811589-1922,"1,677.60",JDS PRIVATE HIRE DURHAM.
Children and Young Peoples Services,Head of Education and Skills,Transport,230006,Contract Hire,07/12/2020,3811475-F830/08,922.00,CHRISTOPHER MADDISON (TAXI).
Children and Young Peoples Services,Head of Education and Skills,Transport,230006,Contract Hire,07/12/2020,3811480-N112-GHHH1120,"2,195.97",CJ`S EXECUTIVE TRAVEL LTD.
Children and Young Peoples Services,Head of Education and Skills,Transport,230006,Contract Hire,07/12/2020,3811493-110445,"5,442.42",CROFT BUSINESS SERVICES (UK) LTD T/A CROFT TAXIS.
Children and Young Peoples Services,Head of Education and Skills,Transport,230006,Contract Hire,07/12/2020,3811493-110455,"2,088.64",CROFT BUSINESS SERVICES (UK) LTD T/A CROFT TAXIS.
Children and Young Peoples Services,Head of Education and Skills,Transport,230006,Contract Hire,07/12/2020,3811545-9,"1,472.00",GARY BRUNTON`S TAXI.
Children and Young Peoples Services,Head of Education and Skills,Transport,230006,Contract Hire,07/12/2020,3811561-45,710.00,HARDIP SINGH MAHIL T/A AMBER CARS.
Children and Young Peoples Services,Head of Education and Skills,Transport,230006,Contract Hire,07/12/2020,3811573-469,"3,045.00",IAN CLYDESDALE T/A BURNOPFIELD TAXIS.
Children and Young Peoples Services,Head of Education and Skills,Transport,230006,Contract Hire,07/12/2020,3811592-32021,"1,298.00",JOHN BELL TAXI.
Children and Young Peoples Services,Head of Education and Skills,Transport,230010,Contract Hire,07/12/2020,3811548-31,"1,893.54",GERARD MCLOUGHLIN T/A GMAC TAXIS.
Children and Young Peoples Services,Head of Education and Skills,Transport,230012,Contract Hire,07/12/2020,3811589-1926,"1,534.68",JDS PRIVATE HIRE DURHAM.
Children and Young Peoples Services,Head of Education and Skills,Transport,230012,Contract Hire,07/12/2020,3811752-EDINVN070,968.66,TONYS TAXIS (A BIRCH).
Children and Young Peoples Services,Head of Education and Skills,Transport,230016,Contract Hire,07/12/2020,3811571-IR2011002,"2,082.78",I & R EXECUTIVE TRAVEL.
Children and Young Peoples Services,Head of Education and Skills,Transport,230008,Contract Hire,07/12/2020,3811446-SMITH1NOVEMBER20,"2,179.25",BEELINE PRIVATE HIRE.
Children and Young Peoples Services,Head of Education and Skills,Transport,230008,Contract Hire,07/12/2020,3811453-8024-30/11/20,"2,333.52",BOBBY DOVE PRIVATE HIRE.
Children and Young Peoples Services,Head of Education and Skills,Transport,230008,Contract Hire,07/12/2020,3811480-A072SP1120,"1,485.95",CJ`S EXECUTIVE TRAVEL LTD.
Children and Young Peoples Services,Head of Education and Skills,Transport,230008,Contract Hire,07/12/2020,3811480-N115-CB1120,"1,947.75",CJ`S EXECUTIVE TRAVEL LTD.
Children and Young Peoples Services,Head of Education and Skills,Transport,230008,Contract Hire,07/12/2020,3811493-110415,"4,136.28",CROFT BUSINESS SERVICES (UK) LTD T/A CROFT TAXIS.
Children and Young Peoples Services,Head of Education and Skills,Transport,230008,Contract Hire,07/12/2020,3811493-110444,"4,344.36",CROFT BUSINESS SERVICES (UK) LTD T/A CROFT TAXIS.
Children and Young Peoples Services,Head of Education and Skills,Transport,230008,Contract Hire,07/12/2020,3811493-110448,"2,457.00",CROFT BUSINESS SERVICES (UK) LTD T/A CROFT TAXIS.
Children and Young Peoples Services,Head of Education and Skills,Transport,230008,Contract Hire,07/12/2020,3811493-110454,"1,767.22",CROFT BUSINESS SERVICES (UK) LTD T/A CROFT TAXIS.
Children and Young Peoples Services,Head of Education and Skills,Transport,230008,Contract Hire,07/12/2020,3811493-110446,"2,946.00",CROFT BUSINESS SERVICES (UK) LTD T/A CROFT TAXIS.
Children and Young Peoples Services,Head of Education and Skills,Transport,230008,Contract Hire,07/12/2020,3811493-110451,"2,565.40",CROFT BUSINESS SERVICES (UK) LTD T/A CROFT TAXIS.
Children and Young Peoples Services,Head of Education and Skills,Transport,230008,Contract Hire,07/12/2020,3811493-110449,"2,574.01",CROFT BUSINESS SERVICES (UK) LTD T/A CROFT TAXIS.
Children and Young Peoples Services,Head of Education and Skills,Transport,230008,Contract Hire,07/12/2020,3811493-110450,"2,680.00",CROFT BUSINESS SERVICES (UK) LTD T/A CROFT TAXIS.
Children and Young Peoples Services,Head of Education and Skills,Transport,230008,Contract Hire,07/12/2020,3811571-IR2011001,"2,943.48",I & R EXECUTIVE TRAVEL.
Children and Young Peoples Services,Head of Education and Skills,Transport,230008,Contract Hire,07/12/2020,3811573-474,"2,331.00",IAN CLYDESDALE T/A BURNOPFIELD TAXIS.
Children and Young Peoples Services,Head of Education and Skills,Transport,230008,Contract Hire,07/12/2020,3811573-473,"3,520.00",IAN CLYDESDALE T/A BURNOPFIELD TAXIS.
Children and Young Peoples Services,Head of Education and Skills,Transport,230008,Contract Hire,07/12/2020,3811573-472,"4,452.00",IAN CLYDESDALE T/A BURNOPFIELD TAXIS.
Children and Young Peoples Services,Head of Education and Skills,Transport,230008,Contract Hire,07/12/2020,3811587-73,930.00,JAYS TAXIS/JOHN GARLAND (TAXIS).
Children and Young Peoples Services,Head of Education and Skills,Transport,230008,Contract Hire,07/12/2020,3811589-1930,"1,150.80",JDS PRIVATE HIRE DURHAM.
Children and Young Peoples Services,Head of Education and Skills,Transport,230008,Contract Hire,07/12/2020,3811589-1923,"2,982.00",JDS PRIVATE HIRE DURHAM.
Children and Young Peoples Services,Head of Education and Skills,Transport,230008,Contract Hire,07/12/2020,3811589-1945,852.00,JDS PRIVATE HIRE DURHAM.
Children and Young Peoples Services,Head of Education and Skills,Transport,230008,Contract Hire,07/12/2020,3811589-1935,"2,589.80",JDS PRIVATE HIRE DURHAM.
Children and Young Peoples Services,Head of Education and Skills,Transport,230008,Contract Hire,07/12/2020,3811589-1931,"1,972.03",JDS PRIVATE HIRE DURHAM.
Children and Young Peoples Services,Head of Education and Skills,Transport,230008,Contract Hire,07/12/2020,3811589-1942,"2,729.00",JDS PRIVATE HIRE DURHAM.
Children and Young Peoples Services,Head of Education and Skills,Transport,230008,Contract Hire,07/12/2020,3811589-1943,"2,404.66",JDS PRIVATE HIRE DURHAM.
Children and Young Peoples Services,Head of Education and Skills,Transport,230008,Contract Hire,07/12/2020,3811589-1927,"1,652.60",JDS PRIVATE HIRE DURHAM.
Children and Young Peoples Services,Head of Education and Skills,Transport,230008,Contract Hire,07/12/2020,3811589-1928,"1,818.40",JDS PRIVATE HIRE DURHAM.
Children and Young Peoples Services,Head of Education and Skills,Transport,230008,Contract Hire,07/12/2020,3811589-1929,"1,608.68",JDS PRIVATE HIRE DURHAM.
Children and Young Peoples Services,Head of Education and Skills,Transport,230008,Contract Hire,07/12/2020,3811589-1932,"1,440.00",JDS PRIVATE HIRE DURHAM.
Children and Young Peoples Services,Head of Education and Skills,Transport,230008,Contract Hire,07/12/2020,3811589-1933,"1,653.00",JDS PRIVATE HIRE DURHAM.
Children and Young Peoples Services,Head of Education and Skills,Transport,230008,Contract Hire,07/12/2020,3811589-1934,"1,152.00",JDS PRIVATE HIRE DURHAM.
Children and Young Peoples Services,Head of Education and Skills,Transport,230008,Contract Hire,07/12/2020,3811589-1938,"1,766.50",JDS PRIVATE HIRE DURHAM.
Children and Young Peoples Services,Head of Education and Skills,Transport,230008,Contract Hire,07/12/2020,3811589-1939,"2,800.00",JDS PRIVATE HIRE DURHAM.
Children and Young Peoples Services,Head of Education and Skills,Transport,230008,Contract Hire,07/12/2020,3811590-3027,"1,929.69",JEFF ANDERSON COACHES LTD.
Children and Young Peoples Services,Head of Education and Skills,Transport,230008,Contract Hire,07/12/2020,3811590-3028,"2,014.63",JEFF ANDERSON COACHES LTD.
Children and Young Peoples Services,Head of Education and Skills,Transport,230008,Contract Hire,07/12/2020,3811590-3025,"2,127.09",JEFF ANDERSON COACHES LTD.
Children and Young Peoples Services,Head of Education and Skills,Transport,230008,Contract Hire,07/12/2020,3811598-1130,"3,266.00",K & R TAXIS (STANLEY).
Children and Young Peoples Services,Head of Education and Skills,Transport,230008,Contract Hire,07/12/2020,3811600-03NOV20,"3,524.64",KD TAXIS.
Children and Young Peoples Services,Head of Education and Skills,Transport,230008,Contract Hire,07/12/2020,3811635-0003-W036,"2,295.08",MR A MILLWARD T/A SWISS CABS PRIVATE HIRE.
Children and Young Peoples Services,Head of Education and Skills,Transport,230008,Contract Hire,07/12/2020,3811639-0045,"1,320.00",MR PM MULLEN T/A CATHEDRAL TAXIS.
Children and Young Peoples Services,Head of Education and Skills,Transport,230008,Contract Hire,07/12/2020,3811676-63,"1,983.22",PHILLIP BOYD T/A FILS TAXIS.
"Regeneration, Economy and Growth",Transport and Contracted Services,Third Party Payments,430108,Rendered by Private Contractors,07/12/2020,3811649-1800010410653,"81,952.07",NEWCASTLE UPON TYNE CITY COUNCIL.
Neighbourhoods and Climate Change,Technical Services CM0300,Third Party Payments,460224,Contract Payments,07/12/2020,3811732-20761356,"3,027.50",SUNBELT RENTALS LTD.
Neighbourhoods and Climate Change,Technical Services CM0300,Third Party Payments,430127,Rendered by Private Contractors,07/12/2020,3811497-GRITTINGNOV2020,825.00,D & L HOPPS.
Neighbourhoods and Climate Change,Technical Services CM0300,Third Party Payments,430127,Rendered by Private Contractors,07/12/2020,3811572-2825,850.00,IAN C LIDDLE T/A IC LIDDLE SERVICES.
Neighbourhoods and Climate Change,Technical Services CM0300,Third Party Payments,430127,Rendered by Private Contractors,07/12/2020,3811572-2826,850.00,IAN C LIDDLE T/A IC LIDDLE SERVICES.
Neighbourhoods and Climate Change,Technical Services CM0300,Third Party Payments,430127,Rendered by Private Contractors,07/12/2020,3811582-5306021,760.00,JA GILSON (AGRICULTURAL CONTRACTORS) LTD.
Neighbourhoods and Climate Change,Technical Services CM0300,Third Party Payments,430127,Rendered by Private Contractors,07/12/2020,3811582-5306022,850.00,JA GILSON (AGRICULTURAL CONTRACTORS) LTD.
Neighbourhoods and Climate Change,Technical Services CM0300,Third Party Payments,430127,Rendered by Private Contractors,07/12/2020,3811773-48714,"1,322.00",W MARLEY AGRICULTURAL CONTRACTORS LTD.
"Regeneration, Economy and Growth",Corporate Property and Land,Supplies and Services,304221,Equipment and Materials,07/12/2020,3811764-04023953,"1,918.80",UK ELECTRIC LTD.*
Neighbourhoods and Climate Change,Environmental Services,Supplies and Services,304221,Equipment and Materials,07/12/2020,3811562-SI-6385,"1,790.00",HARELAW SAWMILL LTD.
Neighbourhoods and Climate Change,Environmental Services,Supplies and Services,304221,Equipment and Materials,07/12/2020,3811790-0000026542,"9,513.32",WYBONE LTD.
Neighbourhoods and Climate Change,Technical Services CM0300,Supplies and Services,304221,Equipment and Materials,07/12/2020,3811763-216250,540.29,TYNEDALE ROADSTONE LTD.
Regeneration and Local Services,COVID19 - Regeneration Economy and Growth,Supplies and Services,338047,Services,07/12/2020,3811599-395,"1,000.00",KATIE DOHERTY (MUSICIAN).
"Regeneration, Economy and Growth",Corporate Property and Land,Supplies and Services,304259,Equipment and Materials,07/12/2020,3811755-104083,"1,318.00",TOTAL RENTAL SOLUTIONS.
"Regeneration, Economy and Growth",Culture Sport and Tourism,Supplies and Services,304259,Equipment and Materials,07/12/2020,3811594-980300,"2,034.10",JP LENNARD LTD.
Children and Young Peoples Services,Head of Childrens Social Care,Supplies and Services,338044,Services,07/12/2020,3811624-0476,"1,105.00",MECROW MEDICAL SERVICES LTD.
Children and Young Peoples Services,Head of Early Help Inclusion & Vulnerable Children.,Premises,108099,Service Repairs and Maintenance,07/12/2020,3811435-311,"1,940.00",ARMSTRONG DECORATORS.
Neighbourhoods and Climate Change,Partnerships & Community Engagement Div.,Supplies and Services,384086,Miscellaneous Expenses,07/12/2020,3811511-VOUCHER20NB-WEAR012,"1,000.00",EASTGATE VILLAGE HALL ASSOCIATION.
Neighbourhoods and Climate Change,Partnerships & Community Engagement Div.,Supplies and Services,384086,Miscellaneous Expenses,07/12/2020,3811529-VOUCHER20NB-DCTY053,"4,000.00",FEEDING FAMILIES.
Neighbourhoods and Climate Change,Partnerships & Community Engagement Div.,Supplies and Services,384086,Miscellaneous Expenses,07/12/2020,3811675-VOUCHER20NB-EDUR0342NDINST,"5,000.00",PETERLEE TOWN COUNCIL.
Neighbourhoods and Climate Change,Partnerships & Community Engagement Div.,Supplies and Services,384086,Miscellaneous Expenses,07/12/2020,3811691-VOUCHER20NB-EDRC015,"1,000.00",QUARRINGTON HILL COMMUNITY ASSOCIATION (QHCA).
Neighbourhoods and Climate Change,Partnerships & Community Engagement Div.,Supplies and Services,384086,Miscellaneous Expenses,07/12/2020,3811757-VOUCHER20NB-MDUR0151STINST,833.00,TRACC NW.
Resources BK0010,Digital and Customer Services,Supplies and Services,304303,Equipment and Materials,07/12/2020,3811576-SI-023994,"6,597.36",INFORMATION & DATA NETWORK SUPPLIES LTD (IDN).
"Regeneration, Economy and Growth",Culture Sport and Tourism,Supplies and Services,312009,Newspapers books and periodicals E312,07/12/2020,3811658-2020/27,500.25,NORTHERN CHILDRENS BOOK FESTIVAL (NCBF).
"Regeneration, Economy and Growth",Culture Sport and Tourism,Supplies and Services,384199,Miscellaneous Expenses,07/12/2020,3811470-INV-0670,"2,516.10",CHANNELL EVENTS LTD.
"Regeneration, Economy and Growth",Transport and Contracted Services,Supplies and Services,384199,Miscellaneous Expenses,07/12/2020,3811686-168208,"46,940.00",PREMIER TRAFFIC MANAGEMENT LTD.
"Regeneration, Economy and Growth",Transport and Contracted Services,Third Party Payments,430106,Rendered by Private Contractors,07/12/2020,3811530-PPT3671/3666NOV20,"3,711.80",FERRYHILL VILLAGE TRAVEL.
"Regeneration, Economy and Growth",Corporate Property and Land,Third Party Payments,430100,Rendered by Private Contractors,07/12/2020,3811424-IN7833,571.63,ACROL AIR CONDITIONING CO LTD.
"Regeneration, Economy and Growth",Corporate Property and Land,Third Party Payments,430100,Rendered by Private Contractors,07/12/2020,3811577-10008,"1,285.00",INGLEFORD SCAFFOLDING LTD.
"Regeneration, Economy and Growth",Corporate Property and Land,Third Party Payments,430100,Rendered by Private Contractors,07/12/2020,3811577-10009,"6,146.00",INGLEFORD SCAFFOLDING LTD.
Neighbourhoods and Climate Change,Environmental Services,Third Party Payments,430100,Rendered by Private Contractors,07/12/2020,3811500-393837,"1,741.71",DENNIS EAGLE LTD.
Neighbourhoods and Climate Change,Environmental Services,Third Party Payments,430100,Rendered by Private Contractors,07/12/2020,3811522-13000526003,"1,103.43",ENTERPRISE FLEX-E-RENT T/A BURNT TREE GROUP LTD.
Neighbourhoods and Climate Change,Environmental Services,Third Party Payments,430100,Rendered by Private Contractors,07/12/2020,3811550-A54204,558.00,GLASS ASSIST UK.
Neighbourhoods and Climate Change,Environmental Services,Third Party Payments,430100,Rendered by Private Contractors,07/12/2020,3811572-2827,"1,217.60",IAN C LIDDLE T/A IC LIDDLE SERVICES.
Neighbourhoods and Climate Change,Environmental Services,Third Party Payments,430100,Rendered by Private Contractors,07/12/2020,3811673-01070,882.00,PAUL TIERNEY.
Neighbourhoods and Climate Change,Environmental Services,Third Party Payments,430100,Rendered by Private Contractors,07/12/2020,3811686-167366,"1,500.00",PREMIER TRAFFIC MANAGEMENT LTD.
Neighbourhoods and Climate Change,Environmental Services,Third Party Payments,430100,Rendered by Private Contractors,07/12/2020,3811748-0641,"1,440.00",THE SKILL MILL LTD.
Neighbourhoods and Climate Change,Technical Services CM0300,Third Party Payments,430100,Rendered by Private Contractors,07/12/2020,3811610-221088,"13,885.00",LIGHTING & ILLUMINATION TECHNOLOGY EXPERIENCE LTD (LITE).
Neighbourhoods and Climate Change,Technical Services CM0300,Third Party Payments,430100,Rendered by Private Contractors,07/12/2020,3811680-6034,"4,823.74",PINKNEY BUILDING CONTRACTORS LTD.
Neighbourhoods and Climate Change,Technical Services CM0300,Third Party Payments,430100,Rendered by Private Contractors,07/12/2020,3811680-6035,"1,956.93",PINKNEY BUILDING CONTRACTORS LTD.
Neighbourhoods and Climate Change,Technical Services CM0300,Third Party Payments,430100,Rendered by Private Contractors,07/12/2020,3811680-6039,"4,823.74",PINKNEY BUILDING CONTRACTORS LTD.
Neighbourhoods and Climate Change,Technical Services CM0300,Third Party Payments,430100,Rendered by Private Contractors,07/12/2020,3811680-6040,"2,477.02",PINKNEY BUILDING CONTRACTORS LTD.
Neighbourhoods and Climate Change,Technical Services CM0300,Third Party Payments,430100,Rendered by Private Contractors,07/12/2020,3811690-12937,"13,130.66",QUANTUM POWER CONNECTIONS LTD.
Neighbourhoods and Climate Change,Environmental Services,Supplies and Services,338066,Services,07/12/2020,3811496-3374,715.00,CURIOUS 12 LTD.
Neighbourhoods and Climate Change,Environmental Services,Supplies and Services,338066,Services,07/12/2020,3811585-BURSARYNOV20,741.88,JAMES DILL-RUSSELL (GEOLOGIST).
Neighbourhoods and Climate Change,Technical Services CM0300,Supplies and Services,338066,Services,07/12/2020,3811782-392,640.00,WHORLTON LAND SURVEYS LTD.
Neighbourhoods and Climate Change,Technical Services CM0300,Supplies and Services,338066,Services,07/12/2020,3811782-402,650.00,WHORLTON LAND SURVEYS LTD.
Adult and Health Services,Public Health CC0450,Third Party Payments,460803,Contract Payments,07/12/2020,3811484-3910018321,"173,748.00",CO DURHAM & DARLINGTON NHS FOUNDATION TRUST.
Adult and Health Services,Public Health CC0450,Third Party Payments,460803,Contract Payments,07/12/2020,3811484-3910018322,"24,964.00",CO DURHAM & DARLINGTON NHS FOUNDATION TRUST.
Adult and Health Services,Public Health CC0450,Third Party Payments,460803,Contract Payments,07/12/2020,3811560-DCCDA009,"41,416.75",HARBOUR SUPPORT SERVICES.
Adult and Health Services,Public Health CC0450,Third Party Payments,460803,Contract Payments,07/12/2020,3811560-DCCVC009,"4,321.42",HARBOUR SUPPORT SERVICES.
Adult and Health Services,Public Health CC0450,Third Party Payments,460803,Contract Payments,07/12/2020,3811681-17379/14,"7,326.42",PIONEERING CARE PARTNERSHIP.
Adult and Health Services,Public Health CC0450,Third Party Payments,460803,Contract Payments,07/12/2020,3811681-17377/14,"5,462.93",PIONEERING CARE PARTNERSHIP.
"Regeneration, Economy and Growth",Culture Sport and Tourism,Supplies and Services,384167,Miscellaneous Expenses,07/12/2020,3811692-9194,"4,350.00",QUEST & NBS.
Children and Young Peoples Services,Head of Childrens Social Care,Third Party Payments,425021,Rendered by Voluntary Organisations,07/12/2020,3811432-242,"2,250.00",ANGEL SERVICED APARTMENTS.
Children and Young Peoples Services,Head of Childrens Social Care,Third Party Payments,425021,Rendered by Voluntary Organisations,07/12/2020,3811437-INV-1363,"22,755.00",ARTEMIS SUPPORT LTD.
Children and Young Peoples Services,Head of Childrens Social Care,Third Party Payments,425021,Rendered by Voluntary Organisations,07/12/2020,3811570-0009,"2,170.00",HUDSON HOUSE HOLIDAY LET.
"Regeneration, Economy and Growth",Business Durham CL0850,Supplies and Services,338078,Services,07/12/2020,3811770-INV-40002,"6,243.76",VISTECH SERVICES.
Children and Young Peoples Services,Head of Early Help Inclusion & Vulnerable Children.,Supplies and Services,338078,Services,07/12/2020,3811729-16176,"16,855.97",STEADFAST SECURITY SOLUTIONS LTD.
Neighbourhoods and Climate Change,Environmental Services,Transport,230005,Contract Hire,07/12/2020,3811553-INV00016120,"4,095.00",GO PLANT FLEET SERVICES LTD.*
Neighbourhoods and Climate Change,Environmental Services,Transport,230005,Contract Hire,07/12/2020,3811553-INV00016119,"4,095.00",GO PLANT FLEET SERVICES LTD.*
Neighbourhoods and Climate Change,Environmental Services,Transport,230005,Contract Hire,07/12/2020,3811553-INV00016121,"4,095.00",GO PLANT FLEET SERVICES LTD.*
Neighbourhoods and Climate Change,Environmental Services,Transport,230005,Contract Hire,07/12/2020,3811553-INV00016122,"3,705.00",GO PLANT FLEET SERVICES LTD.*
Neighbourhoods and Climate Change,Environmental Services,Transport,230005,Contract Hire,07/12/2020,3811553-INV00016126,659.88,GO PLANT FLEET SERVICES LTD.*
Neighbourhoods and Climate Change,Environmental Services,Transport,230005,Contract Hire,07/12/2020,3811647-138308,875.00,ND BROWN LTD.
Neighbourhoods and Climate Change,Environmental Services,Transport,230005,Contract Hire,07/12/2020,3811647-138304,"3,625.00",ND BROWN LTD.
Neighbourhoods and Climate Change,Environmental Services,Transport,230005,Contract Hire,07/12/2020,3811647-138305,"2,474.85",ND BROWN LTD.
Neighbourhoods and Climate Change,Environmental Services,Transport,230005,Contract Hire,07/12/2020,3811647-138306,"2,075.00",ND BROWN LTD.
Neighbourhoods and Climate Change,Environmental Services,Transport,230005,Contract Hire,07/12/2020,3811647-138307,"2,474.85",ND BROWN LTD.
Adult and Health Services,Head of Adults,Transport,230005,Contract Hire,07/12/2020,3811453-8069,"1,039.50",BOBBY DOVE PRIVATE HIRE.
Adult and Health Services,Head of Adults,Transport,230005,Contract Hire,07/12/2020,3811571-IR2011003,"2,058.00",I & R EXECUTIVE TRAVEL.
Adult and Health Services,Head of Adults,Transport,230005,Contract Hire,07/12/2020,3811571-IR2011008,714.00,I & R EXECUTIVE TRAVEL.
Adult and Health Services,Head of Adults,Transport,230005,Contract Hire,07/12/2020,3811589-1936,"2,526.00",JDS PRIVATE HIRE DURHAM.
Adult and Health Services,Head of Adults,Transport,230005,Contract Hire,07/12/2020,3811589-1941,"2,320.00",JDS PRIVATE HIRE DURHAM.
Adult and Health Services,Head of Adults,Transport,230005,Contract Hire,07/12/2020,3811593-01112020,975.30,JOHN HUBBLE T/A HUBB`S TAXIS.
Adult and Health Services,Head of Adults,Transport,230005,Contract Hire,07/12/2020,3811776-1233-30/11/20,"1,350.00",WAYNE`S TAXIS.
Neighbourhoods and Climate Change,Technical Services CM0300,Stock A926,926900,Stock in hand-Inventory system,07/12/2020,3811555-06/099291,695.60,GREENHAM TRADING LTD.
Neighbourhoods and Climate Change,Technical Services CM0300,Stock A926,926900,Stock in hand-Inventory system,07/12/2020,3811591-9963,770.00,JG UNIFORMS.
Neighbourhoods and Climate Change,Technical Services CM0300,Stock A926,926900,Stock in hand-Inventory system,07/12/2020,3811755-104082,"1,212.48",TOTAL RENTAL SOLUTIONS.
Adult and Health Services,Head of Adults,Third Party Payments,478151,Purchase of Care,07/12/2020,3811519-KWVOIDS/PERIOD7/2020BALANCE,"2,210.88",EMBRACING CARE.
Adult and Health Services,Head of Adults,Third Party Payments,478151,Purchase of Care,07/12/2020,3811519-KWVOIDS/PERIOD8-2020BALANCE,"2,210.88",EMBRACING CARE.
Dedicated Schools Grant BG0015,DSG High Needs Block,Supplies and Services,384302,Miscellaneous Expenses,08/12/2020,3812639-1001362,"5,000.00",KING JAMES I ACADEMY.
Children and Young Peoples Services,Head of Education and Skills,Supplies and Services,384302,Miscellaneous Expenses,08/12/2020,3812746-2011053,"3,000.00",SAGITTARIAN EMBROIDERY.
Children and Young Peoples Services,Head of Childrens Social Care,Supplies and Services,384500,Miscellaneous Expenses,08/12/2020,3812697-1244,500.00,NORTH EAST ADOPTION THERAPY SERVICES LTD (NEATS).
Children and Young Peoples Services,Head of Education and Skills,Construction work A908,908105,Construction work,08/12/2020,3812582-18164,"1,275.00",FT LEISURE LTD.
Neighbourhoods and Climate Change,Technical Services CM0300,Construction work A908,908105,Construction work,08/12/2020,3812621-24838,533.48,JACK COUPE & SONS LTD T/A COUPE LINE.
Neighbourhoods and Climate Change,Technical Services CM0300,Construction work A908,908105,Construction work,08/12/2020,3812621-24847,"2,628.17",JACK COUPE & SONS LTD T/A COUPE LINE.
Neighbourhoods and Climate Change,Technical Services CM0300,Construction work A908,908105,Construction work,08/12/2020,3812621-24832,"1,351.68",JACK COUPE & SONS LTD T/A COUPE LINE.
"Regeneration, Economy and Growth",Development and Housing,Supplies and Services,338027,Services,08/12/2020,3812640-466066,"2,500.00",KINGS CHAMBERS.
Neighbourhoods and Climate Change,Environmental Services,Supplies and Services,304337,Equipment and Materials,08/12/2020,3812659-238,656.46,MARTIN J ROGERS (PHOTOGRAPHY).
Children and Young Peoples Services,Head of Education and Skills,Transport,230034,Contract Hire,08/12/2020,3812435-2OCT202,904.50,A & C TAXIS.
Children and Young Peoples Services,Head of Education and Skills,Transport,230034,Contract Hire,08/12/2020,3812435-3NOV20,"1,340.00",A & C TAXIS.
Children and Young Peoples Services,Head of Education and Skills,Transport,230034,Contract Hire,08/12/2020,3812460-796,"1,491.00",AT TAXIS LTD.
Children and Young Peoples Services,Head of Education and Skills,Transport,230034,Contract Hire,08/12/2020,3812502-BIL0209,"2,440.00",CA MUSGROVE.
Children and Young Peoples Services,Head of Education and Skills,Transport,230034,Contract Hire,08/12/2020,3812541-SEDGE301120,933.00,D IRVING T/A BJ TAXIS.
Children and Young Peoples Services,Head of Education and Skills,Transport,230034,Contract Hire,08/12/2020,3812627-3403-NOV,"1,697.00",JL EBDON. T/A DIAL-A-CAB.
Children and Young Peoples Services,Head of Education and Skills,Transport,230034,Contract Hire,08/12/2020,3812631-219,636.00,JOHN ROBSON T/A ACE TAXIS.
Children and Young Peoples Services,Head of Education and Skills,Transport,230034,Contract Hire,08/12/2020,3812638-CTD02920,"1,040.00",KEVIN WALKER T/A CENTRAL TAXIS.
Children and Young Peoples Services,Head of Education and Skills,Transport,230034,Contract Hire,08/12/2020,3812666-325,"1,512.00",MICKS TAXIS - MURTON.
Children and Young Peoples Services,Head of Education and Skills,Transport,230034,Contract Hire,08/12/2020,3812671-AT226,"1,064.00",MR AG WILSON T/A ALAN`S TAXIS (DURHAM CITY).
Children and Young Peoples Services,Head of Education and Skills,Transport,230034,Contract Hire,08/12/2020,3812673-233,"1,722.00",MR BRIAN JOHNSON T/A BRYS TAXIS.
Children and Young Peoples Services,Head of Education and Skills,Transport,230034,Contract Hire,08/12/2020,3812678-142,"1,260.00",MR JOHN ALLINSON T/A AALPHA TAXIS.
Children and Young Peoples Services,Head of Education and Skills,Transport,230034,Contract Hire,08/12/2020,3812679-102,"1,026.00",MR LJ TARRY T/A TARRY`S TAXI`S.
Children and Young Peoples Services,Head of Education and Skills,Transport,230034,Contract Hire,08/12/2020,3812681-862020,"1,680.00",MR MARIUSZ LASOTA T/A BM TAXI.
Children and Young Peoples Services,Head of Education and Skills,Transport,230034,Contract Hire,08/12/2020,3812681-852020,"1,680.00",MR MARIUSZ LASOTA T/A BM TAXI.
Children and Young Peoples Services,Head of Education and Skills,Transport,230034,Contract Hire,08/12/2020,3812714-686,"2,479.20",PETERLEE EXECUTIVE CARS.
Children and Young Peoples Services,Head of Education and Skills,Transport,230034,Contract Hire,08/12/2020,3812719-38597,723.00,PHOENIX TAXIS T/A PRATT`S TAXIS.
Children and Young Peoples Services,Head of Education and Skills,Transport,230035,Contract Hire,08/12/2020,3812541-FBEC1120,834.76,D IRVING T/A BJ TAXIS.
Children and Young Peoples Services,Head of Education and Skills,Transport,230035,Contract Hire,08/12/2020,3812674-HERM11-20,"1,466.20",MR CT WALKER T/A CW TAXIS.
Children and Young Peoples Services,Head of Education and Skills,Transport,230035,Contract Hire,08/12/2020,3812678-143,744.00,MR JOHN ALLINSON T/A AALPHA TAXIS.
Children and Young Peoples Services,Head of Education and Skills,Transport,230013,Contract Hire,08/12/2020,3812766-05404,"1,212.00",STANLEY TRAVEL (NORTH EAST) LTD.
Children and Young Peoples Services,Head of Education and Skills,Transport,230007,Contract Hire,08/12/2020,3812460-798,"2,037.00",AT TAXIS LTD.
Children and Young Peoples Services,Head of Education and Skills,Transport,230007,Contract Hire,08/12/2020,3812525-C/11224,"3,906.00",COCHRANES T/A KELVIN TRAVEL.
Children and Young Peoples Services,Head of Education and Skills,Transport,230007,Contract Hire,08/12/2020,3812525-C/11221,"7,455.20",COCHRANES T/A KELVIN TRAVEL.
Children and Young Peoples Services,Head of Education and Skills,Transport,230007,Contract Hire,08/12/2020,3812543-449,882.00,DA TRAVEL.
Children and Young Peoples Services,Head of Education and Skills,Transport,230007,Contract Hire,08/12/2020,3812593-74476,"9,390.92",GO GATESHEAD LTD.
Children and Young Peoples Services,Head of Education and Skills,Transport,230007,Contract Hire,08/12/2020,3812599-001/NOV,"1,092.00",HANNAH`S TAXI.
Children and Young Peoples Services,Head of Education and Skills,Transport,230007,Contract Hire,08/12/2020,3812604-720,"1,060.00",HEPWORTHS TRAVEL.
Children and Young Peoples Services,Head of Education and Skills,Transport,230007,Contract Hire,08/12/2020,3812632-CORPTRAVWPNOV20,840.00,JOHN W CROOK T/A CORPORATE TRAVEL.
Children and Young Peoples Services,Head of Education and Skills,Transport,230007,Contract Hire,08/12/2020,3812637-2152,"1,007.50",KEN HINDS.
Children and Young Peoples Services,Head of Education and Skills,Transport,230007,Contract Hire,08/12/2020,3812645-29429,"2,110.00",LEE`S COACHES LTD.
Children and Young Peoples Services,Head of Education and Skills,Transport,230007,Contract Hire,08/12/2020,3812645-29430,"3,900.00",LEE`S COACHES LTD.
Children and Young Peoples Services,Head of Education and Skills,Transport,230007,Contract Hire,08/12/2020,3812645-29422/29423,"4,551.54",LEE`S COACHES LTD.
Children and Young Peoples Services,Head of Education and Skills,Transport,230007,Contract Hire,08/12/2020,3812645-29424/29425,"4,551.54",LEE`S COACHES LTD.
Children and Young Peoples Services,Head of Education and Skills,Transport,230007,Contract Hire,08/12/2020,3812645-29426,"2,275.77",LEE`S COACHES LTD.
Children and Young Peoples Services,Head of Education and Skills,Transport,230007,Contract Hire,08/12/2020,3812645-29427,"2,331.42",LEE`S COACHES LTD.
Children and Young Peoples Services,Head of Education and Skills,Transport,230007,Contract Hire,08/12/2020,3812666-327,756.00,MICKS TAXIS - MURTON.
Children and Young Peoples Services,Head of Education and Skills,Transport,230007,Contract Hire,08/12/2020,3812666-324,"1,932.00",MICKS TAXIS - MURTON.
Children and Young Peoples Services,Head of Education and Skills,Transport,230007,Contract Hire,08/12/2020,3812666-322,"1,032.60",MICKS TAXIS - MURTON.
Children and Young Peoples Services,Head of Education and Skills,Transport,230007,Contract Hire,08/12/2020,3812671-AT225,672.00,MR AG WILSON T/A ALAN`S TAXIS (DURHAM CITY).
Children and Young Peoples Services,Head of Education and Skills,Transport,230007,Contract Hire,08/12/2020,3812674-DJS11-20,"1,811.80",MR CT WALKER T/A CW TAXIS.
Children and Young Peoples Services,Head of Education and Skills,Transport,230007,Contract Hire,08/12/2020,3812678-144,"1,480.00",MR JOHN ALLINSON T/A AALPHA TAXIS.
Children and Young Peoples Services,Head of Education and Skills,Transport,230007,Contract Hire,08/12/2020,3812679-101,"1,640.00",MR LJ TARRY T/A TARRY`S TAXI`S.
Children and Young Peoples Services,Head of Education and Skills,Transport,230007,Contract Hire,08/12/2020,3812717-NOV20,"1,640.00",PETER`S TAXIS.
Children and Young Peoples Services,Head of Education and Skills,Transport,230007,Contract Hire,08/12/2020,3812722-ST3,"2,121.00",PRESTYS HACKNEY & PRIVATE HIRE TAXIS.
Children and Young Peoples Services,Head of Education and Skills,Transport,230007,Contract Hire,08/12/2020,3812730-NOV203,"1,698.69",RAYNERS COACHES.
Children and Young Peoples Services,Head of Education and Skills,Transport,230007,Contract Hire,08/12/2020,3812730-NOV201,"2,710.47",RAYNERS COACHES.
Children and Young Peoples Services,Head of Education and Skills,Transport,230007,Contract Hire,08/12/2020,3812737-1470,"3,906.00",ROBERTS TOURS.
Children and Young Peoples Services,Head of Education and Skills,Transport,230007,Contract Hire,08/12/2020,3812737-1471,"6,255.48",ROBERTS TOURS.
Children and Young Peoples Services,Head of Education and Skills,Transport,230007,Contract Hire,08/12/2020,3812737-1472,"3,356.43",ROBERTS TOURS.
Children and Young Peoples Services,Head of Education and Skills,Transport,230007,Contract Hire,08/12/2020,3812737-1473,"2,682.33",ROBERTS TOURS.
Children and Young Peoples Services,Head of Education and Skills,Transport,230007,Contract Hire,08/12/2020,3812766-05408,678.80,STANLEY TRAVEL (NORTH EAST) LTD.
Children and Young Peoples Services,Head of Education and Skills,Transport,230007,Contract Hire,08/12/2020,3812766-56134,998.76,STANLEY TRAVEL (NORTH EAST) LTD.
Children and Young Peoples Services,Head of Education and Skills,Transport,230007,Contract Hire,08/12/2020,3812766-05397,"1,200.21",STANLEY TRAVEL (NORTH EAST) LTD.
Children and Young Peoples Services,Head of Education and Skills,Transport,230007,Contract Hire,08/12/2020,3812766-05396,"3,482.00",STANLEY TRAVEL (NORTH EAST) LTD.
Children and Young Peoples Services,Head of Education and Skills,Transport,230007,Contract Hire,08/12/2020,3812777-11/2020/003,"1,640.00",TARNS TAXIS LTD.
Children and Young Peoples Services,Head of Education and Skills,Transport,230007,Contract Hire,08/12/2020,3812793-WA10014,"1,168.32",TRAVEL 6.
Children and Young Peoples Services,Head of Education and Skills,Transport,230007,Contract Hire,08/12/2020,3812811-0002791,840.00,WATSON OF SPENNYMOOR.
Children and Young Peoples Services,Head of Education and Skills,Transport,230007,Contract Hire,08/12/2020,3812812-1231,"1,320.90",WAYNE`S TAXIS.
Children and Young Peoples Services,Head of Education and Skills,Transport,230007,Contract Hire,08/12/2020,3812813-16276,"1,701.00",WEARDALE MOTOR SERVICES LTD.
Children and Young Peoples Services,Head of Education and Skills,Transport,230007,Contract Hire,08/12/2020,3812813-16274,"2,784.00",WEARDALE MOTOR SERVICES LTD.
Children and Young Peoples Services,Head of Education and Skills,Transport,230003,Contract Hire,08/12/2020,3812525-C/11223,"3,244.50",COCHRANES T/A KELVIN TRAVEL.
Children and Young Peoples Services,Head of Education and Skills,Transport,230003,Contract Hire,08/12/2020,3812645-29428,"4,725.00",LEE`S COACHES LTD.
Children and Young Peoples Services,Head of Education and Skills,Transport,230003,Contract Hire,08/12/2020,3812645-29419,"4,233.60",LEE`S COACHES LTD.
Children and Young Peoples Services,Head of Education and Skills,Transport,230003,Contract Hire,08/12/2020,3812645-29420,"5,155.50",LEE`S COACHES LTD.
Children and Young Peoples Services,Head of Education and Skills,Transport,230003,Contract Hire,08/12/2020,3812645-29421,"4,945.50",LEE`S COACHES LTD.
Children and Young Peoples Services,Head of Education and Skills,Transport,230003,Contract Hire,08/12/2020,3812698-6621,"3,675.00",NORTH EAST COACHWAYS LTD.
Children and Young Peoples Services,Head of Education and Skills,Transport,230003,Contract Hire,08/12/2020,3812739-ROXDCC219,"3,276.00",ROXBYS BUS HIRE.
Children and Young Peoples Services,Head of Education and Skills,Transport,230003,Contract Hire,08/12/2020,3812739-ROXDCC211,"1,690.00",ROXBYS BUS HIRE.
Children and Young Peoples Services,Head of Education and Skills,Transport,230003,Contract Hire,08/12/2020,3812739-ROXDCC220,"2,856.00",ROXBYS BUS HIRE.
Children and Young Peoples Services,Head of Education and Skills,Transport,230003,Contract Hire,08/12/2020,3812739-ROXDCC221,"9,158.10",ROXBYS BUS HIRE.
Children and Young Peoples Services,Head of Education and Skills,Transport,230003,Contract Hire,08/12/2020,3812766-56137,"10,320.00",STANLEY TRAVEL (NORTH EAST) LTD.
Children and Young Peoples Services,Head of Education and Skills,Transport,230003,Contract Hire,08/12/2020,3812766-56129,"3,000.00",STANLEY TRAVEL (NORTH EAST) LTD.
Children and Young Peoples Services,Head of Education and Skills,Transport,230003,Contract Hire,08/12/2020,3812766-56130,"3,580.00",STANLEY TRAVEL (NORTH EAST) LTD.
Children and Young Peoples Services,Head of Education and Skills,Transport,230003,Contract Hire,08/12/2020,3812766-56131,"3,780.00",STANLEY TRAVEL (NORTH EAST) LTD.
Children and Young Peoples Services,Head of Education and Skills,Transport,230003,Contract Hire,08/12/2020,3812766-56132,"3,700.00",STANLEY TRAVEL (NORTH EAST) LTD.
Children and Young Peoples Services,Head of Education and Skills,Transport,230003,Contract Hire,08/12/2020,3812766-56133,"3,360.00",STANLEY TRAVEL (NORTH EAST) LTD.
Children and Young Peoples Services,Head of Education and Skills,Transport,230003,Contract Hire,08/12/2020,3812813-16268,"3,914.00",WEARDALE MOTOR SERVICES LTD.
Children and Young Peoples Services,Head of Education and Skills,Transport,230003,Contract Hire,08/12/2020,3812813-16273,"4,935.00",WEARDALE MOTOR SERVICES LTD.
Children and Young Peoples Services,Head of Education and Skills,Transport,230009,Contract Hire,08/12/2020,3812766-05398,"2,197.00",STANLEY TRAVEL (NORTH EAST) LTD.
Children and Young Peoples Services,Head of Education and Skills,Transport,230009,Contract Hire,08/12/2020,3812813-16275,"4,002.39",WEARDALE MOTOR SERVICES LTD.
Children and Young Peoples Services,Head of Education and Skills,Transport,230004,Contract Hire,08/12/2020,3812485-400,588.00,BILL SCOTT TAXIS LTD.
Children and Young Peoples Services,Head of Education and Skills,Transport,230006,Contract Hire,08/12/2020,3812477-17,"2,307.98",BELMONT TAXIS.
Children and Young Peoples Services,Head of Education and Skills,Transport,230006,Contract Hire,08/12/2020,3812483-F738/NOV,"1,859.60",BIG MAMA`S TAXI.
Children and Young Peoples Services,Head of Education and Skills,Transport,230006,Contract Hire,08/12/2020,3812490-89NOV20,806.00,BL TAXIS.
Children and Young Peoples Services,Head of Education and Skills,Transport,230006,Contract Hire,08/12/2020,3812516-F797-3NOV20,820.00,CHRIS BELL T/A MEGAN`S TAXIS.
Children and Young Peoples Services,Head of Education and Skills,Transport,230006,Contract Hire,08/12/2020,3812541-THOR1120,"1,353.37",D IRVING T/A BJ TAXIS.
Children and Young Peoples Services,Head of Education and Skills,Transport,230006,Contract Hire,08/12/2020,3812543-446,924.00,DA TRAVEL.
Children and Young Peoples Services,Head of Education and Skills,Transport,230006,Contract Hire,08/12/2020,3812543-447,"1,212.00",DA TRAVEL.
Children and Young Peoples Services,Head of Education and Skills,Transport,230006,Contract Hire,08/12/2020,3812544-DPHCNOV2001,"1,302.00",DALELINK PRIVATE HIRE.
Children and Young Peoples Services,Head of Education and Skills,Transport,230006,Contract Hire,08/12/2020,3812549-79,897.00,DAVID WILKINSON (TAXIS).
Children and Young Peoples Services,Head of Education and Skills,Transport,230006,Contract Hire,08/12/2020,3812559-20/10,"2,379.04",DMG PRIVATE HIRE.
Children and Young Peoples Services,Head of Education and Skills,Transport,230006,Contract Hire,08/12/2020,3812597-003/F782,672.00,GUY`S TAXIS.
Children and Young Peoples Services,Head of Education and Skills,Transport,230006,Contract Hire,08/12/2020,3812597-003/NOV,"1,044.00",GUY`S TAXIS.
Children and Young Peoples Services,Head of Education and Skills,Transport,230006,Contract Hire,08/12/2020,3812598-81,593.00,HAMLET TAXIS.
Children and Young Peoples Services,Head of Education and Skills,Transport,230006,Contract Hire,08/12/2020,3812598-83,"1,405.00",HAMLET TAXIS.
Children and Young Peoples Services,Head of Education and Skills,Transport,230006,Contract Hire,08/12/2020,3812632-CORPTRAVBACNOV20,940.00,JOHN W CROOK T/A CORPORATE TRAVEL.
Children and Young Peoples Services,Head of Education and Skills,Transport,230006,Contract Hire,08/12/2020,3812633-0001-OCTOBER,800.00,JORA SINGH TAXIS.
Children and Young Peoples Services,Head of Education and Skills,Transport,230006,Contract Hire,08/12/2020,3812644-1854,952.00,LD TAXIS.
Children and Young Peoples Services,Head of Education and Skills,Transport,230006,Contract Hire,08/12/2020,3812666-326,"1,134.00",MICKS TAXIS - MURTON.
Children and Young Peoples Services,Head of Education and Skills,Transport,230006,Contract Hire,08/12/2020,3812666-323,995.00,MICKS TAXIS - MURTON.
Children and Young Peoples Services,Head of Education and Skills,Transport,230006,Contract Hire,08/12/2020,3812674-DT211-20,931.84,MR CT WALKER T/A CW TAXIS.
Children and Young Peoples Services,Head of Education and Skills,Transport,230006,Contract Hire,08/12/2020,3812678-145,663.00,MR JOHN ALLINSON T/A AALPHA TAXIS.
Children and Young Peoples Services,Head of Education and Skills,Transport,230006,Contract Hire,08/12/2020,3812719-38127,"1,156.00",PHOENIX TAXIS T/A PRATT`S TAXIS.
Children and Young Peoples Services,Head of Education and Skills,Transport,230006,Contract Hire,08/12/2020,3812719-38598,"1,360.00",PHOENIX TAXIS T/A PRATT`S TAXIS.
Children and Young Peoples Services,Head of Education and Skills,Transport,230006,Contract Hire,08/12/2020,3812719-38129,"1,295.00",PHOENIX TAXIS T/A PRATT`S TAXIS.
Children and Young Peoples Services,Head of Education and Skills,Transport,230006,Contract Hire,08/12/2020,3812719-38135/2,"1,836.00",PHOENIX TAXIS T/A PRATT`S TAXIS.
Children and Young Peoples Services,Head of Education and Skills,Transport,230006,Contract Hire,08/12/2020,3812719-38604,"1,050.00",PHOENIX TAXIS T/A PRATT`S TAXIS.
Children and Young Peoples Services,Head of Education and Skills,Transport,230006,Contract Hire,08/12/2020,3812719-38606,"2,556.00",PHOENIX TAXIS T/A PRATT`S TAXIS.
Children and Young Peoples Services,Head of Education and Skills,Transport,230006,Contract Hire,08/12/2020,3812719-38607,"1,554.00",PHOENIX TAXIS T/A PRATT`S TAXIS.
Children and Young Peoples Services,Head of Education and Skills,Transport,230006,Contract Hire,08/12/2020,3812719-38609,630.00,PHOENIX TAXIS T/A PRATT`S TAXIS.
Children and Young Peoples Services,Head of Education and Skills,Transport,230006,Contract Hire,08/12/2020,3812719-38610,672.00,PHOENIX TAXIS T/A PRATT`S TAXIS.
Children and Young Peoples Services,Head of Education and Skills,Transport,230006,Contract Hire,08/12/2020,3812793-HK10001,823.00,TRAVEL 6.
Children and Young Peoples Services,Head of Education and Skills,Transport,230006,Contract Hire,08/12/2020,3812793-TC10003,672.00,TRAVEL 6.
Children and Young Peoples Services,Head of Education and Skills,Transport,230006,Contract Hire,08/12/2020,3812809-F702/NOV,"1,653.40",WAINE SANDERSON T/A 1A CAB.
Children and Young Peoples Services,Head of Education and Skills,Transport,230011,Contract Hire,08/12/2020,3812526-002,"1,090.00",COLIN HOWE T/A C H TAXIS.
Children and Young Peoples Services,Head of Education and Skills,Transport,230010,Contract Hire,08/12/2020,3812446-95,"2,370.93",AJ JOBLING T/A CASTLE TAXIS.
Children and Young Peoples Services,Head of Education and Skills,Transport,230010,Contract Hire,08/12/2020,3812483-BL007/NOV,623.76,BIG MAMA`S TAXI.
Children and Young Peoples Services,Head of Education and Skills,Transport,230010,Contract Hire,08/12/2020,3812483-BL007/NOV/2,528.64,BIG MAMA`S TAXI.
Children and Young Peoples Services,Head of Education and Skills,Transport,230010,Contract Hire,08/12/2020,3812643-NOV20/B035,"5,040.00",LARS CARS LTD T/A STREETCARS.
Children and Young Peoples Services,Head of Education and Skills,Transport,230010,Contract Hire,08/12/2020,3812766-05402,"1,875.28",STANLEY TRAVEL (NORTH EAST) LTD.
Children and Young Peoples Services,Head of Education and Skills,Transport,230010,Contract Hire,08/12/2020,3812793-PR10001,762.00,TRAVEL 6.
Children and Young Peoples Services,Head of Education and Skills,Transport,230010,Contract Hire,08/12/2020,3812794-18B,"1,627.35",TREVOR GARDNER T/A TCG TAXIS.
Children and Young Peoples Services,Head of Education and Skills,Transport,230010,Contract Hire,08/12/2020,3812815-1120,"1,647.00",WEST AUCKLAND TOWN TRAVEL (WATT).
Children and Young Peoples Services,Head of Education and Skills,Transport,230012,Contract Hire,08/12/2020,3812668-KDC-NOV2020,"2,776.60",MJ TIMNEY T/A KDC & C&M TAXIS.
Children and Young Peoples Services,Head of Education and Skills,Transport,230012,Contract Hire,08/12/2020,3812674-CHPK11-20,"1,814.00",MR CT WALKER T/A CW TAXIS.
Children and Young Peoples Services,Head of Education and Skills,Transport,230012,Contract Hire,08/12/2020,3812685-TNB014SPLIT,810.22,MR THOMAS G GRIFFITHS T/A TNL TAXIS.
Children and Young Peoples Services,Head of Education and Skills,Transport,230012,Contract Hire,08/12/2020,3812719-38612,973.61,PHOENIX TAXIS T/A PRATT`S TAXIS.
Children and Young Peoples Services,Head of Education and Skills,Transport,230012,Contract Hire,08/12/2020,3812789-TS-18/47,"1,205.20",TOP STAR TRAVEL.
Children and Young Peoples Services,Head of Education and Skills,Transport,230016,Contract Hire,08/12/2020,3812474-SMITH2/NOVEMBER20,811.30,BEELINE PRIVATE HIRE.
Children and Young Peoples Services,Head of Education and Skills,Transport,230016,Contract Hire,08/12/2020,3812543-448,"1,302.00",DA TRAVEL.
Children and Young Peoples Services,Head of Education and Skills,Transport,230016,Contract Hire,08/12/2020,3812601-HT488,532.00,HARRY`S TAXI`S.
Children and Young Peoples Services,Head of Education and Skills,Transport,230008,Contract Hire,08/12/2020,3812460-797,"2,084.50",AT TAXIS LTD.
Children and Young Peoples Services,Head of Education and Skills,Transport,230008,Contract Hire,08/12/2020,3812460-794,882.00,AT TAXIS LTD.
Children and Young Peoples Services,Head of Education and Skills,Transport,230008,Contract Hire,08/12/2020,3812460-795,"3,087.00",AT TAXIS LTD.
Children and Young Peoples Services,Head of Education and Skills,Transport,230008,Contract Hire,08/12/2020,3812473-939,"1,719.04",BEELINE MINI BUSES.
Children and Young Peoples Services,Head of Education and Skills,Transport,230008,Contract Hire,08/12/2020,3812493-DC11/20,"1,968.00",BOWES TRAVEL.
Children and Young Peoples Services,Head of Education and Skills,Transport,230008,Contract Hire,08/12/2020,3812496-BZ00353,"1,247.82",BREZ`S TAXIS.
Children and Young Peoples Services,Head of Education and Skills,Transport,230008,Contract Hire,08/12/2020,3812496-BZ00354,"1,280.58",BREZ`S TAXIS.
Children and Young Peoples Services,Head of Education and Skills,Transport,230008,Contract Hire,08/12/2020,3812500-W112017,"1,742.00",C & R TAXIS.
Children and Young Peoples Services,Head of Education and Skills,Transport,230008,Contract Hire,08/12/2020,3812500-W030014,"2,352.00",C & R TAXIS.
Children and Young Peoples Services,Head of Education and Skills,Transport,230008,Contract Hire,08/12/2020,3812500-W046014,"2,539.32",C & R TAXIS.
Children and Young Peoples Services,Head of Education and Skills,Transport,230008,Contract Hire,08/12/2020,3812502-BIL0208,"1,100.80",CA MUSGROVE.
Children and Young Peoples Services,Head of Education and Skills,Transport,230008,Contract Hire,08/12/2020,3812513-050,"2,306.00",CHANNER`S CABS.
Children and Young Peoples Services,Head of Education and Skills,Transport,230008,Contract Hire,08/12/2020,3812536-110425,"2,534.00",CROFT BUSINESS SERVICES (UK) LTD T/A CROFT TAXIS.
Children and Young Peoples Services,Head of Education and Skills,Transport,230008,Contract Hire,08/12/2020,3812542-1707,"1,943.76",DA TAXIS.
Children and Young Peoples Services,Head of Education and Skills,Transport,230008,Contract Hire,08/12/2020,3812542-1708,"1,654.38",DA TAXIS.
Children and Young Peoples Services,Head of Education and Skills,Transport,230008,Contract Hire,08/12/2020,3812542-1705,"1,722.00",DA TAXIS.
Children and Young Peoples Services,Head of Education and Skills,Transport,230008,Contract Hire,08/12/2020,3812542-1706,"2,352.00",DA TAXIS.
Children and Young Peoples Services,Head of Education and Skills,Transport,230008,Contract Hire,08/12/2020,3812543-451,"2,344.00",DA TRAVEL.
Children and Young Peoples Services,Head of Education and Skills,Transport,230008,Contract Hire,08/12/2020,3812543-450,520.00,DA TRAVEL.
Children and Young Peoples Services,Head of Education and Skills,Transport,230008,Contract Hire,08/12/2020,3812548-0071,"3,497.00",DAVID WALKER TAXIS.
Children and Young Peoples Services,Head of Education and Skills,Transport,230008,Contract Hire,08/12/2020,3812560-A060NOV20/21,"2,297.80",DONNA`S TAXIS.
Children and Young Peoples Services,Head of Education and Skills,Transport,230008,Contract Hire,08/12/2020,3812601-HT469,"1,394.00",HARRY`S TAXI`S.
Children and Young Peoples Services,Head of Education and Skills,Transport,230008,Contract Hire,08/12/2020,3812601-HT496,"2,772.00",HARRY`S TAXI`S.
Children and Young Peoples Services,Head of Education and Skills,Transport,230008,Contract Hire,08/12/2020,3812604-718,"1,953.00",HEPWORTHS TRAVEL.
Children and Young Peoples Services,Head of Education and Skills,Transport,230008,Contract Hire,08/12/2020,3812627-A026-NOV,"3,025.92",JL EBDON. T/A DIAL-A-CAB.
Children and Young Peoples Services,Head of Education and Skills,Transport,230008,Contract Hire,08/12/2020,3812627-S033-NOV,"3,019.80",JL EBDON. T/A DIAL-A-CAB.
Children and Young Peoples Services,Head of Education and Skills,Transport,230008,Contract Hire,08/12/2020,3812627-W047-NOV,"1,853.75",JL EBDON. T/A DIAL-A-CAB.
Children and Young Peoples Services,Head of Education and Skills,Transport,230008,Contract Hire,08/12/2020,3812627-W103-NOV,"2,982.00",JL EBDON. T/A DIAL-A-CAB.
Children and Young Peoples Services,Head of Education and Skills,Transport,230008,Contract Hire,08/12/2020,3812631-218,"2,662.20",JOHN ROBSON T/A ACE TAXIS.
Children and Young Peoples Services,Head of Education and Skills,Transport,230008,Contract Hire,08/12/2020,3812636-1126,"2,562.40",K & R TAXIS (STANLEY).
Children and Young Peoples Services,Head of Education and Skills,Transport,230008,Contract Hire,08/12/2020,3812646-0013,"2,400.00",LEWIS PATTISON T/A LEWIS TAXIS.
Children and Young Peoples Services,Head of Education and Skills,Transport,230008,Contract Hire,08/12/2020,3812649-002-NOV,"1,456.49",LIMASEC LTD T/A LIMA TRANSPORT.
Children and Young Peoples Services,Head of Education and Skills,Transport,230008,Contract Hire,08/12/2020,3812665-A138/NOV,"1,253.52",MICHAEL A BODDY T/A MBS TAXIS.
Children and Young Peoples Services,Head of Education and Skills,Transport,230008,Contract Hire,08/12/2020,3812669-N018/OCTOBER,863.94,MOLLY`S TAXIS LTD.
Children and Young Peoples Services,Head of Education and Skills,Transport,230008,Contract Hire,08/12/2020,3812669-N018/OCTOBER/2,"1,220.00",MOLLY`S TAXIS LTD.
Children and Young Peoples Services,Head of Education and Skills,Transport,230008,Contract Hire,08/12/2020,3812674-EL111-20,"2,160.45",MR CT WALKER T/A CW TAXIS.
Children and Young Peoples Services,Head of Education and Skills,Transport,230008,Contract Hire,08/12/2020,3812674-EL211-20,"1,272.90",MR CT WALKER T/A CW TAXIS.
Children and Young Peoples Services,Head of Education and Skills,Transport,230008,Contract Hire,08/12/2020,3812674-DT111-20,901.80,MR CT WALKER T/A CW TAXIS.
Children and Young Peoples Services,Head of Education and Skills,Transport,230008,Contract Hire,08/12/2020,3812674-OAK111/20,"2,036.70",MR CT WALKER T/A CW TAXIS.
Children and Young Peoples Services,Head of Education and Skills,Transport,230008,Contract Hire,08/12/2020,3812674-OAK211-20,"1,900.80",MR CT WALKER T/A CW TAXIS.
Children and Young Peoples Services,Head of Education and Skills,Transport,230008,Contract Hire,08/12/2020,3812675-W174/02,"3,559.00",MR DANIEL HUTCHINSON T/A ALPHACABS.
Children and Young Peoples Services,Head of Education and Skills,Transport,230008,Contract Hire,08/12/2020,3812680-2N109,"2,520.00",MR M FARREY T/A TK TAXIS.
Children and Young Peoples Services,Head of Education and Skills,Transport,230008,Contract Hire,08/12/2020,3812682-102,"2,944.00",MR NEIL LEONARD T/A LENNY`S TAXIS.
Children and Young Peoples Services,Head of Education and Skills,Transport,230008,Contract Hire,08/12/2020,3812683-33B,"1,733.23",MR RAYMOND RENWICK T/A RAY`S TAXIS & MINIBUSES.
Children and Young Peoples Services,Head of Education and Skills,Transport,230008,Contract Hire,08/12/2020,3812684-3142,"2,540.00",MR S BOWERS T/A DH7 TAXIS.
Children and Young Peoples Services,Head of Education and Skills,Transport,230008,Contract Hire,08/12/2020,3812684-3143,"1,932.00",MR S BOWERS T/A DH7 TAXIS.
Children and Young Peoples Services,Head of Education and Skills,Transport,230008,Contract Hire,08/12/2020,3812689-009,"1,361.54",MRS SAMANTHA MACKENZIE T/A SAM`S TAXIS.
Children and Young Peoples Services,Head of Education and Skills,Transport,230008,Contract Hire,08/12/2020,3812689-013,"1,654.00",MRS SAMANTHA MACKENZIE T/A SAM`S TAXIS.
Children and Young Peoples Services,Head of Education and Skills,Transport,230008,Contract Hire,08/12/2020,3812689-14,"1,617.00",MRS SAMANTHA MACKENZIE T/A SAM`S TAXIS.
Children and Young Peoples Services,Head of Education and Skills,Transport,230008,Contract Hire,08/12/2020,3812713-M012301121,"1,627.92",PB PRIVATE HIRE.
Children and Young Peoples Services,Head of Education and Skills,Transport,230008,Contract Hire,08/12/2020,3812730-NOV204,"2,788.00",RAYNERS COACHES.
Children and Young Peoples Services,Head of Education and Skills,Transport,230008,Contract Hire,08/12/2020,3812738-0014,"2,835.00",RONS TAXI (CHESTER LE ST).
Children and Young Peoples Services,Head of Education and Skills,Transport,230008,Contract Hire,08/12/2020,3812766-05399,"1,241.20",STANLEY TRAVEL (NORTH EAST) LTD.
Children and Young Peoples Services,Head of Education and Skills,Transport,230008,Contract Hire,08/12/2020,3812766-05400,"2,021.20",STANLEY TRAVEL (NORTH EAST) LTD.
Children and Young Peoples Services,Head of Education and Skills,Transport,230008,Contract Hire,08/12/2020,3812766-05401,"2,343.66",STANLEY TRAVEL (NORTH EAST) LTD.
Children and Young Peoples Services,Head of Education and Skills,Transport,230008,Contract Hire,08/12/2020,3812766-56136,"2,919.00",STANLEY TRAVEL (NORTH EAST) LTD.
Children and Young Peoples Services,Head of Education and Skills,Transport,230008,Contract Hire,08/12/2020,3812766-05405,"2,854.00",STANLEY TRAVEL (NORTH EAST) LTD.
Children and Young Peoples Services,Head of Education and Skills,Transport,230008,Contract Hire,08/12/2020,3812774-B1055,"2,494.40",TALBOTS TRAVEL LTD.
Children and Young Peoples Services,Head of Education and Skills,Transport,230008,Contract Hire,08/12/2020,3812774-B1054,"2,142.00",TALBOTS TRAVEL LTD.
Children and Young Peoples Services,Head of Education and Skills,Transport,230008,Contract Hire,08/12/2020,3812777-112020005,"2,562.00",TARNS TAXIS LTD.
Children and Young Peoples Services,Head of Education and Skills,Transport,230008,Contract Hire,08/12/2020,3812779-DCC/2020/59,"2,345.70",TAYLOR`S TAXIS.
Children and Young Peoples Services,Head of Education and Skills,Transport,230008,Contract Hire,08/12/2020,3812789-TS3514,"1,640.00",TOP STAR TRAVEL.
Children and Young Peoples Services,Head of Education and Skills,Transport,230008,Contract Hire,08/12/2020,3812789-TS-101/14,"1,840.00",TOP STAR TRAVEL.
Children and Young Peoples Services,Head of Education and Skills,Transport,230008,Contract Hire,08/12/2020,3812811-0002792,"2,335.20",WATSON OF SPENNYMOOR.
Children and Young Peoples Services,Head of Education and Skills,Transport,230008,Contract Hire,08/12/2020,3812811-0002793,"2,688.00",WATSON OF SPENNYMOOR.
Children and Young Peoples Services,Head of Education and Skills,Transport,230008,Contract Hire,08/12/2020,3812812-1232-30/11/20,"1,323.00",WAYNE`S TAXIS.
Children and Young Peoples Services,Head of Education and Skills,Transport,230008,Contract Hire,08/12/2020,3812813-16269,"3,027.15",WEARDALE MOTOR SERVICES LTD.
Children and Young Peoples Services,Head of Education and Skills,Transport,230008,Contract Hire,08/12/2020,3812813-16270,"3,279.36",WEARDALE MOTOR SERVICES LTD.
Children and Young Peoples Services,Head of Education and Skills,Transport,230008,Contract Hire,08/12/2020,3812813-16271,"3,927.00",WEARDALE MOTOR SERVICES LTD.
"Regeneration, Economy and Growth",Transport and Contracted Services,Third Party Payments,430108,Rendered by Private Contractors,08/12/2020,3812701-DI20351918,"15,631.00",NORTHERN POWERGRID (NORTHEAST) LTD.
Neighbourhoods and Climate Change,Technical Services CM0300,Third Party Payments,460053,Contract Payments,08/12/2020,3812621-24848,"2,207.33",JACK COUPE & SONS LTD T/A COUPE LINE.
Neighbourhoods and Climate Change,Environmental Services,Third Party Payments,430115,Rendered by Private Contractors,08/12/2020,3812453-2017952,"5,925.92",ANDREW THOMPSON...
Neighbourhoods and Climate Change,Environmental Services,Third Party Payments,430115,Rendered by Private Contractors,08/12/2020,3812770-0000036313,"2,012.50",STONEGRAVE AGGREGATES LTD.
Neighbourhoods and Climate Change,Technical Services CM0300,Third Party Payments,460503,Contract Payments,08/12/2020,3812621-24837,610.28,JACK COUPE & SONS LTD T/A COUPE LINE.
Children and Young Peoples Services,Head of Early Help Inclusion & Vulnerable Children.,Supplies and Services,308013,Furniture,08/12/2020,3812466-96426,642.60,BAILEYS BLINDS LTD.
Neighbourhoods and Climate Change,Environmental Services,Transport,215005,Running Costs of Vehicles,08/12/2020,3812706-668850,"13,507.50",OIL NRG LTD.
Neighbourhoods and Climate Change,Environmental Services,Transport,215005,Running Costs of Vehicles,08/12/2020,3812706-668882,"5,427.00",OIL NRG LTD.
"Regeneration, Economy and Growth",Corporate Property and Land,Supplies and Services,304221,Equipment and Materials,08/12/2020,3812464-275592,772.53,AVIRE LTD.
"Regeneration, Economy and Growth",Corporate Property and Land,Supplies and Services,304221,Equipment and Materials,08/12/2020,3812602-4684154,"1,464.25",HEADLAM (FLOORCOVERING DISTRIBUTORS) LTD.
"Regeneration, Economy and Growth",Corporate Property and Land,Supplies and Services,304221,Equipment and Materials,08/12/2020,3812635-0108/00239735,811.82,JT DOVE LTD.
"Regeneration, Economy and Growth",Corporate Property and Land,Supplies and Services,304221,Equipment and Materials,08/12/2020,3812791-33794,"2,160.00",TOTAL PUMP SOLUTIONS LTD.
"Regeneration, Economy and Growth",Corporate Property and Land,Supplies and Services,304221,Equipment and Materials,08/12/2020,3812791-33799,"1,900.00",TOTAL PUMP SOLUTIONS LTD.
"Regeneration, Economy and Growth",Corporate Property and Land,Supplies and Services,304221,Equipment and Materials,08/12/2020,3812803-6890362063,"13,409.72",VIESSMANN LTD.
Neighbourhoods and Climate Change,Technical Services CM0300,Supplies and Services,304221,Equipment and Materials,08/12/2020,3812436-010872,570.13,A HILL & SONS LTD.
Neighbourhoods and Climate Change,Technical Services CM0300,Supplies and Services,304221,Equipment and Materials,08/12/2020,3812436-010874,"1,079.10",A HILL & SONS LTD.
Neighbourhoods and Climate Change,Technical Services CM0300,Supplies and Services,304221,Equipment and Materials,08/12/2020,3812724-18479,763.88,PRM FABRICATIONS LTD.
Adult and Health Services,Head of Adults,Supplies and Services,338365,Services,08/12/2020,3812478-DHP0094,"22,888.78",BERNICIA GROUP LTD.*
Children and Young Peoples Services,Head of Childrens Social Care,Supplies and Services,338044,Services,08/12/2020,3812445-MWJC1080220,"4,668.50",ADVANCED CHILD CARE ASSESSMENTS LTD.
Neighbourhoods and Climate Change,Environmental Services,Premises,108099,Service Repairs and Maintenance,08/12/2020,3812629-457,"2,978.00",JN KEARTON.
Neighbourhoods and Climate Change,Technical Services CM0300,Supplies and Services,304358,Equipment and Materials,08/12/2020,3812589-77386,633.76,GEORGE VARDY HAULAGE.
Neighbourhoods and Climate Change,Technical Services CM0300,Supplies and Services,304358,Equipment and Materials,08/12/2020,3812620-1195/2020,747.50,J & JG GILL & SONS LTD.
Neighbourhoods and Climate Change,Technical Services CM0300,Supplies and Services,304358,Equipment and Materials,08/12/2020,3812620-1254/2020,790.00,J & JG GILL & SONS LTD.
Neighbourhoods and Climate Change,Technical Services CM0300,Supplies and Services,304358,Equipment and Materials,08/12/2020,3812654-MS2525,589.50,M SPENCE SURFACING LTD.
Neighbourhoods and Climate Change,Technical Services CM0300,Supplies and Services,304358,Equipment and Materials,08/12/2020,3812655-5967,549.00,MAKEPEACE MOTORS.
Neighbourhoods and Climate Change,Technical Services CM0300,Supplies and Services,304358,Equipment and Materials,08/12/2020,3812655-5974,865.00,MAKEPEACE MOTORS.
Neighbourhoods and Climate Change,Technical Services CM0300,Supplies and Services,304358,Equipment and Materials,08/12/2020,3812655-5975,865.00,MAKEPEACE MOTORS.
Neighbourhoods and Climate Change,Technical Services CM0300,Supplies and Services,304358,Equipment and Materials,08/12/2020,3812743-0006,"1,031.25",S & R LANDSCAPES.
Neighbourhoods and Climate Change,Technical Services CM0300,Supplies and Services,304358,Equipment and Materials,08/12/2020,3812743-30,"1,107.20",S & R LANDSCAPES.
Neighbourhoods and Climate Change,Technical Services CM0300,Supplies and Services,304358,Equipment and Materials,08/12/2020,3812743-31,"1,064.00",S & R LANDSCAPES.
Neighbourhoods and Climate Change,Technical Services CM0300,Supplies and Services,304358,Equipment and Materials,08/12/2020,3812743-36-2020,"1,040.50",S & R LANDSCAPES.
Neighbourhoods and Climate Change,Technical Services CM0300,Supplies and Services,304358,Equipment and Materials,08/12/2020,3812743-37-2020,847.00,S & R LANDSCAPES.
Children and Young Peoples Services,Childrens Services Operational Support,Supplies and Services,338026,Services,08/12/2020,3812515-RT108,"2,388.75",CHOICES & VOICES CARE LTD.
Children and Young Peoples Services,Childrens Services Operational Support,Supplies and Services,338026,Services,08/12/2020,3812690-4100710653,772.50,MS JACKIE JAMES.
Non-Service Specific,Insurances,Expenditure 8INSEX,810012,Insurance Expenditure,08/12/2020,3812702-914865609,790.31,NORTHUMBRIAN WATER LTD.
Neighbourhoods and Climate Change,Environmental Services,Supplies and Services,384956,Miscellaneous Expenses,08/12/2020,3812569-H00136985,"3,120.00",ENVIRONMENT AGENCY.
Neighbourhoods and Climate Change,Technical Services CM0300,Supplies and Services,304357,Equipment and Materials,08/12/2020,3812585-DCC151120,"18,993.18",GAP GROUP LTD.
Resources BK0010,Digital and Customer Services,Supplies and Services,304303,Equipment and Materials,08/12/2020,3812612-SI-022825,"8,160.00",INFORMATION & DATA NETWORK SUPPLIES LTD (IDN).
Adult and Health Services,Central/Other,Supplies and Services,384199,Miscellaneous Expenses,08/12/2020,3812459-5718,"2,425.00",ASSOCIATION OF DIRECTORS OF SOCIAL SERVICES (ADASS).
"Regeneration, Economy and Growth",Culture Sport and Tourism,Supplies and Services,384199,Miscellaneous Expenses,08/12/2020,3812761-INV-S013245,"1,664.28",SPEKTRIX LTD.
Children and Young Peoples Services,Head of Education and Skills,Supplies and Services,384199,Miscellaneous Expenses,08/12/2020,3812728-INV-0114,"3,150.00",RAW DIGITAL TRAINING LTD.
Children and Young Peoples Services,Head of Education and Skills,Supplies and Services,384199,Miscellaneous Expenses,08/12/2020,3812728-INV-0115,"2,408.91",RAW DIGITAL TRAINING LTD.
Children and Young Peoples Services,Head of Education and Skills,Supplies and Services,338099,Services,08/12/2020,3812438-13269,677.85,A1 TROPHIES & ENGRAVING.
Children and Young Peoples Services,Head of Education and Skills,Third Party Payments,440999,Other third party payments E440,08/12/2020,3812595-M534D356,"4,582.50",GROUNDWORK NORTH EAST.
Children and Young Peoples Services,Head of Education and Skills,Third Party Payments,440999,Other third party payments E440,08/12/2020,3812595-M535D355,"3,412.50",GROUNDWORK NORTH EAST.
"Regeneration, Economy and Growth",Corporate Property and Land,Third Party Payments,430100,Rendered by Private Contractors,08/12/2020,3812510-7552,"1,789.13",CATHEDRAL LOCK & SAFE SERVICES LTD.
"Regeneration, Economy and Growth",Corporate Property and Land,Third Party Payments,430100,Rendered by Private Contractors,08/12/2020,3812613-10006,671.40,INGLEFORD SCAFFOLDING LTD.
"Regeneration, Economy and Growth",Corporate Property and Land,Third Party Payments,430100,Rendered by Private Contractors,08/12/2020,3812613-10011,"11,236.40",INGLEFORD SCAFFOLDING LTD.
"Regeneration, Economy and Growth",Corporate Property and Land,Third Party Payments,430100,Rendered by Private Contractors,08/12/2020,3812694-30165,"45,000.00",NE & C WINDOWS & DOORS LTD.
"Regeneration, Economy and Growth",Corporate Property and Land,Third Party Payments,430100,Rendered by Private Contractors,08/12/2020,3812708-2475,"8,000.00",PARAMOUNT CEILINGS & PARTITIONS.
Neighbourhoods and Climate Change,Environmental Services,Third Party Payments,430100,Rendered by Private Contractors,08/12/2020,3812763-0001526068,"1,863.62",SRCL LTD.
Neighbourhoods and Climate Change,Environmental Services,Third Party Payments,430100,Rendered by Private Contractors,08/12/2020,3812763-0001541891,"1,524.37",SRCL LTD.
Neighbourhoods and Climate Change,Technical Services CM0300,Third Party Payments,430100,Rendered by Private Contractors,08/12/2020,3812656-9186005113,"4,400.00",MAMMOET UK LTD.
Neighbourhoods and Climate Change,Technical Services CM0300,Third Party Payments,430100,Rendered by Private Contractors,08/12/2020,3812720-6047,"2,609.24",PINKNEY BUILDING CONTRACTORS LTD.
Neighbourhoods and Climate Change,Technical Services CM0300,Third Party Payments,430100,Rendered by Private Contractors,08/12/2020,3812764-7338,"4,238.88",ST ASTIER LTD.
"Regeneration, Economy and Growth",Transport and Contracted Services,Third Party Payments,430100,Rendered by Private Contractors,08/12/2020,3812704-00014548,"15,281.57",NSL LTD.
"Regeneration, Economy and Growth",Transport and Contracted Services,Third Party Payments,430100,Rendered by Private Contractors,08/12/2020,3812704-00014484,"1,880.83",NSL LTD.
